{"text_format":"1","workbook":"xlsx","n_sheets":5,"sheets":["Krycí list","Rekapitulace","Položky","Stvorhranne_tvarovky_kusy2","Stvorhranne_tvarovky_kusy"],"not_rendered":{"charts":0,"images":0,"macros":1,"external_links":0,"defined_names":43,"comments":0,"pivot_tables":0},"unopened":[],"bounds":{"document_bytes":16777216,"sheet_cells":100000,"rows_first":2000,"rows_last":500,"rows_between":2000,"halvings":0,"cell_chars":16384,"cell_head_chars":4096},"cells_cut":0,"cells_raw":0,"read":"whole","date_system":"1900"}

{"sheet":"Krycí list","index":0,"n_rows":34,"n_cols":7,"rows_kept":34,"cut":false,"hidden":false,"merged":[[5,2,5,4],[6,2,6,3],[7,2,7,3],[10,4,10,6]]}
["KRYCÍ LIST ROZPOČTU"]
[]
["Objekt :",null,"Název objektu :",null,null,"JKSO :"]
[null,null,"SO01+SO02"]
["Stavba :",null,"Název stavby :",null,null,"SKP :"]
[null,null,"Obnova S - centra Hodonín, p. o."]
["Projektant :",null,null,null,"Počet měrných jednotek :",null,0]
["Objednatel :",null,null,null,"Náklady na MJ :",null,0]
["Počet listů :",null,null,null,"Zakázkové číslo :"]
["Zpracovatel projektu :",null,"Subtech s.r.o.",null,"Zhotovitel :"]
[]
["ROZPOČTOVÉ NÁKLADY"]
["Rozpočtové náklady II. a III. hlavy",null,null,"Vedlejší rozpočtové náklady"]
[null,"Dodávka celkem",{"$f":"Rekapitulace!G38","v":0}]
["Z","Montáž celkem",{"$f":"Rekapitulace!H38","v":0}]
["R","HSV celkem",{"$f":"Rekapitulace!E38","v":0}]
["N","PSV celkem",{"$f":"Rekapitulace!F38","v":0}]
["ZRN celkem",null,{"$f":"SUM(C14:C17)","v":0}]
[]
["HZS",null,{"$f":"Rekapitulace!I38","v":0}]
["RN II.a III.hlavy",null,{"$f":"C18+C20","v":0},"Ostatní VRN",null,null,0]
["ZRN+VRN+HZS",null,{"$f":"C21+G22","v":0},"VRN celkem",null,null,0]
["Vypracoval",null,"Za zhotovitele",null,"Za objednatele"]
[null,null,"Jméno :",null,"Jméno :"]
["Datum :",null,"Datum :",null,"Datum :"]
[null,null,"Podpis:",null,"Podpis :"]
[]
[]
["Základ pro DPH",null,0,"%  činí :",null,0]
["Základ pro DPH",null,10,"%  činí :",null,0]
["DPH",null,10,"%  činí :",null,{"$f":"ROUND(PRODUCT(F30,C31/100),1)","v":0}]
["Základ pro DPH",null,21,"%  činí :",null,{"$f":"C22","v":0}]
["DPH",null,21,"%  činí :",null,{"$f":"ROUND(PRODUCT(F32,C33/100),1)","v":0}]
["CENA ZA OBJEKT CELKEM",null,null,null,null,{"$f":"CEILING(SUM(F29:F33),IF(SUM(F29:F33)>=0,1,-1))","v":0}]

{"sheet":"Rekapitulace","index":1,"n_rows":38,"n_cols":9,"rows_kept":38,"cut":false,"hidden":false,"merged":[[1,6,1,8],[0,1,0,2],[1,1,1,2]]}
["Stavba :","Obnova S-centra Hodonín p.o.",null,null,null,null,"Rozpočet:","D1.4.C.002"]
["Objekt :","SO 01+SO02",null,null,null,null,"Rozpočet VZT"]
[]
["REKAPITULACE  STAVEBNÍCH  DÍLŮ"]
[]
[null,"Stavební díl",null,null,"HSV","PSV","Dodávka","Montáž","HZS"]
[null,"Zař.č. 1 - Větrání pokojů",null,null,{"$f":"Položky!F98","v":0},0,0,0,0]
[null,"Zař.č. 2 - Větrání pokojů",null,null,{"$f":"Položky!F173","v":0},0,0,0,0]
[null,"Zař.č. 3 - Větrání chodeb a átria",null,null,{"$f":"Položky!F289","v":0},0,0,0,0]
[null,"Zař.č. 4 - Větrání karantény",null,null,{"$f":"Položky!F314","v":0},0,0,0,0]
[null,"Zař.č. 5 - Větrání kanceláří",null,null,{"$f":"Položky!F401","v":0},0,0,0,0]
[null,"Zař.č. 6 - Větrání kuchyně a jídelny",null,null,{"$f":"Položky!F490","v":0},0,0,0,0]
[null,"Zař.č. 8 - Větrání dílen",null,null,{"$f":"Položky!F584","v":0},0,0,0,0]
[null,"Zař.č. 9 - Větrání šaten",null,null,{"$f":"Položky!F628","v":0},0,0,0,0]
[null,"Zař.č. 10 - Větrání technických místností a prádelny",null,null,{"$f":"Položky!F700","v":0},0,0,0,0]
[null,"Zař.č. 11 - Větrání rehabilitace",null,null,{"$f":"Položky!F752","v":0},0,0,0,0]
[null,"Zař.č. 12 - Větrání školící místnosti",null,null,{"$f":"Položky!F789","v":0},0,0,0,0]
[null,"Zař.č. 13 - Větrání bytu",null,null,{"$f":"Položky!F817","v":0},0,0,0,0]
[null,"Zař.č. 15 - Větrání odpadků",null,null,{"$f":"Položky!F836","v":0},0,0,0,0]
[null,"Zař.č. 16 - SO 02 Větrání hygienického zázemí",null,null,{"$f":"Položky!F845","v":0},0,0,0,0]
[null,"Zař.č. 17 - SO 02 Větrání kotelny",null,null,{"$f":"Položky!F855","v":0},0,0,0,0]
[null,"Zař.č. 18 - Větrání půdního prostoru",null,null,{"$f":"Položky!F865","v":0},0,0,0,0]
[null,"Zař.č. 20 - Větrání chráněné únikové cesty B - hlavní schodište",null,null,{"$f":"Položky!F882","v":0},0,0,0,0]
[null,"Zař.č. 21 - Větrání chráněné únikové cesty B - předsíň",null,null,{"$f":"Položky!F926","v":0},0,0,0,0]
[null,"Zař.č. 22 - Větrání chráněné únikové cesty B - schodište",null,null,{"$f":"Položky!F941","v":0},0,0,0,0]
[null,"Zař.č. 23 - Větrání chráněné únikové cesty B - schodište",null,null,{"$f":"Položky!F956","v":0},0,0,0,0]
[null,"Zař.č. 24 - Větrání chráněné únikové cesty B - předsíň",null,null,{"$f":"Položky!F1000","v":0},0,0,0,0]
[null,"Zař.č. 25 - Větrání evakuačních výtahů",null,null,{"$f":"Položky!F1019","v":0},0,0,0,0]
[null,"Zař.č. 26 - Větrání evakuačního výtahu",null,null,{"$f":"Položky!F1035","v":0},0,0,0,0]
[null,"Zař.č. 27 - Větrání filtru",null,null,{"$f":"Položky!F1066","v":0},0,0,0,0]
[null,"Zař.č. 28 - Větrání filtru",null,null,{"$f":"Položky!F1103","v":0},0,0,0,0]
[null,"Zař.č. 30 - Chlazení kanceláří",null,null,{"$f":"Položky!F1112","v":0},0,0,0,0]
[null,"Zař.č. 31 - Chlazení chodby",null,null,{"$f":"Položky!F1123","v":0},0,0,0,0]
[null,"Zař.č. 32 - Chlazení prádelny",null,null,{"$f":"Položky!F1135","v":0},0,0,0,0]
[null,"Zař.č. 33 - Chlazení školící místnosti",null,null,{"$f":"Položky!F1146","v":0},0,0,0,0]
[null,"Zař.č. 34 - Chlazení ESIL - požární",null,null,{"$f":"Položky!F1152","v":0},0,0,0,0]
[null,"Vedlejsí rozpočtové náklady",null,null,{"$f":"Položky!F1169","v":0}]
[null,"CELKEM  OBJEKT",null,null,{"$f":"SUM(E7:E37)","v":0},{"$f":"SUM(F7:F36)","v":0},{"$f":"SUM(G7:G36)","v":0},{"$f":"SUM(H7:H36)","v":0},{"$f":"SUM(I7:I36)","v":0}]

{"sheet":"Položky","index":2,"n_rows":1169,"n_cols":7,"rows_kept":1169,"cut":false,"hidden":false,"merged":[[3,4,3,6]]}
[null,"Položkový rozpočet"]
[]
["Stavba :","Obnova S - centra Hodonín, p. o.",null,null,"Rozpočet:","D.1.4.A.003"]
["Objekt :","SO01+SO02",null,null,"Rozpočet vzduchotechniky"]
[]
["Pozice","Popis","MJ","Množství","cena/MJ","Celkem","Hierarchie"]
["ZAŘ.1","Větrání pokojů",null,null,null,null,1]
["1.01","VZT jednotka pro přívod a odvod vzduchu s deskovým rekuperátorem ZZT; venkovní provedení, včetně montáže, zařízení splňuje nařízení o ecodesignu platné od 1.1.2018 Přesné parametry dle tabulky výkonů, funkčhího schématu a popisu standardů. Umístění 6.NP","ks",1,null,null,110]
["1.02","Buňkový Buňkový tlumič čtyřhranný  1200x900-1500mm, 12x buňka 300/300/1500 , \nvč. hlukové Izolace z minerální vlny tl.60mm s Al fóliou (součinitel útlmu 0,81) ","ks",1,null,null,210]
["1.03","Buňkový tlumič čtyřhranný  1200x900-1000mm, 12x buňka 300/300/1000 ,\n vč. hlukové Izolace z minerální vlny tl.60mm s Al fóliou (součinitel útlmu 0,81) ","ks",1,null,null,210]
["1.04","Buňkový tlumič čtyřhranný  1200x900-2000mm, 4x buňka300/500/2000, 8x buňka 200/300/2000 , vč. hlukové Izolace z minerální vlny tl.60mm s Al fóliou (součinitel útlmu 0,81) ","ks",1,null,null,210]
["1.05","Regulační klapka čtyřhranná s ručním ovládáním    560x180","ks",4,null,null,210]
["1.06","Regulační klapka čtyřhranná s ručním ovládáním    400x180","ks",4,null,null,210]
["1.07","Stěnový rezidenční difuzor, čtyřhranný napojení DN 160, \nOdnímatelná přední deska, nízká hladina hluku, proudění vzduchu bez pocitu průvanu, přesné nastavení přímo na plášti prvku, RAL bude vyvzorkováno při realizaci stavby, vč. montáže","ks",86,null,null,310]
["1.08","Talířový ventil 160 , vč. montážního rámečku DN160, RAL bude vyvzorkováno při realizaci stavby, vč. montáže","ks",43,null,null,310]
["1.09","Vířívý anemostat s čtvercovou čelní deskou přívodní  400x400-16 , s plenum boxem s horizontálním připojením DN125-s regulací, RAL bude vyvzorkováno při realizaci stavby, vč. montáže","ks",4,null,null,310]
["1.10","Vířívý anemostat s čtvercovou čelní deskou odvodní 400x400-16 , s plenum boxem s horizontálním připojením DN125- s regulací, RAL bude vyvzorkováno při realizaci stavby, vč. montáže","ks",4,null,null,310]
["PK 1.01","Požární klapka 560x180 se servopohonem 230V,s pružinou (s havarijní funkcí), termoelektrické čidlo, koncové spínače; vč. montáže; požární odolnost EI120S","ks",1,null,null,311]
["PK 1.02","Požární klapka 560x225 se servopohonem 230V,s pružinou (s havarijní funkcí), termoelektrické čidlo, koncové spínače; vč. montáže; požární odolnost EI120S","ks",1,null,null,311]
["PK 1.03","Požární klapka 560x180 se servopohonem 230V,s pružinou (s havarijní funkcí), termoelektrické čidlo, koncové spínače; vč. montáže; požární odolnost EI120S","ks",1,null,null,311]
["PK 1.04","Požární klapka 450x180 se servopohonem 230V,s pružinou (s havarijní funkcí), termoelektrické čidlo, koncové spínače; vč. montáže; požární odolnost EI120S","ks",1,null,null,311]
["PK 1.05","Požární klapka DN160 se servopohonem 230V,s pružinou (s havarijní funkcí), termoelektrické čidlo, koncové spínače; vč. montáže; požární odolnost EI120S","ks",1,null,null,311]
["PK 1.06","Požární klapka DN125 se servopohonem 230V,s pružinou (s havarijní funkcí), termoelektrické čidlo, koncové spínače; vč. montáže; požární odolnost EI120S","ks",1,null,null,311]
["PK 1.07","Požární klapka DN125 se servopohonem 230V,s pružinou (s havarijní funkcí), termoelektrické čidlo, koncové spínače; vč. montáže; požární odolnost EI120S","ks",1,null,null,311]
["PK 1.08","Požární klapka 400x180 se servopohonem 230V,s pružinou (s havarijní funkcí), termoelektrické čidlo, koncové spínače; vč. montáže; požární odolnost EI120S","ks",1,null,null,311]
["PK 1.09","Požární klapka DN125 se servopohonem 230V,s pružinou (s havarijní funkcí), termoelektrické čidlo, koncové spínače; vč. montáže; požární odolnost EI120S","ks",1,null,null,311]
["PK 1.10","Požární klapka 560x180 se servopohonem 230V,s pružinou (s havarijní funkcí), termoelektrické čidlo, koncové spínače; vč. montáže; požární odolnost EI120S","ks",1,null,null,311]
["PK 1.11","Požární klapka 560x225 se servopohonem 230V,s pružinou (s havarijní funkcí), termoelektrické čidlo, koncové spínače; vč. montáže; požární odolnost EI120S","ks",1,null,null,311]
["PK 1.12","Požární klapka 560x180 se servopohonem 230V,s pružinou (s havarijní funkcí), termoelektrické čidlo, koncové spínače; vč. montáže; požární odolnost EI120S","ks",1,null,null,311]
["PK 1.13","Požární klapka 450x180 se servopohonem 230V,s pružinou (s havarijní funkcí), termoelektrické čidlo, koncové spínače; vč. montáže; požární odolnost EI120S","ks",1,null,null,311]
["PK 1.14","Požární klapka 450x180 se servopohonem 230V,s pružinou (s havarijní funkcí), termoelektrické čidlo, koncové spínače; vč. montáže; požární odolnost EI120S","ks",1,null,null,311]
["PK 1.15","Požární klapka DN125 se servopohonem 230V,s pružinou (s havarijní funkcí), termoelektrické čidlo, koncové spínače; vč. montáže; požární odolnost EI120S","ks",1,null,null,311]
["PK 1.16","Požární klapka DN125 se servopohonem 230V,s pružinou (s havarijní funkcí), termoelektrické čidlo, koncové spínače; vč. montáže; požární odolnost EI120S","ks",1,null,null,311]
["PK 1.17","Požární klapka DN125 se servopohonem 230V,s pružinou (s havarijní funkcí), termoelektrické čidlo, koncové spínače; vč. montáže; požární odolnost EI120S","ks",1,null,null,311]
["PK 1.18","Požární klapka DN160 se servopohonem 230V,s pružinou (s havarijní funkcí), termoelektrické čidlo, koncové spínače; vč. montáže; požární odolnost EI120S","ks",1,null,null,311]
["PK 1.19","Požární klapka 400x180 se servopohonem 230V,s pružinou (s havarijní funkcí), termoelektrické čidlo, koncové spínače; vč. montáže; požární odolnost EI120S","ks",1,null,null,311]
["PK 1.20","Požární klapka 560x180 se servopohonem 230V,s pružinou (s havarijní funkcí), termoelektrické čidlo, koncové spínače; vč. montáže; požární odolnost EI120S","ks",1,null,null,311]
["PK 1.21","Požární klapka 560x225 se servopohonem 230V,s pružinou (s havarijní funkcí), termoelektrické čidlo, koncové spínače; vč. montáže; požární odolnost EI120S","ks",1,null,null,311]
["PK 1.22","Požární klapka 560x180 se servopohonem 230V,s pružinou (s havarijní funkcí), termoelektrické čidlo, koncové spínače; vč. montáže; požární odolnost EI120S","ks",1,null,null,311]
["PK 1.23","Požární klapka 450x180 se servopohonem 230V,s pružinou (s havarijní funkcí), termoelektrické čidlo, koncové spínače; vč. montáže; požární odolnost EI120S","ks",1,null,null,311]
["PK 1.24","Požární klapka 450x180 se servopohonem 230V,s pružinou (s havarijní funkcí), termoelektrické čidlo, koncové spínače; vč. montáže; požární odolnost EI120S","ks",1,null,null,311]
["PK 1.25","Požární klapka  400x180 se servopohonem 230V,s pružinou (s havarijní funkcí), termoelektrické čidlo, koncové spínače; vč. montáže; požární odolnost EI120S","ks",1,null,null,311]
["PK 1.26","Požární klapka DN125 se servopohonem 230V,s pružinou (s havarijní funkcí), termoelektrické čidlo, koncové spínače; vč. montáže; požární odolnost EI120S","ks",1,null,null,311]
["PK 1.27","Požární klapka DN125 se servopohonem 230V,s pružinou (s havarijní funkcí), termoelektrické čidlo, koncové spínače; vč. montáže; požární odolnost EI120S","ks",1,null,null,311]
["PK 1.28","Požární klapka DN160 se servopohonem 230V,s pružinou (s havarijní funkcí), termoelektrické čidlo, koncové spínače; vč. montáže; požární odolnost EI120S","ks",1,null,null,311]
["PK 1.29","Požární klapka DN125 se servopohonem 230V,s pružinou (s havarijní funkcí), termoelektrické čidlo, koncové spínače; vč. montáže; požární odolnost EI120S","ks",1,null,null,311]
["PK 1.30","Požární klapka 450x180 se servopohonem 230V,s pružinou (s havarijní funkcí), termoelektrické čidlo, koncové spínače; vč. montáže; požární odolnost EI120S","ks",1,null,null,311]
["PK 1.31","Požární klapka 560x225 se servopohonem 230V,s pružinou (s havarijní funkcí), termoelektrické čidlo, koncové spínače; vč. montáže; požární odolnost EI120S","ks",1,null,null,311]
["PK 1.32","Požární klapka 560x180 se servopohonem 230V,s pružinou (s havarijní funkcí), termoelektrické čidlo, koncové spínače; vč. montáže; požární odolnost EI120S","ks",1,null,null,311]
["PK 1.33","Požární klapka 450x180 se servopohonem 230V,s pružinou (s havarijní funkcí), termoelektrické čidlo, koncové spínače; vč. montáže; požární odolnost EI120S","ks",1,null,null,311]
["PK 1.34","Požární klapka 560x180 se servopohonem 230V,s pružinou (s havarijní funkcí), termoelektrické čidlo, koncové spínače; vč. montáže; požární odolnost EI120S","ks",1,null,null,311]
["PK 1.35","Požární klapka 400x180 se servopohonem 230V,s pružinou (s havarijní funkcí), termoelektrické čidlo, koncové spínače; vč. montáže; požární odolnost EI120S","ks",1,null,null,311]
["PK 1.36","Požární klapka DN125 se servopohonem 230V,s pružinou (s havarijní funkcí), termoelektrické čidlo, koncové spínače; vč. montáže; požární odolnost EI120S","ks",1,null,null,311]
["PK 1.37","Požární klapka DN160 se servopohonem 230V,s pružinou (s havarijní funkcí), termoelektrické čidlo, koncové spínače; vč. montáže; požární odolnost EI120S","ks",1,null,null,311]
["PK 1.38","Požární klapka DN160 se servopohonem 230V,s pružinou (s havarijní funkcí), termoelektrické čidlo, koncové spínače; vč. montáže; požární odolnost EI120S","ks",1,null,null,311]
[null,"Přívodní potrubí",null,null,null,null,400]
[null,"Čtyřhranné potrubí z pozinkovaného plechu SK I., včetně příslušenství, včetně montáže, prořez 20%, třída těsnosti B:",null,null,null,null,409]
[null,"Čtyřhranné potrubí do obv. 650 vč 100 % tvarovek","m2",2,null,null,410]
[null,"Čtyřhranné potrubí do obv. 1050 vč 20 % tvarovek","m2",32,null,null,410]
[null,"Čtyřhranné potrubí do obv. 1500 vč 40 % tvarovek","m2",206,null,null,410]
[null,"Čtyřhranné potrubí do obv. 1890 vč 50 % tvarovek","m2",38,null,null,410]
[null,"Čtyřhranné potrubí do obv. 2630 vč 30 % tvarovek","m2",60,null,null,410]
[null,"Čtyřhranné potrubí do obv. 4460 vč 90 % tvarovek","m2",20,null,null,410]
[null,"Kruhové potrubí SPIRO z oboustraně pozinkovaného plechu, včetně příslušenství, včetně montáže, prořez 20%, třída těsnosti C:",null,null,null,null,419]
[null,"Kruhové potrubí Ø125 vč. 20 % tvarovek","bm",21,null,null,420]
[null,"Kruhové potrubí Ø200 vč. 20 % tvarovek","bm",46,null,null,420]
[null,"Kruhové potrubí Ø160 vč. 30 % tvarovek","bm",58,null,null,420]
[null,"Kruhové potrubí Ø100 vč. 20 % tvarovek","bm",7,null,null,420]
[null,"Odvodní potrubí",null,null,null,null,500]
[null,"Čtyřhranné potrubí z pozinkovaného plechu SK I., včetně příslušenství, včetně montáže, prořez 20%, třída těsnosti B:",null,null,null,null,509]
[null,"Čtyřhranné potrubí do obv. 650 vč 70 % tvarovek","m2",35,null,null,510]
[null,"Čtyřhranné potrubí do obv. 1050 vč 50 % tvarovek","m2",86,null,null,510]
[null,"Čtyřhranné potrubí do obv. 1500 vč 50 % tvarovek","m2",51,null,null,510]
[null,"Čtyřhranné potrubí do obv. 1890 vč 50 % tvarovek","m2",42,null,null,510]
[null,"Čtyřhranné potrubí do obv. 2630 vč 40 % tvarovek","m2",58,null,null,510]
[null,"Čtyřhranné potrubí do obv. 3500 vč 100 % tvarovek","m2",2,null,null,510]
[null,"Čtyřhranné potrubí do obv. 4460 vč 80 % tvarovek","m2",12,null,null,510]
[null,"Kruhové potrubí SPIRO z oboustraně pozinkovaného plechu, včetně příslušenství, včetně montáže, prořez 20%, třída těsnosti C:",null,null,null,null,519]
[null,"Kruhové potrubí Ø180 vč. 20 % tvarovek","bm",36,null,null,520]
[null,"Kruhové potrubí Ø125 vč. 20 % tvarovek","bm",38,null,null,520]
[null,"Kruhové potrubí Ø160 vč. 30 % tvarovek","bm",38,null,null,520]
[null,"Kruhové potrubí Ø100 vč. 20 % tvarovek","bm",20,null,null,520]
[null,"Ohybné potrubí:",null,null,null,null,900]
[null,"Ohebná hadice ø100 mm","bm",5,null,null,910]
[null,"Ohebná hadice ø125 mm","bm",23,null,null,910]
[null,"Ohebná hadice ø160 mm","bm",29,null,null,910]
[null,"Ohebná hadice izolovaná ø100 mm, tl. izolace 25mm (skelná vata)","bm",2,null,null,910]
[null,"Ohebná hadice izolovaná ø160 mm, tl. izolace 25mm (skelná vata)","bm",82,null,null,910]
[null,"Izolace potrubí:",null,null,null,null,1000]
[null,"Tepelná izolace s oplechováním 80 mm z čedičové vlny na vyztuženou Al fólii + oplechování ze Zn plechu pro venkovní prostředí; role, samolepící, přelepení spojů Al páskou; plechové spoje vytmeleny, vč. montáže ","m2",53,null,null,1010]
[null,"Tepelná izolace 40 mm z čedičové vlny na vyztuženou Al fólii; role, samolepící, přelepení spojů Al páskou; vč. montáže","m2",512,null,null,1010]
[null,"Tepelná izolace 80 mm z čedičové vlny na vyztuženou Al fólii; role, samolepící, přelepení spojů Al páskou; vč. montáže","m2",58,null,null,1010]
[null,"Požární izolace z čedičové vlny,  EI 60 min, působení ohně typu B","m2",20,null,null,1010]
[null,"Ostatní",null,null,null,null,5000]
[null,"Upevňovací, těsnicí, montážní, závěsné a pomocné materiály ","kg",385,null,null,5010]
[null,"Dotěsnění prostupu atestovanou protipožární obložkou a tmelem vč. štítku \nVýchozí revize vč. vystavení evidenčního štítku založení knihy požárních elementů","ks",38,null,null,5010]
[null,"\"Kompletní montáž včetně lešení, vyrovnání, regulace systému \nvčetně regulačního protokolu, zaškolení obsluhy a předání systému ","hod",450,null,null,5010]
["ZAŘ.1","Celkem za ZAŘ.1",null,null,null,null,1]
["ZAŘ.2","Větrání pokojů",null,null,null,null,1]
["2.01","VZT jednotka pro přívod a odvod vzduchu s deskovým rekuperátorem ZZT; venkovní provedení, včetně montáže, zařízení splňuje nařízení o ecodesignu platné od 1.1.2018 Přesné parametry dle tabulky výkonů, funkčhího schématu a popisu standardů. Umístění 6.NP","ks",1,null,null,110]
["2.02","Buňkový tlumič čtyřhranný  1200x800-1500mm, 8x buňka 300/300/1500 , \nvč. hlukové Izolace z minerální vlny tl.60mm s Al fóliou (součinitel útlmu 0,81) ","ks",1,null,null,210]
["2.03","Buňkový tlumič čtyřhranný  1200x800-1000mm, 8x buňka 300/300/1000 , \nvč. hlukové Izolace z minerální vlny tl.60mm s Al fóliou (součinitel útlmu 0,81) ","ks",1,null,null,210]
["2.04","Buňkový tlumič čtyřhranný  1240x1200-2000mm, 8x buňka 300/300/2000 , \nvč. hlukové Izolace z minerální vlny tl.60mm s Al fóliou (součinitel útlmu 0,81) ","ks",1,null,null,210]
["2.06","Regulační klapka čtyřhranná s ručním ovládáním    630x225","ks",4,null,null,210]
["2.07","Regulační klapka čtyřhranná s ručním ovládáním    710x250","ks",4,null,null,210]
["2.08","Regulační klapka čtyřhranná s ručním ovládáním    355x200","ks",4,null,null,210]
["2.10","Stěnový rezidenční difuzor, čtyřhranný napojení DN 160, \nOdnímatelná přední deska, nízká hladina hluku, proudění vzduchu bez pocitu průvanu, přesné nastavení přímo na plášti prvku, RAL bude vyvzorkováno při realizaci stavby, vč. montáže","ks",84,null,null,310]
["2.11","Vířívý anemostat s čtvercovou čelní deskou přívodní  600x600-40 , s plenum boxem s horizontálním připojením DN250-s regulací, RAL bude vyvzorkováno při realizaci stavby, vč. montáže","ks",4,null,null,310]
["2.12","Vířívý anemostat s čtvercovou čelní deskou odvodní 600x600-40 , s plenum boxem s horizontálním připojením DN200- s regulací, RAL bude vyvzorkováno při realizaci stavby, vč. montáže","ks",4,null,null,310]
["2.13","Vířívý anemostat s čtvercovou čelní deskou přívodní  400x400-16 , s plenum boxem s horizontálním připojením DN200-s regulací, RAL bude vyvzorkováno při realizaci stavby, vč. montáže","ks",12,null,null,310]
["2.14","Vířívý anemostat s čtvercovou čelní deskou odvodní 400x400-16 , s plenum boxem s horizontálním připojením DN200- s regulací, RAL bude vyvzorkováno při realizaci stavby, vč. montáže","ks",4,null,null,310]
["2.16","Talířový ventil 160 , vč. montážního rámečku DN160, RAL bude vyvzorkováno při realizaci stavby, vč. montáže","ks",43,null,null,310]
["2.17","Talířový ventil 125 , vč. montážního rámečku DN125, RAL bude vyvzorkováno při realizaci stavby, vč. montáže","ks",19,null,null,310]
["2.18","Talířový ventil 100 , vč. montážního rámečku DN100, RAL bude vyvzorkováno při realizaci stavby, vč. montáže","ks",24,null,null,310]
["2.19","Vyústka do kruhového potrubí odvodní jednořadá 325x75 , RAL bude vyvzorkováno při realizaci stavby, vč. montáže","ks",4,null,null,310]
["2.20","Vyústka do kruhového potrubí odvodní jednořadá 225x75 , RAL bude vyvzorkováno při realizaci stavby, vč. montáže","ks",8,null,null,310]
["PK 2.01","Požární klapka 630x225 se servopohonem 230V,s pružinou (s havarijní funkcí), termoelektrické čidlo, koncové spínače; vč. montáže; požární odolnost EI120S","ks",1,null,null,311]
["PK 2.02","Požární klapka 710x250 se servopohonem 230V,s pružinou (s havarijní funkcí), termoelektrické čidlo, koncové spínače; vč. montáže; požární odolnost EI120S","ks",1,null,null,311]
["PK 2.03","Požární klapka 630x225 se servopohonem 230V,s pružinou (s havarijní funkcí), termoelektrické čidlo, koncové spínače; vč. montáže; požární odolnost EI120S","ks",1,null,null,311]
["PK 2.04","Požární klapka 710x250 se servopohonem 230V,s pružinou (s havarijní funkcí), termoelektrické čidlo, koncové spínače; vč. montáže; požární odolnost EI120S","ks",1,null,null,311]
["PK 2.05","Požární klapka 630x225 se servopohonem 230V,s pružinou (s havarijní funkcí), termoelektrické čidlo, koncové spínače; vč. montáže; požární odolnost EI120S","ks",1,null,null,311]
["PK 2.06","Požární klapka 710x250 se servopohonem 230V,s pružinou (s havarijní funkcí), termoelektrické čidlo, koncové spínače; vč. montáže; požární odolnost EI120S","ks",1,null,null,311]
["PK 2.07","Požární klapka 630x225 se servopohonem 230V,s pružinou (s havarijní funkcí), termoelektrické čidlo, koncové spínače; vč. montáže; požární odolnost EI120S","ks",1,null,null,311]
["PK 2.08","Požární klapka 710x250 se servopohonem 230V,s pružinou (s havarijní funkcí), termoelektrické čidlo, koncové spínače; vč. montáže; požární odolnost EI120S","ks",1,null,null,311]
["PK 2.09","Požární stěnový uzávěr 200x200, \ns pružinou (s havarijní funkcí), tavná pojistka při 72 °C; vč. montáže","ks",1,null,null,311]
["PK 2.10","Požární stěnový uzávěr 200x200, \ns pružinou (s havarijní funkcí), tavná pojistka při 72 °C; vč. montáže","ks",1,null,null,311]
["PK 2.11","Požární stěnový uzávěr 200x200, \ns pružinou (s havarijní funkcí), tavná pojistka při 72 °C; vč. montáže","ks",1,null,null,311]
["PK 2.12","Požární stěnový uzávěr 200x200, \ns pružinou (s havarijní funkcí), tavná pojistka při 72 °C; vč. montáže","ks",1,null,null,311]
[null,"Přívodní potrubí",null,null,null,null,400]
[null,"Čtyřhranné potrubí z pozinkovaného plechu SK I., včetně příslušenství, včetně montáže, prořez 20%, třída těsnosti B:",null,null,null,null,409]
[null,"Čtyřhranné potrubí do obv. 650 vč 100 % tvarovek","m2",2,null,null,410]
[null,"Čtyřhranné potrubí do obv. 1050 vč 40 % tvarovek","m2",91,null,null,410]
[null,"Čtyřhranné potrubí do obv. 1500 vč 20 % tvarovek","m2",127,null,null,410]
[null,"Čtyřhranné potrubí do obv. 1890 vč 30 % tvarovek","m2",164,null,null,410]
[null,"Čtyřhranné potrubí do obv. 2630 vč 40 % tvarovek","m2",128,null,null,410]
[null,"Čtyřhranné potrubí do obv. 4000 vč 40 % tvarovek","m2",4,null,null,410]
[null,"Čtyřhranné potrubí do obv. 5600 vč 100 % tvarovek","m2",3,null,null,410]
[null,"Kruhové potrubí SPIRO z oboustraně pozinkovaného plechu, včetně příslušenství, včetně montáže, prořez 20%, třída těsnosti C:",null,null,null,null,419]
[null,"Kruhové potrubí Ø200 vč. 20 % tvarovek","bm",8,null,null,420]
[null,"Kruhové potrubí Ø250 vč. 20 % tvarovek","bm",1,null,null,420]
[null,"Kruhové potrubí Ø125 vč. 20 % tvarovek","bm",52,null,null,420]
[null,"Kruhové potrubí Ø100 vč. 30 % tvarovek","bm",22,null,null,420]
[null,"Kruhové potrubí Ø160 vč. 20 % tvarovek","bm",93,null,null,420]
[null,"Odvodní potrubí",null,null,null,null,500]
[null,"Čtyřhranné potrubí z pozinkovaného plechu SK I., včetně příslušenství, včetně montáže, prořez 20%, třída těsnosti B:",null,null,null,null,509]
[null,"Čtyřhranné potrubí do obv. 650 vč 80 % tvarovek","m2",25,null,null,510]
[null,"Čtyřhranné potrubí do obv. 1050 vč 40 % tvarovek","m2",60,null,null,510]
[null,"Čtyřhranné potrubí do obv. 1500 vč 40 % tvarovek","m2",111,null,null,510]
[null,"Čtyřhranné potrubí do obv. 1890 vč 20 % tvarovek","m2",183,null,null,510]
[null,"Čtyřhranné potrubí do obv. 2630 vč 40 % tvarovek","m2",142,null,null,510]
[null,"Čtyřhranné potrubí do obv. 3500 vč 50 % tvarovek","m2",13,null,null,510]
[null,"Čtyřhranné potrubí do obv. 5600 vč 50 % tvarovek","m2",4,null,null,510]
[null,"Kruhové potrubí SPIRO z oboustraně pozinkovaného plechu, včetně příslušenství, včetně montáže, prořez 20%, třída těsnosti C:",null,null,null,null,519]
[null,"Kruhové potrubí Ø200 vč. 20 % tvarovek","bm",37,null,null,520]
[null,"Kruhové potrubí Ø140 vč. 20 % tvarovek","bm",26,null,null,520]
[null,"Kruhové potrubí Ø160 vč. 20 % tvarovek","bm",69,null,null,520]
[null,"Kruhové potrubí Ø125 vč. 20 % tvarovek","bm",93,null,null,520]
[null,"Kruhové potrubí Ø100 vč. 20 % tvarovek","bm",65,null,null,520]
[null,"Ohybné potrubí:",null,null,null,null,900]
[null,"Ohebná hadice ø100 mm","bm",7,null,null,910]
[null,"Ohebná hadice ø125 mm","bm",55,null,null,910]
[null,"Ohebná hadice ø160 mm","bm",22,null,null,910]
[null,"Ohebná hadice izolovaná ø160 mm, tl. izolace 25mm (skelná vata)","bm",94,null,null,910]
[null,"Ohebná hadice izolovaná ø200 mm, tl. izolace 25mm (skelná vata)","bm",3,null,null,910]
[null,"Izolace potrubí:",null,null,null,null,1000]
[null,"Tepelná izolace s oplechováním 80 mm z čedičové vlny na vyztuženou Al fólii + oplechování ze Zn plechu pro venkovní prostředí; role, samolepící, přelepení spojů Al páskou; plechové spoje vytmeleny, vč. montáže ","m2",141,null,null,1010]
[null,"Tepelná izolace 40 mm z čedičové vlny na vyztuženou Al fólii; role, samolepící, přelepení spojů Al páskou; vč. montáže","m2",737,null,null,1010]
[null,"Tepelná izolace 80 mm z čedičové vlny na vyztuženou Al fólii; role, samolepící, přelepení spojů Al páskou; vč. montáže","m2",48,null,null,1010]
[null,"Ostatní",null,null,null,null,5000]
[null,"Upevňovací, těsnicí, montážní, závěsné a pomocné materiály ","kg",375,null,null,5010]
[null,"Dotěsnění prostupu atestovanou protipožární obložkou a tmelem vč. štítku \nVýchozí revize vč. vystavení evidenčního štítku založení knihy požárních elementů","ks",12,null,null,5010]
[null,"\"Kompletní montáž včetně lešení, vyrovnání, regulace systému \nvčetně regulačního protokolu, zaškolení obsluhy a předání systému ","hod",480,null,null,5010]
["ZAŘ.2","Celkem za ZAŘ.2",null,null,null,null,1]
["ZAŘ.3","Větrání chodeb a átria",null,null,null,null,1]
["3.01","VZT jednotka pro přívod a odvod vzduchu s deskovým rekuperátorem ZZT; venkovní provedení, včetně montáže, zařízení splňuje nařízení o ecodesignu platné od 1.1.2018 Přesné parametry dle tabulky výkonů, funkčhího schématu a popisu standardů. Umístění 6.NP","ks",1,null,null,110]
["3.02","Servopohon s havarijní funkcí LF230, Umístění 6.NP","ks",2,null,null,110]
["3.03","Servopohon s havarijní funkcí LF230, Umístění 1-6.NP","ks",12,null,null,110]
["3.08","Buňkový tlumič čtyřhranný  1200x1000-1500mm, 12x buňka 200/500/1500 , \nvč. hlukové Izolace z minerální vlny tl.60mm s Al fóliou (součinitel útlmu 0,81) ","ks",1,null,null,210]
["3.09","Buňkový tlumič čtyřhranný  1200x1000-1000mm, 12x buňka 200/500/1000 , \nvč. hlukové Izolace z minerální vlny tl.60mm s Al fóliou (součinitel útlmu 0,81) ","ks",1,null,null,210]
["3.10","Buňkový tlumič čtyřhranný  1200x1000-2000mm, 12X buňka 200/500/2000 , \nvč. hlukové Izolace z minerální vlny tl.60mm s Al fóliou (součinitel útlmu 0,81) ","ks",1,null,null,210]
["3.11","Regulační klapka čtyřhranná s přípravou pro servopohon -S  900x560","ks",2,null,null,210]
["3.12","Regulační klapka čtyřhranná s přípravou pro servopohon -S  710x250","ks",1,null,null,210]
["3.13","Regulační klapka čtyřhranná s přípravou pro servopohon -S  600x250","ks",1,null,null,210]
["3.14","Regulační klapka čtyřhranná s přípravou pro servopohon -S  450x200","ks",4,null,null,210]
["3.15","Regulační klapka čtyřhranná s přípravou pro servopohon -S  355x200","ks",4,null,null,210]
["3.17","Regulační klapka čtyřhranná s přípravou pro servopohon -S  200x200","ks",4,null,null,210]
["3.18","Regulační klapka čtyřhranná s ručním ovládáním    355x200","ks",4,null,null,210]
["3.19","Regulační klapka čtyřhranná s ručním ovládáním    250x200","ks",1,null,null,210]
["3.20","Vířívý anemostat s čtvercovou čelní deskou přívodní  600x600-40 , s plenum boxem s horizontálním připojením DN250-s regulací, RAL bude vyvzorkováno při realizaci stavby, vč. montáže","ks",7,null,null,310]
["3.21","Vířívý anemostat s čtvercovou čelní deskou odvodní 600x600-40 , s plenum boxem s horizontálním připojením DN250- s regulací, RAL bude vyvzorkováno při realizaci stavby, vč. montáže","ks",6,null,null,310]
["3.22","Vířívý anemostat s čtvercovou čelní deskou přívodní  400x400-16 , s plenum boxem s horizontálním připojením DN200-s regulací, RAL bude vyvzorkováno při realizaci stavby, vč. montáže","ks",5,null,null,310]
["3.23","Vířívý anemostat s čtvercovou čelní deskou odvodní 400x400-16 , s plenum boxem s horizontálním připojením DN200- s regulací, RAL bude vyvzorkováno při realizaci stavby, vč. montáže","ks",5,null,null,310]
["3.24","Vířívý anemostat s čtvercovou čelní deskou přívodní  300x300-8 , s plenum boxem s horizontálním připojením DN160-s regulací, RAL bude vyvzorkováno při realizaci stavby, vč. montáže","ks",4,null,null,310]
["3.25","Vířívý anemostat s čtvercovou čelní deskou odvodní 300x300-8 , s plenum boxem s horizontálním připojením DN160- s regulací, RAL bude vyvzorkováno při realizaci stavby, vč. montáže","ks",4,null,null,310]
["3.26","Vyústka do kruhového potrubí přívodní dvouřadá s nast. lamelami 825x75 dvouřadá , RAL bude vyvzorkováno při realizaci stavby, vč. montáže","ks",1,null,null,310]
["3.27","Mřížka přívodní dvouřadá s nast. lamelami 600x200 , RAL bude vyvzorkováno při realizaci stavby, vč. montáže","ks",4,null,null,310]
["3.28","Mřížka přívodní dvouřadá s nast. lamelami  500x500, RAL bude vyvzorkováno při realizaci stavby, vč. montáže","ks",4,null,null,310]
["3.29","Mřížka odvodní jednořadá 200x200, RAL bude vyvzorkováno při realizaci stavby, vč. montáže","ks",4,null,null,310]
["3.30","Vyústka do čtyřhranného potrubí odvodní jednořadá 500x200, s regulací , RAL bude vyvzorkováno při realizaci stavby, vč. montáže","ks",4,null,null,310]
["3.31","Vyústka do kruhového potrubí odvodní jednořadá 425x75 jednořadá , RAL bude vyvzorkováno při realizaci stavby, vč. montáže","ks",1,null,null,310]
["3.32","Talířový ventil 100 , vč. montážního rámečku DN100, RAL bude vyvzorkováno při realizaci stavby, vč. montáže","ks",4,null,null,310]
["3.32","Talířový ventil 100 , vč. montážního rámečku DN100, RAL bude vyvzorkováno při realizaci stavby, vč. montáže","ks",1,null,null,310]
["PK 3.01","Požární klapka 355x200 se servopohonem 230V,s pružinou (s havarijní funkcí), termoelektrické čidlo, koncové spínače; vč. montáže; požární odolnost EI120S","ks",1,null,null,311]
["PK 3.02","Požární klapka 200x200 se servopohonem 230V,s pružinou (s havarijní funkcí), termoelektrické čidlo, koncové spínače; vč. montáže; požární odolnost EI120S","ks",1,null,null,311]
["PK 3.03","Požární klapka 450x200 se servopohonem 230V,s pružinou (s havarijní funkcí), termoelektrické čidlo, koncové spínače; vč. montáže; požární odolnost EI120S","ks",1,null,null,311]
["PK 3.04","Požární klapka DN160 se servopohonem 230V,s pružinou (s havarijní funkcí), termoelektrické čidlo, koncové spínače; vč. montáže; požární odolnost EI120S","ks",1,null,null,311]
["PK 3.05","Požární klapka DN100 se servopohonem 230V,s pružinou (s havarijní funkcí), termoelektrické čidlo, koncové spínače; vč. montáže; požární odolnost EI120S","ks",1,null,null,311]
["PK 3.06","Požární klapka DN100 se servopohonem 230V,s pružinou (s havarijní funkcí), termoelektrické čidlo, koncové spínače; vč. montáže; požární odolnost EI120S","ks",1,null,null,311]
["PK 3.07","Požární klapka 450x200 se servopohonem 230V,s pružinou (s havarijní funkcí), termoelektrické čidlo, koncové spínače; vč. montáže; požární odolnost EI120S","ks",1,null,null,311]
["PK 3.08","Požární klapka 355x200 se servopohonem 230V,s pružinou (s havarijní funkcí), termoelektrické čidlo, koncové spínače; vč. montáže; požární odolnost EI120S","ks",1,null,null,311]
["PK 3.09","Požární klapka  180x200 se servopohonem 230V,s pružinou (s havarijní funkcí), termoelektrické čidlo, koncové spínače; vč. montáže; požární odolnost EI120S","ks",1,null,null,311]
["PK 3.10","Požární klapka DN160 se servopohonem 230V,s pružinou (s havarijní funkcí), termoelektrické čidlo, koncové spínače; vč. montáže; požární odolnost EI120S","ks",1,null,null,311]
["PK 3.11","Požární klapka DN100 se servopohonem 230V,s pružinou (s havarijní funkcí), termoelektrické čidlo, koncové spínače; vč. montáže; požární odolnost EI120S","ks",1,null,null,311]
["PK 3.12","Požární klapka DN100 se servopohonem 230V,s pružinou (s havarijní funkcí), termoelektrické čidlo, koncové spínače; vč. montáže; požární odolnost EI120S","ks",1,null,null,311]
["PK 3.13","Požární klapka 450x200 se servopohonem 230V,s pružinou (s havarijní funkcí), termoelektrické čidlo, koncové spínače; vč. montáže; požární odolnost EI120S","ks",1,null,null,311]
["PK 3.14","Požární klapka 355x200 se servopohonem 230V,s pružinou (s havarijní funkcí), termoelektrické čidlo, koncové spínače; vč. montáže; požární odolnost EI120S","ks",1,null,null,311]
["PK 3.15","Požární klapka 180x200 se servopohonem 230V,s pružinou (s havarijní funkcí), termoelektrické čidlo, koncové spínače; vč. montáže; požární odolnost EI120S","ks",1,null,null,311]
["PK 3.16","Požární klapka DN100 se servopohonem 230V,s pružinou (s havarijní funkcí), termoelektrické čidlo, koncové spínače; vč. montáže; požární odolnost EI120S","ks",1,null,null,311]
["PK 3.17","Požární klapka DN100 se servopohonem 230V,s pružinou (s havarijní funkcí), termoelektrické čidlo, koncové spínače; vč. montáže; požární odolnost EI120S","ks",1,null,null,311]
["PK 3.18","Požární klapka DN160 se servopohonem 230V,s pružinou (s havarijní funkcí), termoelektrické čidlo, koncové spínače; vč. montáže; požární odolnost EI120S","ks",1,null,null,311]
["PK 3.19","Požární klapka 450x200 se servopohonem 230V,s pružinou (s havarijní funkcí), termoelektrické čidlo, koncové spínače; vč. montáže; požární odolnost EI120S","ks",1,null,null,311]
["PK 3.20","Požární klapka 355x200 se servopohonem 230V,s pružinou (s havarijní funkcí), termoelektrické čidlo, koncové spínače; vč. montáže; požární odolnost EI120S","ks",1,null,null,311]
["PK 3.21","Požární klapka 180x200 se servopohonem 230V,s pružinou (s havarijní funkcí), termoelektrické čidlo, koncové spínače; vč. montáže; požární odolnost EI120S","ks",1,null,null,311]
["PK 3.22","Požární klapka DN160 se servopohonem 230V,s pružinou (s havarijní funkcí), termoelektrické čidlo, koncové spínače; vč. montáže; požární odolnost EI120S","ks",1,null,null,311]
["PK 3.23","Požární klapka DN100 se servopohonem 230V,s pružinou (s havarijní funkcí), termoelektrické čidlo, koncové spínače; vč. montáže; požární odolnost EI120S","ks",1,null,null,311]
["PK 3.24","Požární klapka DN100 se servopohonem 230V,s pružinou (s havarijní funkcí), termoelektrické čidlo, koncové spínače; vč. montáže; požární odolnost EI120S","ks",1,null,null,311]
["PK 3.25","Požární klapka 600x250 se servopohonem 230V,s pružinou (s havarijní funkcí), termoelektrické čidlo, koncové spínače; vč. montáže; požární odolnost EI120S","ks",1,null,null,311]
["PK 3.26","Požární klapka 710x250 se servopohonem 230V,s pružinou (s havarijní funkcí), termoelektrické čidlo, koncové spínače; vč. montáže; požární odolnost EI120S","ks",1,null,null,311]
["PK 3.27","Požární klapka 250x200 se servopohonem 230V,s pružinou (s havarijní funkcí), termoelektrické čidlo, koncové spínače; vč. montáže; požární odolnost EI120S","ks",1,null,null,311]
["PK 3.28","Požární klapka 200x250 se servopohonem 230V,s pružinou (s havarijní funkcí), termoelektrické čidlo, koncové spínače; vč. montáže; požární odolnost EI120S","ks",1,null,null,311]
["PK 3.29","Požární klapka  DN125 se servopohonem 230V,s pružinou (s havarijní funkcí), termoelektrické čidlo, koncové spínače; vč. montáže; požární odolnost EI120S","ks",1,null,null,311]
["PK 3.30","Požární klapka DN125 se servopohonem 230V,s pružinou (s havarijní funkcí), termoelektrické čidlo, koncové spínače; vč. montáže; požární odolnost EI120S","ks",1,null,null,311]
["PK 3.31","Požární klapka DN160 se servopohonem 230V,s pružinou (s havarijní funkcí), termoelektrické čidlo, koncové spínače; vč. montáže; požární odolnost EI120S","ks",1,null,null,311]
["PK 3.32","Požární klapka DN160 se servopohonem 230V,s pružinou (s havarijní funkcí), termoelektrické čidlo, koncové spínače; vč. montáže; požární odolnost EI120S","ks",1,null,null,311]
["PK 3.33","Požární stěnový uzávěr 200x200, \ns pružinou (s havarijní funkcí), tavná pojistka při 72 °C; vč. montáže","ks",1,null,null,311]
[null,"Přívodní potrubí",null,null,null,null,400]
[null,"Čtyřhranné potrubí z pozinkovaného plechu SK I., včetně příslušenství, včetně montáže, prořez 20%, třída těsnosti B:",null,null,null,null,409]
[null,"Čtyřhranné potrubí do obv. 650 vč 100 % tvarovek","m2",1,null,null,410]
[null,"Čtyřhranné potrubí do obv. 1050 vč 30 % tvarovek","m2",106,null,null,410]
[null,"Čtyřhranné potrubí do obv. 1500 vč 60 % tvarovek","m2",42,null,null,410]
[null,"Čtyřhranné potrubí do obv. 1890 vč 60 % tvarovek","m2",13,null,null,410]
[null,"Čtyřhranné potrubí do obv. 2630 vč 20 % tvarovek","m2",130,null,null,410]
[null,"Čtyřhranné potrubí do obv. 3500 vč 80 % tvarovek","m2",14,null,null,410]
[null,"Čtyřhranné potrubí do obv. 4460 vč 60 % tvarovek","m2",3,null,null,410]
[null,"Čtyřhranné potrubí do obv. 5600 vč 100 % tvarovek","m2",2,null,null,410]
[null,"Kruhové potrubí SPIRO z oboustraně pozinkovaného plechu, včetně příslušenství, včetně montáže, prořez 20%, třída těsnosti C:",null,null,null,null,419]
[null,"Kruhové potrubí Ø180 vč. 20 % tvarovek","bm",1,null,null,420]
[null,"Kruhové potrubí Ø200 vč. 20 % tvarovek","bm",9,null,null,420]
[null,"Kruhové potrubí Ø250 vč. 20 % tvarovek","bm",3,null,null,420]
[null,"Kruhové potrubí Ø125 vč. 20 % tvarovek","bm",10,null,null,420]
[null,"Kruhové potrubí Ø100 vč. 20 % tvarovek","bm",49,null,null,420]
[null,"Kruhové potrubí Ø160 vč. 40 % tvarovek","bm",22,null,null,420]
[null,"Odvodní potrubí",null,null,null,null,500]
[null,"Čtyřhranné potrubí z pozinkovaného plechu SK I., včetně příslušenství, včetně montáže, prořez 20%, třída těsnosti B:",null,null,null,null,509]
[null,"Čtyřhranné potrubí do obv. 650 vč 70 % tvarovek","m2",50,null,null,510]
[null,"Čtyřhranné potrubí do obv. 1050 vč 20 % tvarovek","m2",25,null,null,510]
[null,"Čtyřhranné potrubí do obv. 1500 vč 50 % tvarovek","m2",30,null,null,510]
[null,"Čtyřhranné potrubí do obv. 1890 vč 20 % tvarovek","m2",33,null,null,510]
[null,"Čtyřhranné potrubí do obv. 2630 vč 20 % tvarovek","m2",63,null,null,510]
[null,"Čtyřhranné potrubí do obv. 3500 vč 30 % tvarovek","m2",93,null,null,510]
[null,"Čtyřhranné potrubí do obv. 4460 vč 40 % tvarovek","m2",4,null,null,510]
[null,"Čtyřhranné potrubí do obv. 5600 vč 90 % tvarovek","m2",4,null,null,510]
[null,"Kruhové potrubí SPIRO z oboustraně pozinkovaného plechu, včetně příslušenství, včetně montáže, prořez 20%, třída těsnosti C:",null,null,null,null,519]
[null,"Kruhové potrubí Ø250 vč. 20 % tvarovek","bm",1,null,null,520]
[null,"Kruhové potrubí Ø200 vč. 30 % tvarovek","bm",6,null,null,520]
[null,"Kruhové potrubí Ø100 vč. 20 % tvarovek","bm",18,null,null,520]
[null,"Kruhové potrubí Ø160 vč. 20 % tvarovek","bm",20,null,null,520]
[null,"Kruhové potrubí Ø125 vč. 20 % tvarovek","bm",30,null,null,520]
[null,"Kruhové potrubí Ø180 vč. 20 % tvarovek","bm",189,null,null,520]
[null,"Ohybné potrubí:",null,null,null,null,900]
[null,"Ohebná hadice ø100 mm","bm",4,null,null,910]
[null,"Ohebná hadice ø160 mm","bm",6,null,null,910]
[null,"Ohebná hadice ø180 mm","bm",8,null,null,910]
[null,"Ohebná hadice ø200 mm","bm",5,null,null,910]
[null,"Ohebná hadice izolovaná ø125 mm, tl. izolace 25mm (skelná vata)","bm",5,null,null,910]
[null,"Ohebná hadice izolovaná ø160 mm, tl. izolace 25mm (skelná vata)","bm",1,null,null,910]
[null,"Ohebná hadice izolovaná ø180 mm, tl. izolace 25mm (skelná vata)","bm",4,null,null,910]
[null,"Ohebná hadice izolovaná ø200 mm, tl. izolace 25mm (skelná vata)","bm",3,null,null,910]
[null,"Ohebná hadice izolovaná ø250 mm, tl. izolace 25mm (skelná vata)","bm",6,null,null,910]
[null,"Izolace potrubí:",null,null,null,null,1000]
[null,"Tepelná izolace s oplechováním 80 mm z čedičové vlny na vyztuženou Al fólii + oplechování ze Zn plechu pro venkovní prostředí; role, samolepící, přelepení spojů Al páskou; plechové spoje vytmeleny, vč. montáže ","m2",44,null,null,1010]
[null,"Tepelná izolace 40 mm z čedičové vlny na vyztuženou Al fólii; role, samolepící, přelepení spojů Al páskou; vč. montáže","m2",305,null,null,1010]
[null,"Požární izolace z čedičové vlny,  EI 90 min, působení ohně typu B","m2",257,null,null,1010]
[null,"Požární izolace z čedičové vlny,  EI 60 min, působení ohně typu B","m2",20,null,null,1010]
[null,"Ostatní",null,null,null,null,5000]
[null,"Upevňovací, těsnicí, montážní, závěsné a pomocné materiály ","kg",450,null,null,5010]
[null,"Dotěsnění prostupu atestovanou protipožární obložkou a tmelem vč. štítku \nVýchozí revize vč. vystavení evidenčního štítku založení knihy požárních elementů","ks",33,null,null,5010]
[null,"\"Kompletní montáž včetně lešení, vyrovnání, regulace systému \nvčetně regulačního protokolu, zaškolení obsluhy a předání systému ","hod",453,null,null,5010]
["ZAŘ.3","Celkem za ZAŘ.3",null,null,null,null,1]
["ZAŘ.4","Větrání karantény",null,null,null,null,1]
["4.01","VZT podstropní jednotka, vč. el. ohřívače a ovladače. Povrchová úprava plechu panelu vnějšího a vnitřního pláště VZT jednotek ocelový pozinkovaný plech, izolace panelů nehořlavá minerální vlna tloušťky 30 mm, SFP 1,706 kW/m³/s, Třída filtrace přívod  ePM1 60%, odvod ePM10 60%, protiproudý výměník tepla, plynulá napěťová regulace ventilátoru, zařízení splňuje nařízení o ecodesignu platné od 1.1.2018. VZT jednotka je kompletně vybavena systémem MaR s vestavěným řídícím systémem, včetně všech čidel a uzavíracích klapek se servopohony a externího ovladače s 6m kabelem. S možností připojení na centrální monitoring.Přesné parametry dle tabulky výkonů.\n Umístění 5.NP","ks",1,null,null,110]
["4.02","Tlumič kruhový DN125 -600mm , \nvč. hlukové izolace z minerální vlny tl. 60mm s Al fólií (součinitel útlumu 0,81) ","ks",2,null,null,210]
["4.03","Stěnový rezidenční difuzor, čtyřhranný napojení DN 160, \nOdnímatelná přední deska, nízká hladina hluku, proudění vzduchu bez pocitu průvanu, přesné nastavení přímo na plášti prvku, RAL bude vyvzorkováno při realizaci stavby, vč. montáže","ks",2,null,null,310]
["4.04","Talířový ventil 125 , vč. montážního rámečku DN125, RAL bude vyvzorkováno při realizaci stavby, vč. montáže","ks",1,null,null,310]
["4.05","Talířový ventil 100 , vč. montážního rámečku DN100, RAL bude vyvzorkováno při realizaci stavby, vč. montáže","ks",2,null,null,310]
[null,"Přívodní potrubí",null,null,null,null,400]
[null,"Kruhové potrubí SPIRO z oboustraně pozinkovaného plechu, včetně příslušenství, včetně montáže, prořez 20%, třída těsnosti C:",null,null,null,null,419]
[null,"Kruhové potrubí Ø160 vč. 20 % tvarovek","bm",1,null,null,420]
[null,"Kruhové potrubí Ø100 vč. 30 % tvarovek","bm",2,null,null,420]
[null,"Kruhové potrubí Ø125 vč. 20 % tvarovek","bm",13,null,null,420]
[null,"Kruhové potrubí Ø200 vč. 20 % tvarovek","bm",1,null,null,420]
[null,"Odvodní potrubí",null,null,null,null,500]
[null,"Kruhové potrubí SPIRO z oboustraně pozinkovaného plechu, včetně příslušenství, včetně montáže, prořez 20%, třída těsnosti C:",null,null,null,null,519]
[null,"Kruhové potrubí Ø100 vč. 30 % tvarovek","bm",3,null,null,520]
[null,"Kruhové potrubí Ø125 vč. 20 % tvarovek","bm",16,null,null,520]
[null,"Kruhové potrubí Ø200 vč. 20 % tvarovek","bm",1,null,null,520]
[null,"Ohybné potrubí:",null,null,null,null,900]
[null,"Ohebná hadice izolovaná ø100 mm, tl. izolace 25mm (skelná vata)","bm",4,null,null,910]
[null,"Ohebná hadice izolovaná ø125 mm, tl. izolace 25mm (skelná vata)","bm",5,null,null,910]
[null,"Izolace potrubí:",null,null,null,null,1000]
[null,"Ostatní",null,null,null,null,5000]
[null,"Upevňovací, těsnicí, montážní, závěsné a pomocné materiály ","kg",13,null,null,5010]
[null,"\"Kompletní montáž včetně lešení, vyrovnání, regulace systému \nvčetně regulačního protokolu, zaškolení obsluhy a předání systému ","hod",18,null,null,5010]
["ZAŘ.4","Celkem za ZAŘ.4",null,null,null,null,1]
["ZAŘ.5","Větrání kanceláří",null,null,null,null,1]
["5.01","VZT jednotka pro přívod a odvod vzduchu s deskovým rekuperátorem ZZT; vnitřní provedení, včetně montáže, zařízení splňuje nařízení o ecodesignu platné od 1.1.2018 Přesné parametry dle tabulky výkonů, funkčhího schématu a popisu standardů. Umístění 1.PP","ks",1,null,null,110]
["5.02","Buňkový tlumič čtyřhranný  800x300-1500mm, 1xbuňka 200/300/1500, 2X buňka 300/300/1500 , vč. hlukové Izolace z minerální vlny tl.60mm s Al fóliou (součinitel útlmu 0,81) ","ks",1,null,null,210]
["5.03","Buňkový tlumič čtyřhranný  800x300-1000mm, 1x buňka 200/300/1000, 2x buňka 300/300/1000 , vč. hlukové Izolace z minerální vlny tl.60mm s Al fóliou (součinitel útlmu 0,81) ","ks",1,null,null,210]
["5.04","Buňkový tlumič čtyřhranný  800x300-1500mm 1x buňka, 200/300/1500, 2x buňka 300/300/1500 , vč. hlukové Izolace z minerální vlny tl.60mm s Al fóliou (součinitel útlmu 0,81) ","ks",1,null,null,210]
["5.05","Buňkový tlumič čtyřhranný  900x300-1000mm, 3x buňka 300/300/1000 , \nvč. hlukové Izolace z minerální vlny tl.60mm s Al fóliou (součinitel útlmu 0,81) ","ks",1,null,null,210]
["5.06","Buňkový tlumič čtyřhranný  900x300-1500mm, 3x buňka 300/300/1500 , \nvč. hlukové Izolace z minerální vlny tl.60mm s Al fóliou (součinitel útlmu 0,81) ","ks",1,null,null,210]
["5.07","Regulačná klapka kruhová s ručným ovládaním DN160","ks",1,null,null,210]
["5.08","Regulačná klapka kruhová s ručným ovládaním DN125","ks",1,null,null,210]
["5.09","Vířívý anemostat s čtvercovou čelní deskou přívodní  600x600-40 , s plenum boxem s horizontálním připojením DN250-s regulací, RAL bude vyvzorkováno při realizaci stavby, vč. montáže","ks",1,null,null,310]
["5.10","Vířívý anemostat s čtvercovou čelní deskou odvodní 600x600-40 , s plenum boxem s horizontálním připojením DN250- s regulací, RAL bude vyvzorkováno při realizaci stavby, vč. montáže","ks",1,null,null,310]
["5.11","Vířívý anemostat s čtvercovou čelní deskou přívodní  400x400-16 , s plenum boxem s horizontálním připojením DN200-s regulací, RAL bude vyvzorkováno při realizaci stavby, vč. montáže","ks",3,null,null,310]
["5.12","Vířívý anemostat s čtvercovou čelní deskou přívodní  400x400-16 , s plenum boxem s horizontálním připojením DN160-s regulací, RAL bude vyvzorkováno při realizaci stavby, vč. montáže","ks",4,null,null,310]
["5.13","Vířívý anemostat s čtvercovou čelní deskou odvodní 400x400-16 , s plenum boxem s horizontálním připojením DN160- s regulací, RAL bude vyvzorkováno při realizaci stavby, vč. montáže","ks",4,null,null,310]
["5.14","Vířívý anemostat s čtvercovou čelní deskou přívodní  400x400-16 , s plenum boxem s horizontálním připojením DN125-s regulací, RAL bude vyvzorkováno při realizaci stavby, vč. montáže","ks",11,null,null,310]
["5.15","Vířívý anemostat s čtvercovou čelní deskou odvodní 400x400-16 , s plenum boxem s horizontálním připojením DN125- s regulací, RAL bude vyvzorkováno při realizaci stavby, vč. montáže","ks",9,null,null,310]
["5.16","Vyústka do čtyřhranného potrubí přívodní dvouřadá   s nast. lamelami 500x200 , bez regulace , RAL bude vyvzorkováno při realizaci stavby, vč. montáže","ks",2,null,null,310]
["5.17","Vyústka do čtyřhranného potrubí odvodní jednořadá 300x100 , bez regulace , RAL bude vyvzorkováno při realizaci stavby, vč. montáže","ks",4,null,null,310]
["5.18","Talířový ventil 200 , vč. montážního rámečku DN200, RAL bude vyvzorkováno při realizaci stavby, vč. montáže","ks",1,null,null,310]
["5.19","Talířový ventil 160 , vč. montážního rámečku DN160, RAL bude vyvzorkováno při realizaci stavby, vč. montáže","ks",1,null,null,310]
["5.20","Talířový ventil 125 , vč. montážního rámečku DN125, RAL bude vyvzorkováno při realizaci stavby, vč. montáže","ks",2,null,null,310]
["5.21","Talířový ventil 100 , vč. montážního rámečku DN100, RAL bude vyvzorkováno při realizaci stavby, vč. montáže","ks",20,null,null,310]
["5.22","Výfuková hlavice hranatá 500x280","ks",1,null,null,310]
["PK 5.01","Požární klapka 630x280  se servopohonem 230V,s pružinou (s havarijní funkcí), termoelektrické čidlo, koncové spínače; vč. montáže; požární odolnost EI120S","ks",1,null,null,311]
["PK 5.02","Požární klapka 630x250 se servopohonem 230V,s pružinou (s havarijní funkcí), termoelektrické čidlo, koncové spínače; vč. montáže; požární odolnost EI120S","ks",1,null,null,311]
["PK 5.03","Požární klapka 630x250 se servopohonem 230V,s pružinou (s havarijní funkcí), termoelektrické čidlo, koncové spínače; vč. montáže; požární odolnost EI120S","ks",1,null,null,311]
["PK 5.04","Požární klapka 400x400  se servopohonem 230V,s pružinou (s havarijní funkcí), termoelektrické čidlo, koncové spínače; vč. montáže; požární odolnost EI120S","ks",1,null,null,311]
["PK 5.05","Požární klapka 630x250 se servopohonem 230V,s pružinou (s havarijní funkcí), termoelektrické čidlo, koncové spínače; vč. montáže; požární odolnost EI120S","ks",1,null,null,311]
["PK 5.06","Požární klapka 560x315  se servopohonem 230V,s pružinou (s havarijní funkcí), termoelektrické čidlo, koncové spínače; vč. montáže; požární odolnost EI120S","ks",1,null,null,311]
["PK 5.07","Požární klapka 560x250  se servopohonem 230V,s pružinou (s havarijní funkcí), termoelektrické čidlo, koncové spínače; vč. montáže; požární odolnost EI120S","ks",1,null,null,311]
["PK 5.08","Požární klapka  630x200  se servopohonem 230V,s pružinou (s havarijní funkcí), termoelektrické čidlo, koncové spínače; vč. montáže; požární odolnost EI120S","ks",1,null,null,311]
["PK 5.09","Požární klapka 355x200 se servopohonem 230V,s pružinou (s havarijní funkcí), termoelektrické čidlo, koncové spínače; vč. montáže; požární odolnost EI120S","ks",1,null,null,311]
["PK 5.10","Požární klapka 560x250  se servopohonem 230V,s pružinou (s havarijní funkcí), termoelektrické čidlo, koncové spínače; vč. montáže; požární odolnost EI120S","ks",1,null,null,311]
["PK 5.11","Požární klapka630x200  se servopohonem 230V,s pružinou (s havarijní funkcí), termoelektrické čidlo, koncové spínače; vč. montáže; požární odolnost EI120S","ks",1,null,null,311]
["PK 5.12","Požární klapka 400x200  se servopohonem 230V,s pružinou (s havarijní funkcí), termoelektrické čidlo, koncové spínače; vč. montáže; požární odolnost EI120S","ks",1,null,null,311]
["PK 5.13","Požární klapka 400x200 se servopohonem 230V,s pružinou (s havarijní funkcí), termoelektrické čidlo, koncové spínače; vč. montáže; požární odolnost EI120S","ks",1,null,null,311]
["PK 5.14","Požární klapka400x200  se servopohonem 230V,s pružinou (s havarijní funkcí), termoelektrické čidlo, koncové spínače; vč. montáže; požární odolnost EI120S","ks",1,null,null,311]
["PK 5.15","Požární klapka 400x200  se servopohonem 230V,s pružinou (s havarijní funkcí), termoelektrické čidlo, koncové spínače; vč. montáže; požární odolnost EI120S","ks",1,null,null,311]
["PK 5.16","Požární klapka 280x200 se servopohonem 230V,s pružinou (s havarijní funkcí), termoelektrické čidlo, koncové spínače; vč. montáže; požární odolnost EI120S","ks",1,null,null,311]
["PK 5.17","Požární klapka 280x200  se servopohonem 230V,s pružinou (s havarijní funkcí), termoelektrické čidlo, koncové spínače; vč. montáže; požární odolnost EI120S","ks",1,null,null,311]
[null,"Přívodní potrubí",null,null,null,null,400]
[null,"Čtyřhranné potrubí z pozinkovaného plechu SK I., včetně příslušenství, včetně montáže, prořez 20%, třída těsnosti B:",null,null,null,null,409]
[null,"Čtyřhranné potrubí do obv. 650 vč 100 % tvarovek","m2",1,null,null,410]
[null,"Čtyřhranné potrubí do obv. 1050 vč 30 % tvarovek","m2",37,null,null,410]
[null,"Čtyřhranné potrubí do obv. 1500 vč 20 % tvarovek","m2",56,null,null,410]
[null,"Čtyřhranné potrubí do obv. 1890 vč 30 % tvarovek","m2",127,null,null,410]
[null,"Čtyřhranné potrubí do obv. 2630 vč 80 % tvarovek","m2",15,null,null,410]
[null,"Čtyřhranné potrubí do obv. 3500 vč 100 % tvarovek","m2",4,null,null,410]
[null,"Kruhové potrubí SPIRO z oboustraně pozinkovaného plechu, včetně příslušenství, včetně montáže, prořez 20%, třída těsnosti C:",null,null,null,null,419]
[null,"Kruhové potrubí Ø250 vč. 90 % tvarovek","bm",1,null,null,420]
[null,"Kruhové potrubí Ø125 vč. 20 % tvarovek","bm",10,null,null,420]
[null,"Kruhové potrubí Ø200 vč. 20 % tvarovek","bm",9,null,null,420]
[null,"Kruhové potrubí Ø100 vč. 20 % tvarovek","bm",12,null,null,420]
[null,"Kruhové potrubí Ø160 vč. 20 % tvarovek","bm",22,null,null,420]
[null,"Odvodní potrubí",null,null,null,null,500]
[null,"Čtyřhranné potrubí z pozinkovaného plechu SK I., včetně příslušenství, včetně montáže, prořez 20%, třída těsnosti B:",null,null,null,null,509]
[null,"Čtyřhranné potrubí do obv. 650 vč 100 % tvarovek","m2",1,null,null,510]
[null,"Čtyřhranné potrubí do obv. 1050 vč 30 % tvarovek","m2",24,null,null,510]
[null,"Čtyřhranné potrubí do obv. 1500 vč 20 % tvarovek","m2",63,null,null,510]
[null,"Čtyřhranné potrubí do obv. 1890 vč 30 % tvarovek","m2",153,null,null,510]
[null,"Čtyřhranné potrubí do obv. 2630 vč 70 % tvarovek","m2",15,null,null,510]
[null,"Čtyřhranné potrubí do obv. 3500 vč. 30 % tvarovek","m2",4,null,null,510]
[null,"Kruhové potrubí SPIRO z oboustraně pozinkovaného plechu, včetně příslušenství, včetně montáže, prořez 20%, třída těsnosti C:",null,null,null,null,519]
[null,"Kruhové potrubí Ø250 vč. 80 % tvarovek","bm",1,null,null,520]
[null,"Kruhové potrubí Ø200 vč. 60 % tvarovek","bm",3,null,null,520]
[null,"Kruhové potrubí Ø160 vč. 20 % tvarovek","bm",8,null,null,520]
[null,"Kruhové potrubí Ø180 vč. 30 % tvarovek","bm",8,null,null,520]
[null,"Kruhové potrubí Ø100 vč. 20 % tvarovek","bm",33,null,null,520]
[null,"Kruhové potrubí Ø125 vč. 30 % tvarovek","bm",26,null,null,520]
[null,"Ohybné potrubí:",null,null,null,null,900]
[null,"Ohebná hadice ø100 mm","bm",21,null,null,910]
[null,"Ohebná hadice ø125 mm","bm",8,null,null,910]
[null,"Ohebná hadice ø160 mm","bm",6,null,null,910]
[null,"Ohebná hadice ø250 mm","bm",1,null,null,910]
[null,"Ohebná hadice izolovaná ø100 mm, tl. izolace 25mm (skelná vata)","bm",5,null,null,910]
[null,"Ohebná hadice izolovaná ø125 mm, tl. izolace 25mm (skelná vata)","bm",10,null,null,910]
[null,"Ohebná hadice izolovaná ø160 mm, tl. izolace 25mm (skelná vata)","bm",12,null,null,910]
[null,"Ohebná hadice izolovaná ø250 mm, tl. izolace 25mm (skelná vata)","bm",2,null,null,910]
[null,"Izolace potrubí:",null,null,null,null,1000]
[null,"Tepelná izolace 40 mm z čedičové vlny na vyztuženou Al fólii; role, samolepící, přelepení spojů Al páskou; vč. montáže","m2",377,null,null,1010]
[null,"Tepelná izolace 80 mm z čedičové vlny na vyztuženou Al fólii; role, samolepící, přelepení spojů Al páskou; vč. montáže","m2",17,null,null,1010]
[null,"Požární izolace z čedičové vlny,  EI 90 min, působení ohně typu B","m2",73,null,null,1010]
[null,"Ostatní",null,null,null,null,5000]
[null,"Upevňovací, těsnicí, montážní, závěsné a pomocné materiály ","kg",265,null,null,5010]
[null,"Dotěsnění prostupu atestovanou protipožární obložkou a tmelem vč. štítku \nVýchozí revize vč. vystavení evidenčního štítku založení knihy požárních elementů","ks",17,null,null,5010]
[null,"\"Kompletní montáž včetně lešení, vyrovnání, regulace systému \nvčetně regulačního protokolu, zaškolení obsluhy a předání systému ","hod",415,null,null,5010]
["ZAŘ.5","Celkem za ZAŘ.5",null,null,null,null,1]
["ZAŘ.6","Větrání kuchyně a jídelny",null,null,null,null,1]
["6.01","VZT jednotka pro přívod a odvod vzduchu s deskovým rekuperátorem ZZT; vnitřní provedení, včetně montáže, zařízení splňuje nařízení o ecodesignu platné od 1.1.2018 Přesné parametry dle tabulky výkonů, funkčhího schématu a popisu standardů. Umístění 1.PP","ks",1,null,null,110]
["6.02","Odsavač par prostorový, nerezový zákryt, vč. tukových filtrů, odtokové vaničky, osvětlení a regulační klapky.Vyrobeno z nerezového plechu A304, 2350 m³/h,  2000x2000mm, Umístění 1.NP","ks",2,null,null,110]
["6.03","Odsavač par nástěnný, nerezový zákryt, vč. tukových filtrů, odtokové vaničky, osvětlení a regulační klapky.Vyrobeno z nerezového plechu A304, 2350 m³/h,  800 m³/h,  1000x1200mm, Umístění 1.NP","ks",1,null,null,110]
["6.04","Odsavač par poprostorový, nerezový zákryt, vč. tukových filtrů, odtokové vaničky, osvětlení a regulační klapky.Vyrobeno z nerezového plechu A304, 800 m³/h,  1000x1200mm, Umístění 1.NP","ks",1,null,null,110]
["6.05","Odsavač par poprostorový, nerezový zákryt, vč. tukových filtrů, odtokové vaničky, osvětlení a regulační klapky.Vyrobeno z nerezového plechu A304, 800 m³/h,  1000x1400mm, Umístění 1.NP","ks",1,null,null,110]
["6.06","Odsavač par poprostorový, nerezový zákryt, vč. tukových filtrů, odtokové vaničky, osvětlení a regulační klapky.Vyrobeno z nerezového plechu A304, 1000 m³/h,  900x1800mm, Umístění 1.NP","ks",1,null,null,110]
["6.02","Buňkový tlumič čtyřhranný  1200x900-1000mm, 12x buňka 300/300/1000 , \nvč. hlukové Izolace z minerální vlny tl.60mm s Al fóliou (součinitel útlmu 0,81) ","ks",1,null,null,210]
["6.08","Buňkový tlumič čtyřhranný  1200x900-1000mm, 12xbuňka300/300/1000, \nvč. hlukové Izolace z minerální vlny tl.60mm s Al fóliou (součinitel útlmu 0,81) ","ks",1,null,null,210]
["6.09","Buňkový tlumič čtyřhranný  1200x800-1500mm,4x buňka 200/300/1500, 8x buňka 300/300/1500 , vč. hlukové Izolace z minerální vlny tl.60mm s Al fóliou (součinitel útlmu 0,81) ","ks",1,null,null,210]
["6.10","Buňkový tlumič čtyřhranný  1200x800-1000mm, 4x buňka 200/300/1000, 8x buňka 300/300/1000 , vč. hlukové Izolace z minerální vlny tl.60mm s Al fóliou (součinitel útlmu 0,81) ","ks",1,null,null,210]
["6.11","Buňkový tlumič čtyřhranný  1200x900-1000mm, 4x buňka 200/500/1000, 4x buňka 250/500/1000, 3x buňka 200/300/1000 , \nvč. hlukové Izolace z minerální vlny tl.60mm s Al fóliou (součinitel útlmu 0,81) ","ks",1,null,null,210]
["6.12","Regulační klapka čtyřhranná s ručním ovládáním    280x200","ks",1,null,null,210]
["6.13","Regulační klapka čtyřhranná s ručním ovládáním    1200x400","ks",1,null,null,210]
["6.14","Regulační klapka čtyřhranná s ručním ovládáním    500x400","ks",2,null,null,210]
["6.15","Regulační klapka čtyřhranná s ručním ovládáním    280x250","ks",1,null,null,210]
["6.16","Regulační klapka čtyřhranná s ručním ovládáním    315x200","ks",1,null,null,210]
["6.17","Regulačná klapka kruhová s ručným ovládaním DN200","ks",1,null,null,210]
["6.18","Regulačná klapka kruhová s ručným ovládaním DN100","ks",1,null,null,210]
["6.19","Vířívý anemostat s čtvercovou čelní deskou přívodní  600x600-40 , s plenum boxem s horizontálním připojením DN250-s regulací, RAL bude vyvzorkováno při realizaci stavby, vč. montáže","ks",9,null,null,310]
["6.20","Vyústka do čtyřhranného potrubí přívodní dvouřadá  s nast. lamelami 600x300 ,  s regulací , RAL bude vyvzorkováno při realizaci stavby, vč. montáže","ks",3,null,null,310]
["6.21","Vyústka do čtyřhranného potrubí přívodní dvouřadá  s nast. lamelami 600x200 ,  s regulací , RAL bude vyvzorkováno při realizaci stavby, vč. montáže","ks",5,null,null,310]
["6.22","Vyústka do čtyřhranného potrubí přívodní dvouřadá  s nast. lamelami 200x100 ,  s regulací , RAL bude vyvzorkováno při realizaci stavby, vč. montáže","ks",4,null,null,310]
["6.23","Mřížka odvodní jednořadá 400x100, RAL bude vyvzorkováno při realizaci stavby, vč. montáže","ks",3,null,null,310]
["6.24","Vyústka do čtyřhranného potrubí odvodní jednořadá 200x100 ,  s regulací , RAL bude vyvzorkováno při realizaci stavby, vč. montáže","ks",4,null,null,310]
["6.25","Talířový ventil 200 , vč. montážního rámečku DN200, RAL bude vyvzorkováno při realizaci stavby, vč. montáže","ks",2,null,null,310]
["6.26","Talířový ventil 160 , vč. montážního rámečku DN160, RAL bude vyvzorkováno při realizaci stavby, vč. montáže","ks",1,null,null,310]
["6.26","Talířový ventil 160 , vč. montážního rámečku DN160, RAL bude vyvzorkováno při realizaci stavby, vč. montáže","ks",1,null,null,310]
["6.27","Talířový ventil 125 , vč. montážního rámečku DN125, RAL bude vyvzorkováno při realizaci stavby, vč. montáže","ks",1,null,null,310]
["6.27","Talířový ventil 125 , vč. montážního rámečku DN125, RAL bude vyvzorkováno při realizaci stavby, vč. montáže","ks",1,null,null,310]
["6.28","Talířový ventil 100 , vč. montážního rámečku DN100, RAL bude vyvzorkováno při realizaci stavby, vč. montáže","ks",13,null,null,310]
["6.29","Krycí mřížka KM 850x450","ks",2,null,null,310]
["6.30","Krycí mřížka KM DN160","ks",1,null,null,310]
["PK 6.01","Požární klapka 1250x400 se servopohonem 230V,s pružinou (s havarijní funkcí), termoelektrické čidlo, koncové spínače; vč. montáže; požární odolnost EI120S","ks",1,null,null,311]
["PK 6.02","Požární klapka 1000x400 se servopohonem 230V,s pružinou (s havarijní funkcí), termoelektrické čidlo, koncové spínače; vč. montáže; požární odolnost EI120S","ks",1,null,null,311]
["PK 6.03","Požární klapka 1250x400 se servopohonem 230V,s pružinou (s havarijní funkcí), termoelektrické čidlo, koncové spínače; vč. montáže; požární odolnost EI120S","ks",1,null,null,311]
["PK 6.04","Požární klapka 1250x400 se servopohonem 230V,s pružinou (s havarijní funkcí), termoelektrické čidlo, koncové spínače; vč. montáže; požární odolnost EI120S","ks",1,null,null,311]
["PK 6.05","Požární klapka 1250x400 se servopohonem 230V,s pružinou (s havarijní funkcí), termoelektrické čidlo, koncové spínače; vč. montáže; požární odolnost EI120S","ks",1,null,null,311]
["PK 6.06","Požární klapka 710x400 se servopohonem 230V,s pružinou (s havarijní funkcí), termoelektrické čidlo, koncové spínače; vč. montáže; požární odolnost EI120S","ks",1,null,null,311]
["PK 6.07","Požární stěnový uzávěr 600x400, \ns pružinou (s havarijní funkcí), tavná pojistka při 72 °C; vč. montáže","ks",1,null,null,311]
["PK 6.08","Požární stěnový uzávěr 600x400, \ns pružinou (s havarijní funkcí), tavná pojistka při 72 °C; vč. montáže s tavnou pojistkou","ks",1,null,null,311]
["PK 6.09","Požární stěnový uzávěr 600x400, \ns pružinou (s havarijní funkcí), tavná pojistka při 72 °C; vč. montáže s tavnou pojistkou","ks",1,null,null,311]
["PK 6.10","Požární stěnový uzávěr 600x200, \ns pružinou (s havarijní funkcí), tavná pojistka při 72 °C; vč. montáže","ks",1,null,null,311]
[null,"Přívodní potrubí",null,null,null,null,400]
[null,"Čtyřhranné potrubí z pozinkovaného plechu SK I., včetně příslušenství, včetně montáže, prořez 20%, třída těsnosti B:",null,null,null,null,409]
[null,"Čtyřhranné potrubí do obv. 650 vč 50 % tvarovek","m2",23,null,null,410]
[null,"Čtyřhranné potrubí do obv. 1050 vč 80 % tvarovek","m2",6,null,null,410]
[null,"Čtyřhranné potrubí do obv. 1500 vč 50 % tvarovek","m2",43,null,null,410]
[null,"Čtyřhranné potrubí do obv. 1890 vč 40 % tvarovek","m2",21,null,null,410]
[null,"Čtyřhranné potrubí do obv. 2630 vč 30 % tvarovek","m2",56,null,null,410]
[null,"Čtyřhranné potrubí do obv. 3500 vč 50 % tvarovek","m2",84,null,null,410]
[null,"Čtyřhranné potrubí do obv. 4000 vč 60 % tvarovek","m2",71,null,null,410]
[null,"Čtyřhranné potrubí do obv. 4460 vč 80 % tvarovek","m2",9,null,null,410]
[null,"Čtyřhranné potrubí do obv. 6800 vč. 90 % tvarovek","m2",5,null,null,410]
[null,"Kruhové potrubí SPIRO z oboustraně pozinkovaného plechu, včetně příslušenství, včetně montáže, prořez 20%, třída těsnosti C:",null,null,null,null,419]
[null,"Kruhové potrubí Ø125 vč. 20 % tvarovek","bm",1,null,null,420]
[null,"Kruhové potrubí Ø100 vč. 20 % tvarovek","bm",5,null,null,420]
[null,"Kruhové potrubí Ø160 vč. 20 % tvarovek","bm",5,null,null,420]
[null,"Kruhové potrubí Ø250 vč. 20 % tvarovek","bm",6,null,null,420]
[null,"Odvodní potrubí",null,null,null,null,500]
[null,"Čtyřhranné potrubí z pozinkovaného plechu SK I., včetně příslušenství, včetně montáže, prořez 20%, třída těsnosti B:",null,null,null,null,509]
[null,"Čtyřhranné potrubí do obv. 650 vč 100 % tvarovek","m2",1,null,null,510]
[null,"Čtyřhranné potrubí do obv. 1050 vč 30 % tvarovek","m2",41,null,null,510]
[null,"Čtyřhranné potrubí do obv. 1500 vč 40 % tvarovek","m2",23,null,null,510]
[null,"Čtyřhranné potrubí do obv. 1890 vč 40 % tvarovek","m2",29,null,null,510]
[null,"Čtyřhranné potrubí do obv. 2630 vč 20 % tvarovek","m2",87,null,null,510]
[null,"Čtyřhranné potrubí do obv. 3500 vč 50 % tvarovek","m2",252,null,null,510]
[null,"Čtyřhranné potrubí do obv. 4460 vč 70 % tvarovek","m2",14,null,null,510]
[null,"Kruhové potrubí SPIRO z oboustraně pozinkovaného plechu, včetně příslušenství, včetně montáže, prořez 20%, třída těsnosti C:",null,null,null,null,519]
[null,"Kruhové potrubí Ø180 vč. 20 % tvarovek","bm",4,null,null,520]
[null,"Kruhové potrubí Ø200 vč. 20 % tvarovek","bm",5,null,null,520]
[null,"Kruhové potrubí Ø160 vč. 20 % tvarovek","bm",9,null,null,520]
[null,"Kruhové potrubí Ø125 vč. 20 % tvarovek","bm",7,null,null,520]
[null,"Kruhové potrubí Ø100 vč. 20 % tvarovek","bm",42,null,null,520]
[null,"Ohybné potrubí:",null,null,null,null,900]
[null,"Ohebná hadice ø100 mm","bm",3,null,null,910]
[null,"Ohebná hadice ø125 mm","bm",1,null,null,910]
[null,"Ohebná hadice ø200 mm","bm",2,null,null,910]
[null,"Ohebná hadice izolovaná ø100 mm, tl. izolace 25mm (skelná vata)","bm",1,null,null,910]
[null,"Ohebná hadice izolovaná ø250 mm, tl. izolace 25mm (skelná vata)","bm",14,null,null,910]
[null,"Izolace potrubí:",null,null,null,null,1000]
[null,"Tepelná izolace 40 mm z čedičové vlny na vyztuženou Al fólii; role, samolepící, přelepení spojů Al páskou; vč. montáže","m2",360,null,null,1010]
[null,"Tepelná izolace ze syntetického kaučuku 40 mm s uzavřenou buněčnou strukturou a s vysokým difuzním odporem páry; role, samolepící; vč. montáže - prořez 30%","m2",45,null,null,1010]
[null,"Tepelná izolace 80 mm z čedičové vlny na vyztuženou Al fólii; role, samolepící, přelepení spojů Al páskou; vč. montáže","m2",7,null,null,1010]
[null,"Ostatní",null,null,null,null,5000]
[null,"Upevňovací, těsnicí, montážní, závěsné a pomocné materiály ","kg",460,null,null,5010]
[null,"Dotěsnění prostupu atestovanou protipožární obložkou a tmelem vč. štítku \nVýchozí revize vč. vystavení evidenčního štítku založení knihy požárních elementů","ks",10,null,null,5010]
[null,"\"Kompletní montáž včetně lešení, vyrovnání, regulace systému \nvčetně regulačního protokolu, zaškolení obsluhy a předání systému ","hod",455,null,null,5010]
["ZAŘ.6","Celkem za ZAŘ.6",null,null,null,null,1]
["ZAŘ.7","Volné",null,null,null,null,1]
["ZAŘ.8","Větrání dílen",null,null,null,null,1]
["8.01","VZT jednotka pro přívod a odvod vzduchu s deskovým rekuperátorem ZZT; vnitřní provedení, včetně montáže, zařízení splňuje nařízení o ecodesignu platné od 1.1.2018 Přesné parametry dle tabulky výkonů, funkčhího schématu a popisu standardů. Umístění 1.PP","ks",1,null,null,110]
["8.02","Buňkový tlumič čtyřhranný  300x800-1000mm, 1x buňka 200/300/1000, 2x buňka300/300/1000 , vč. hlukové Izolace z minerální vlny tl.60mm s Al fóliou (součinitel útlmu 0,81) ","ks",1,null,null,210]
["8.03","Buňkový tlumič čtyřhranný  300x800-1000mm, 1x buňka 200/300/1000, 2x buňka300/300/1000 , vč. hlukové Izolace z minerální vlny tl.60mm s Al fóliou (součinitel útlmu 0,81) ","ks",1,null,null,210]
["8.04","Buňkový tlumič čtyřhranný  800x300-1500mm , 4x buňka 200/300/1500,\n vč. hlukové Izolace z minerální vlny tl.60mm s Al fóliou (součinitel útlmu 0,81) ","ks",1,null,null,210]
["8.05","Buňkový tlumič čtyřhranný  600x400-1000mm, 4x buňka 200/300/1000 , \nvč. hlukové Izolace z minerální vlny tl.60mm s Al fóliou (součinitel útlmu 0,81) ","ks",1,null,null,210]
["8.06","Buňkový tlumič čtyřhranný  800x400-1500mm, 2x buňka200/500/1500, 2x buňka 200/300/1500 , vč. hlukové Izolace z minerální vlny tl.60mm s Al fóliou (součinitel útlmu 0,81) ","ks",1,null,null,210]
["8.07","Regulačná klapka kruhová s ručným ovládaním DN160","ks",1,null,null,210]
["8.08","Regulačná klapka kruhová s ručným ovládaním DN100","ks",2,null,null,210]
["8.09","Vířívý anemostat s čtvercovou čelní deskou přívodní  600x600-40 , s plenum boxem s horizontálním připojením DN200-s regulací, RAL bude vyvzorkováno při realizaci stavby, vč. montáže","ks",1,null,null,310]
["8.10","Vířívý anemostat s čtvercovou čelní deskou odvodní 600x600-40 , s plenum boxem s horizontálním připojením DN250- s regulací, RAL bude vyvzorkováno při realizaci stavby, vč. montáže","ks",1,null,null,310]
["8.11","Vířívý anemostat s čtvercovou čelní deskou přívodní  400x400-16 , s plenum boxem s horizontálním připojením DN200-s regulací, RAL bude vyvzorkováno při realizaci stavby, vč. montáže","ks",5,null,null,310]
["8.12","Vířívý anemostat s čtvercovou čelní deskou odvodní 600x600-40 , s plenum boxem s horizontálním připojením DN200- s regulací, RAL bude vyvzorkováno při realizaci stavby, vč. montáže","ks",1,null,null,310]
["8.13","Vířívý anemostat s čtvercovou čelní deskou přívodní  400x400-16 , s plenum boxem s horizontálním připojením DN160-s regulací, RAL bude vyvzorkováno při realizaci stavby, vč. montáže","ks",1,null,null,310]
["8.14","Vířívý anemostat s čtvercovou čelní deskou odvodní 400x400-16 , s plenum boxem s horizontálním připojením DN200- s regulací, RAL bude vyvzorkováno při realizaci stavby, vč. montáže","ks",2,null,null,310]
["8.15","Vířívý anemostat s čtvercovou čelní deskou odvodní 400x400-16 , s plenum boxem s horizontálním připojením DN160- s regulací, RAL bude vyvzorkováno při realizaci stavby, vč. montáže","ks",1,null,null,310]
["8.16","Vířívý anemostat s čtvercovou čelní deskou přívodní  300x300-8 , s plenum boxem s horizontálním připojením DN125-s regulací, RAL bude vyvzorkováno při realizaci stavby, vč. montáže","ks",1,null,null,310]
["8.17","Vířívý anemostat s čtvercovou čelní deskou odvodní 300x300-8 , s plenum boxem s horizontálním připojením DN125- s regulací, RAL bude vyvzorkováno při realizaci stavby, vč. montáže","ks",1,null,null,310]
["8.18","Stěnový rezidenční difuzor, čtyřhranný napojení DN 160, \nOdnímatelná přední deska, nízká hladina hluku, proudění vzduchu bez pocitu průvanu, přesné nastavení přímo na plášti prvku, RAL bude vyvzorkováno při realizaci stavby, vč. montáže","ks",5,null,null,310]
["8.19","Vyústka do kruhového potrubí přívodní dvouřadá  s nast. lamelami 425x75 , RAL bude vyvzorkováno při realizaci stavby, vč. montáže","ks",2,null,null,310]
["8.20","Vyústka do kruhového potrubí přívodní dvouřadá s nast. lamelami 225x75 , RAL bude vyvzorkováno při realizaci stavby, vč. montáže","ks",4,null,null,310]
["8.22","Talířový ventil 200 , vč. montážního rámečku DN200, RAL bude vyvzorkováno při realizaci stavby, vč. montáže","ks",2,null,null,310]
["8.23","Talířový ventil 160 , vč. montážního rámečku DN160, RAL bude vyvzorkováno při realizaci stavby, vč. montáže","ks",5,null,null,310]
["8.23","Talířový ventil 160 , vč. montážního rámečku DN160, RAL bude vyvzorkováno při realizaci stavby, vč. montáže","ks",1,null,null,310]
["8.24","Talířový ventil 125 , vč. montážního rámečku DN125, RAL bude vyvzorkováno při realizaci stavby, vč. montáže","ks",3,null,null,310]
["8.24","Talířový ventil 125 , vč. montážního rámečku DN125, RAL bude vyvzorkováno při realizaci stavby, vč. montáže","ks",2,null,null,310]
["8.25","Talířový ventil 100 , vč. montážního rámečku DN100, RAL bude vyvzorkováno při realizaci stavby, vč. montáže","ks",14,null,null,310]
["8.25","Talířový ventil 100 , vč. montážního rámečku DN100, RAL bude vyvzorkováno při realizaci stavby, vč. montáže","ks",4,null,null,310]
["8.26","Krycí mřížka KM DN125","ks",1,null,null,310]
["8.26","Krycí mřížka KM DN125","ks",1,null,null,310]
["8.27","Krycí mřížka KM DN100","ks",1,null,null,310]
["8.28","Výfuková hlavice hranatá 250x650","ks",1,null,null,310]
["PK 8.01","Požární klapka 600x250 se servopohonem 230V,s pružinou (s havarijní funkcí), termoelektrické čidlo, koncové spínače; vč. montáže; požární odolnost EI120S","ks",1,null,null,311]
["PK 8.02","Požární klapka 630x225 se servopohonem 230V,s pružinou (s havarijní funkcí), termoelektrické čidlo, koncové spínače; vč. montáže; požární odolnost EI120S","ks",1,null,null,311]
["PK 8.03","Požární klapka 600x300 se servopohonem 230V,s pružinou (s havarijní funkcí), termoelektrické čidlo, koncové spínače; vč. montáže; požární odolnost EI120S","ks",1,null,null,311]
["PK 8.04","Požární klapka 600x300 se servopohonem 230V,s pružinou (s havarijní funkcí), termoelektrické čidlo, koncové spínače; vč. montáže; požární odolnost EI120S","ks",1,null,null,311]
["PK 8.05","Požární klapka 710x180 se servopohonem 230V,s pružinou (s havarijní funkcí), termoelektrické čidlo, koncové spínače; vč. montáže; požární odolnost EI120S","ks",1,null,null,311]
["PK 8.06","Požární klapka 710x180 se servopohonem 230V,s pružinou (s havarijní funkcí), termoelektrické čidlo, koncové spínače; vč. montáže; požární odolnost EI120S","ks",1,null,null,311]
["PK 8.07","Požární klapka 400x200 se servopohonem 230V,s pružinou (s havarijní funkcí), termoelektrické čidlo, koncové spínače; vč. montáže; požární odolnost EI120S","ks",1,null,null,311]
["PK 8.08","Požární klapka 400x200 se servopohonem 230V,s pružinou (s havarijní funkcí), termoelektrické čidlo, koncové spínače; vč. montáže; požární odolnost EI120S","ks",1,null,null,311]
["PK 8.09","Požární stěnový uzávěr 200x200, \ns pružinou (s havarijní funkcí), tavná pojistka při 72 °C; vč. montáže s tavnou pojistkou","ks",1,null,null,311]
["PK 8.10","Požární klapka DN125 se servopohonem 230V,s pružinou (s havarijní funkcí), termoelektrické čidlo, koncové spínače; vč. montáže; požární odolnost EI120S","ks",1,null,null,311]
["PK 8.11","Požární klapka DN125 se servopohonem 230V,s pružinou (s havarijní funkcí), termoelektrické čidlo, koncové spínače; vč. montáže; požární odolnost EI120S","ks",1,null,null,311]
["PK 8.12","Požární klapka 500x180 se servopohonem 230V,s pružinou (s havarijní funkcí), termoelektrické čidlo, koncové spínače; vč. montáže; požární odolnost EI120S","ks",1,null,null,311]
["PK 8.13","Požární klapka 600x200 se servopohonem 230V,s pružinou (s havarijní funkcí), termoelektrické čidlo, koncové spínače; vč. montáže; požární odolnost EI120S","ks",1,null,null,311]
[null,"Přívodní potrubí",null,null,null,null,400]
[null,"Čtyřhranné potrubí z pozinkovaného plechu SK I., včetně příslušenství, včetně montáže, prořez 20%, třída těsnosti B:",null,null,null,null,409]
[null,"Čtyřhranné potrubí do obv. 650 vč 100 % tvarovek","m2",1,null,null,410]
[null,"Čtyřhranné potrubí do obv. 1050 vč 50 % tvarovek","m2",11,null,null,410]
[null,"Čtyřhranné potrubí do obv. 1500 vč 30 % tvarovek","m2",25,null,null,410]
[null,"Čtyřhranné potrubí do obv. 1890 vč 30 % tvarovek","m2",165,null,null,410]
[null,"Čtyřhranné potrubí do obv. 2630 vč 100 % tvarovek","m2",13,null,null,410]
[null,"Čtyřhranné potrubí do obv. 3500 vč. 30 % tvarovek","m2",3,null,null,410]
[null,"Kruhové potrubí SPIRO z oboustraně pozinkovaného plechu, včetně příslušenství, včetně montáže, prořez 20%, třída těsnosti C:",null,null,null,null,419]
[null,"Kruhové potrubí Ø200 vč. 20 % tvarovek","bm",1,null,null,420]
[null,"Kruhové potrubí Ø100 vč. 20 % tvarovek","bm",40,null,null,420]
[null,"Kruhové potrubí Ø125 vč. 20 % tvarovek","bm",43,null,null,420]
[null,"Kruhové potrubí Ø160 vč. 20 % tvarovek","bm",42,null,null,420]
[null,"Kruhové potrubí Ø180 vč. 20 % tvarovek","bm",1,null,null,420]
[null,"Odvodní potrubí",null,null,null,null,500]
[null,"Čtyřhranné potrubí z pozinkovaného plechu SK I., včetně příslušenství, včetně montáže, prořez 20%, třída těsnosti B:",null,null,null,null,509]
[null,"Čtyřhranné potrubí do obv. 650 vč 100 % tvarovek","m2",2,null,null,510]
[null,"Čtyřhranné potrubí do obv. 1050 vč 20 % tvarovek","m2",8,null,null,510]
[null,"Čtyřhranné potrubí do obv. 1500 vč 30 % tvarovek","m2",26,null,null,510]
[null,"Čtyřhranné potrubí do obv. 1890 vč 30 % tvarovek","m2",164,null,null,510]
[null,"Čtyřhranné potrubí do obv. 2630 vč 70 % tvarovek","m2",19,null,null,510]
[null,"Kruhové potrubí SPIRO z oboustraně pozinkovaného plechu, včetně příslušenství, včetně montáže, prořez 20%, třída těsnosti C:",null,null,null,null,519]
[null,"Kruhové potrubí Ø200 vč. 20 % tvarovek","bm",1,null,null,520]
[null,"Kruhové potrubí Ø250 vč. 20 % tvarovek","bm",1,null,null,520]
[null,"Kruhové potrubí Ø160 vč. 30 % tvarovek","bm",18,null,null,520]
[null,"Kruhové potrubí Ø125 vč. 20 % tvarovek","bm",24,null,null,520]
[null,"Kruhové potrubí Ø100 vč. 20 % tvarovek","bm",48,null,null,520]
[null,"Kruhové potrubí Ø180 vč. 20 % tvarovek","bm",5,null,null,520]
[null,"Ohybné potrubí:",null,null,null,null,900]
[null,"Ohebná hadice ø100 mm","bm",13,null,null,910]
[null,"Ohebná hadice ø125 mm","bm",6,null,null,910]
[null,"Ohebná hadice ø160 mm","bm",2,null,null,910]
[null,"Ohebná hadice ø180 mm","bm",1,null,null,910]
[null,"Ohebná hadice ø200 mm","bm",3,null,null,910]
[null,"Ohebná hadice izolovaná ø100 mm, tl. izolace 25mm (skelná vata)","bm",4,null,null,910]
[null,"Ohebná hadice izolovaná ø125 mm, tl. izolace 25mm (skelná vata)","bm",2,null,null,910]
[null,"Ohebná hadice izolovaná ø160 mm, tl. izolace 25mm (skelná vata)","bm",13,null,null,910]
[null,"Ohebná hadice izolovaná ø200 mm, tl. izolace 25mm (skelná vata)","bm",1,null,null,910]
[null,"Izolace potrubí:",null,null,null,null,1000]
[null,"Tepelná izolace 40 mm z čedičové vlny na vyztuženou Al fólii; role, samolepící, přelepení spojů Al páskou; vč. montáže","m2",342,null,null,1010]
[null,"Tepelná izolace ze syntetického kaučuku 40 mm s uzavřenou buněčnou strukturou a s vysokým difuzním odporem páry; role, samolepící; vč. montáže - prořez 30%","m2",38,null,null,1010]
[null,"Tepelná izolace 80 mm z čedičové vlny na vyztuženou Al fólii; role, samolepící, přelepení spojů Al páskou; vč. montáže","m2",14,null,null,1010]
[null,"Požární izolace z čedičové vlny,  EI 90 min, působení ohně typu B","m2",43,null,null,1010]
[null,"Ostatní",null,null,null,null,5000]
[null,"Upevňovací, těsnicí, montážní, závěsné a pomocné materiály ","kg",237,null,null,5010]
[null,"Dotěsnění prostupu atestovanou protipožární obložkou a tmelem vč. štítku \nVýchozí revize vč. vystavení evidenčního štítku založení knihy požárních elementů","ks",13,null,null,5010]
[null,"\"Kompletní montáž včetně lešení, vyrovnání, regulace systému \nvčetně regulačního protokolu, zaškolení obsluhy a předání systému ","hod",355,null,null,5010]
["ZAŘ.8","Celkem za ZAŘ.8",null,null,null,null,1]
["ZAŘ.9","Větrání šaten",null,null,null,null,1]
["9.01","VZT podstropní jednotka, vč. el. ohřívače a ovladače. Povrchová úprava plechu panelu vnějšího a vnitřního pláště VZT jednotek ocelový pozinkovaný plech, izolace panelů nehořlavá minerální vlna tloušťky 30 mm, SFP 1,48 kW/m³/s, Třída filtrace přívod  ePM1 60%, odvod ePM10 60%, rotační regenererační výměník ZZT, směšovací uzel, plynulá napěťová regulace ventilátoru, zařízení splňuje nařízení o ecodesignu platné od 1.1.2018. VZT jednotka je kompletně vybavena systémem MaR s vestavěným řídícím systémem, včetně všech čidel a uzavíracích klapek se servopohony  a externího ovladače s 3m kabelem. S možností připojení na centrální monitoring.Přesné parametry dle tabulky výkonů.\n Umístění 1.PP","ks",1,null,null,110]
["9.02","Buňkový tlumič čtyřhranný 60-30 ","ks",1,null,null,210]
["9.03","Buňkový tlumič čtyřhranný 60-30 ","ks",1,null,null,210]
["9.04","Pružná manžeta DN500 , DN500","ks",4,null,null,210]
["9.06","Mřížka přívodní dvouřadá  s nast. lamelami 400x150, RAL bude vyvzorkováno při realizaci stavby, vč. montáže ","ks",3,null,null,310]
["9.07","Mřížka odvodní jednořadá 300x150 , RAL bude vyvzorkováno při realizaci stavby, vč. montáže","ks",1,null,null,310]
["9.08","Talířový ventil 200 , vč. montážního rámečku DN200, RAL bude vyvzorkováno při realizaci stavby, vč. montáže","ks",9,null,null,310]
["9.09","Talířový ventil 125 , vč. montážního rámečku DN125, RAL bude vyvzorkováno při realizaci stavby, vč. montáže","ks",3,null,null,310]
["9.09","Talířový ventil 125 , vč. montážního rámečku DN125, RAL bude vyvzorkováno při realizaci stavby, vč. montáže","ks",2,null,null,310]
["9.10","Talířový ventil 100 , vč. montážního rámečku DN100, RAL bude vyvzorkováno při realizaci stavby, vč. montáže","ks",4,null,null,310]
["9.11","Krycí mřížka KM DN100","ks",1,null,null,310]
[null,"Přívodní potrubí",null,null,null,null,400]
[null,"Čtyřhranné potrubí z pozinkovaného plechu SK I., včetně příslušenství, včetně montáže, prořez 20%, třída těsnosti B:",null,null,null,null,409]
[null,"Čtyřhranné potrubí do obv. 650 vč 100 % tvarovek","m2",1,null,null,410]
[null,"Čtyřhranné potrubí do obv. 1050 vč 50 % tvarovek","m2",15,null,null,410]
[null,"Čtyřhranné potrubí do obv. 1500 vč 40 % tvarovek","m2",15,null,null,410]
[null,"Čtyřhranné potrubí do obv. 1890 vč 70 % tvarovek","m2",18,null,null,410]
[null,"Čtyřhranné potrubí do obv. 2630 vč 60 % tvarovek","m2",2,null,null,410]
[null,"Kruhové potrubí SPIRO z oboustraně pozinkovaného plechu, včetně příslušenství, včetně montáže, prořez 20%, třída těsnosti C:",null,null,null,null,419]
[null,"Kruhové potrubí Ø160 vč. 20 % tvarovek","bm",6,null,null,420]
[null,"Kruhové potrubí Ø125 vč. 20 % tvarovek","bm",5,null,null,420]
[null,"Kruhové potrubí Ø200 vč. 20 % tvarovek","bm",1,null,null,420]
[null,"Odvodní potrubí",null,null,null,null,500]
[null,"Čtyřhranné potrubí z pozinkovaného plechu SK I., včetně příslušenství, včetně montáže, prořez 20%, třída těsnosti B:",null,null,null,null,509]
[null,"Čtyřhranné potrubí do obv. 650 vč 50 % tvarovek","m2",4,null,null,510]
[null,"Čtyřhranné potrubí do obv. 1050 vč 60 % tvarovek","m2",14,null,null,510]
[null,"Čtyřhranné potrubí do obv. 1500 vč 60 % tvarovek","m2",32,null,null,510]
[null,"Čtyřhranné potrubí do obv. 1890 vč 90 % tvarovek","m2",8,null,null,510]
[null,"Čtyřhranné potrubí do obv. 2630 vč 60 % tvarovek","m2",2,null,null,510]
[null,"Kruhové potrubí SPIRO z oboustraně pozinkovaného plechu, včetně příslušenství, včetně montáže, prořez 20%, třída těsnosti C:",null,null,null,null,519]
[null,"Kruhové potrubí Ø200 vč. 20 % tvarovek","bm",1,null,null,520]
[null,"Kruhové potrubí Ø160 vč. 20 % tvarovek","bm",5,null,null,520]
[null,"Kruhové potrubí Ø100 vč. 20 % tvarovek","bm",12,null,null,520]
[null,"Kruhové potrubí Ø125 vč. 0 % tvarovek","bm",1,null,null,520]
[null,"Ohybné potrubí:",null,null,null,null,900]
[null,"Ohebná hadice ø100 mm","bm",2,null,null,910]
[null,"Ohebná hadice izolovaná ø200 mm, tl. izolace 25mm (skelná vata)","bm",7,null,null,910]
[null,"Izolace potrubí:",null,null,null,null,1000]
[null,"Tepelná izolace 40 mm z čedičové vlny na vyztuženou Al fólii; role, samolepící, přelepení spojů Al páskou; vč. montáže","m2",80,null,null,1010]
[null,"Ostatní",null,null,null,null,5000]
[null,"Upevňovací, těsnicí, montážní, závěsné a pomocné materiály ","kg",180,null,null,5010]
[null,"\"Kompletní montáž včetně lešení, vyrovnání, regulace systému \nvčetně regulačního protokolu, zaškolení obsluhy a předání systému ","hod",265,null,null,5010]
["ZAŘ.9","Celkem za ZAŘ.9",null,null,null,null,1]
["ZAŘ.10","Větrání technických místností a prádelny",null,null,null,null,1]
["10.01","VZT jednotka pro přívod a odvod vzduchu s deskovým rekuperátorem ZZT; vnitřní provedení, včetně montáže, zařízení splňuje nařízení o ecodesignu platné od 1.1.2018 Přesné parametry dle tabulky výkonů, funkčhího schématu a popisu standardů. Umístění 1.PP","ks",1,null,null,110]
["10.02","Buňkový tlumič čtyřhranný  600x400-1500mm, 4x buňka 200/300/1500 , \nvč. hlukové Izolace z minerální vlny tl.60mm s Al fóliou (součinitel útlmu 0,81) ","ks",1,null,null,210]
["10.03","Buňkový tlumič čtyřhranný  600x400-1500mm, 4x buňka 200/300/1500 , \nvč. hlukové Izolace z minerální vlny tl.60mm s Al fóliou (součinitel útlmu 0,81) ","ks",1,null,null,210]
["10.04","Buňkový tlumič čtyřhranný  500x400-1000mm, 2x buňka 200/500/1000 , \nvč. hlukové Izolace z minerální vlny tl.60mm s Al fóliou (součinitel útlmu 0,81) ","ks",1,null,null,210]
["10.05","Buňkový tlumič čtyřhranný  400x600-1000mm, 4xbuňka 200/300/1000  , \nvč. hlukové Izolace z minerální vlny tl.60mm s Al fóliou (součinitel útlmu 0,81) ","ks",1,null,null,210]
["10.06","Regulační klapka čtyřhranná s ručním ovládáním    450x200","ks",1,null,null,210]
["10.07","Regulační klapka čtyřhranná s ručním ovládáním    355x200","ks",1,null,null,210]
["10.08","Regulační klapka čtyřhranná s ručním ovládáním    250x160","ks",1,null,null,210]
["10.08","Regulační klapka čtyřhranná s ručním ovládáním    250x160","ks",1,null,null,210]
["10.09","Regulační klapka čtyřhranná s ručním ovládáním    225x160","ks",1,null,null,210]
["10.10","Regulační klapka čtyřhranná s ručním ovládáním    200x160","ks",1,null,null,210]
["10.10","Regulační klapka čtyřhranná s ručním ovládáním    200x160","ks",1,null,null,210]
["10.11","Regulačná klapka kruhová s ručným ovládaním DN125","ks",1,null,null,210]
["10.12","Mřížka přívodní dvouřadá  s nast. lamelami 500x200, RAL bude vyvzorkováno při realizaci stavby, vč. montáže ","ks",1,null,null,310]
["10.13","Vyústka do kruhového potrubí odvodní jednořadá 325x75 , RAL bude vyvzorkováno při realizaci stavby, vč. montáže","ks",1,null,null,310]
["10.14","Vyústka do kruhového potrubí přívodní dvouřadá  s nast. lamelami 625x75 , RAL bude vyvzorkováno při realizaci stavby, vč. montáže","ks",1,null,null,310]
["10.15","Vyústka do čtyřhranného potrubí přívodní dvouřadá  s nast. lamelami 200x100 , bez regulace , RAL bude vyvzorkováno při realizaci stavby, vč. montáže","ks",14,null,null,310]
["10.16","Vyústka do čtyřhranného potrubí odvodní jednořadá 200x100 , bez regulace ","ks",12,null,null,310]
["10.17","Talířový ventil 125 , vč. montážního rámečku DN125, RAL bude vyvzorkováno při realizaci stavby, vč. montáže","ks",2,null,null,310]
["10.17","Talířový ventil 125 , vč. montážního rámečku DN125, RAL bude vyvzorkováno při realizaci stavby, vč. montáže","ks",1,null,null,310]
["10.18","Talířový ventil 100 , vč. montážního rámečku DN100, RAL bude vyvzorkováno při realizaci stavby, vč. montáže","ks",15,null,null,310]
["10.18","Talířový ventil 100 , vč. montážního rámečku DN100, RAL bude vyvzorkováno při realizaci stavby, vč. montáže","ks",6,null,null,310]
["10.19","Krycí mřížka KM DN160","ks",1,null,null,310]
["10.19","Krycí mřížka KM DN160","ks",1,null,null,310]
["10.20","Krycí mřížka KM DN125","ks",1,null,null,310]
["10.21","Krycí mřížka KM DN100","ks",1,null,null,310]
["10.22","Výfuková hlavice hranatá 630x280","ks",1,null,null,310]
["PK 10.01","Požární klapka 560x250 se servopohonem 230V,s pružinou (s havarijní funkcí), termoelektrické čidlo, koncové spínače; vč. montáže; požární odolnost EI120S","ks",1,null,null,311]
["PK 10.02","Požární klapka 500x280 se servopohonem 230V,s pružinou (s havarijní funkcí), termoelektrické čidlo, koncové spínače; vč. montáže; požární odolnost EI120S","ks",1,null,null,311]
["PK 10.03","Požární klapka 560x250 se servopohonem 230V,s pružinou (s havarijní funkcí), termoelektrické čidlo, koncové spínače; vč. montáže; požární odolnost EI120S","ks",1,null,null,311]
["PK 10.04","Požární klapka 500x400 se servopohonem 230V,s pružinou (s havarijní funkcí), termoelektrické čidlo, koncové spínače; vč. montáže; požární odolnost EI120S","ks",1,null,null,311]
["PK 10.05","Požární klapka DN140 se servopohonem 230V,s pružinou (s havarijní funkcí), termoelektrické čidlo, koncové spínače; vč. montáže; požární odolnost EI120S","ks",1,null,null,311]
["PK 10.06","Požární klapka DN100 se servopohonem 230V,s pružinou (s havarijní funkcí), termoelektrické čidlo, koncové spínače; vč. montáže; požární odolnost EI120S","ks",1,null,null,311]
["PK 10.07","Požární stěnový uzávěr 200x200, \ns pružinou (s havarijní funkcí), tavná pojistka při 72 °C; vč. montáže s tavnou pojistkou","ks",1,null,null,311]
[null,"Přívodní potrubí",null,null,null,null,400]
[null,"Čtyřhranné potrubí z pozinkovaného plechu SK I., včetně příslušenství, včetně montáže, prořez 20%, třída těsnosti B:",null,null,null,null,409]
[null,"Čtyřhranné potrubí do obv. 650 vč 50 % tvarovek","m2",6,null,null,410]
[null,"Čtyřhranné potrubí do obv. 1050 vč 40 % tvarovek","m2",49,null,null,410]
[null,"Čtyřhranné potrubí do obv. 1500 vč 30 % tvarovek","m2",29,null,null,410]
[null,"Čtyřhranné potrubí do obv. 1890 vč 40 % tvarovek","m2",38,null,null,410]
[null,"Čtyřhranné potrubí do obv. 2630 vč 80 % tvarovek","m2",10,null,null,410]
[null,"Kruhové potrubí SPIRO z oboustraně pozinkovaného plechu, včetně příslušenství, včetně montáže, prořez 20%, třída těsnosti C:",null,null,null,null,419]
[null,"Kruhové potrubí Ø125 vč. 20 % tvarovek","bm",2,null,null,420]
[null,"Kruhové potrubí Ø140 vč. 20 % tvarovek","bm",11,null,null,420]
[null,"Kruhové potrubí Ø160 vč. 20 % tvarovek","bm",19,null,null,420]
[null,"Kruhové potrubí Ø100 vč. 20 % tvarovek","bm",29,null,null,420]
[null,"Odvodní potrubí",null,null,null,null,500]
[null,"Čtyřhranné potrubí z pozinkovaného plechu SK I., včetně příslušenství, včetně montáže, prořez 20%, třída těsnosti B:",null,null,null,null,509]
[null,"Čtyřhranné potrubí do obv. 650 vč 60 % tvarovek","m2",16,null,null,510]
[null,"Čtyřhranné potrubí do obv. 1050 vč 50 % tvarovek","m2",41,null,null,510]
[null,"Čtyřhranné potrubí do obv. 1500 vč 30 % tvarovek","m2",87,null,null,510]
[null,"Čtyřhranné potrubí do obv. 1890 vč 40 % tvarovek","m2",41,null,null,510]
[null,"Čtyřhranné potrubí do obv. 2630 vč 90 % tvarovek","m2",11,null,null,510]
[null,"Kruhové potrubí SPIRO z oboustraně pozinkovaného plechu, třída těsnosti C:",null,null,null,null,519]
[null,"Kruhové potrubí Ø125 vč. 20 % tvarovek","bm",7,null,null,520]
[null,"Kruhové potrubí Ø140 vč. 40 % tvarovek","bm",4,null,null,520]
[null,"Kruhové potrubí Ø180 vč. 50 % tvarovek","bm",5,null,null,520]
[null,"Kruhové potrubí Ø100 vč. 20 % tvarovek","bm",37,null,null,520]
[null,"Kruhové potrubí Ø160 vč. 30 % tvarovek","bm",20,null,null,520]
[null,"Ohybné potrubí:",null,null,null,null,900]
[null,"Ohebná hadice ø100 mm","bm",3,null,null,910]
[null,"Izolace potrubí:",null,null,null,null,1000]
[null,"Tepelná izolace 40 mm z čedičové vlny na vyztuženou Al fólii; role, samolepící, přelepení spojů Al páskou; vč. montáže","m2",190,null,null,1010]
[null,"Tepelná izolace ze syntetického kaučuku 40 mm s uzavřenou buněčnou strukturou a s vysokým difuzním odporem páry; role, samolepící; vč. montáže - prořez 30%","m2",38,null,null,1010]
[null,"Tepelná izolace 80 mm z čedičové vlny na vyztuženou Al fólii; role, samolepící, přelepení spojů Al páskou; vč. montáže","m2",16,null,null,1010]
[null,"Požární izolace z čedičové vlny,  EI 90 min, působení ohně typu B","m2",21,null,null,1010]
[null,"Ostatní",null,null,null,null,5000]
[null,"Upevňovací, těsnicí, montážní, závěsné a pomocné materiály ","kg",260,null,null,5010]
[null,"Dotěsnění prostupu atestovanou protipožární obložkou a tmelem vč. štítku \nVýchozí revize vč. vystavení evidenčního štítku založení knihy požárních elementů","ks",7,null,null,5010]
[null,"\"Kompletní montáž včetně lešení, vyrovnání, regulace systému \nvčetně regulačního protokolu, zaškolení obsluhy a předání systému ","hod",375,null,null,5010]
["ZAŘ.10","Celkem za ZAŘ.10",null,null,null,null,1]
["ZAŘ.11","Větrání rehabilitace",null,null,null,null,1]
["11.01","VZT podstropní jednotka, vč. el. ohřívače a ovladače. Povrchová úprava plechu panelu vnějšího a vnitřního pláště VZT jednotek ocelový pozinkovaný plech, izolace panelů nehořlavá minerální vlna tloušťky 30 mm, SFP 2,1 kW/m³/s, Třída filtrace přívod  ePM1 60%, odvod ePM10 60%, rotační regenererační výměník ZZT, směšovací uzel, plynulá napěťová regulace ventilátoru, zařízení splňuje nařízení o ecodesignu platné od 1.1.2018. VZT jednotka je kompletně vybavena systémem MaR s vestavěným řídícím systémem, včetně všech čidel a uzavíracích klapek se servopohony  a externího ovladače s 3m kabelem. S možností připojení na centrální monitoring.Přesné parametry dle tabulky výkonů.  Umístění 1.PP","ks",1,null,null,110]
["11.02","Buňkový tlumič čtyřhranný  400x300-1500mm , , 1xbuňka 400/300/1500, \nvč. hlukové Izolace z minerální vlny tl.60mm s Al fóliou (součinitel útlmu 0,81) ","ks",1,null,null,210]
["11.03","Buňkový tlumič čtyřhranný  400x300-1000mm , 2x buňka 200/300/1500,\nvč. hlukové Izolace z minerální vlny tl.60mm s Al fóliou (součinitel útlmu 0,81) ","ks",1,null,null,210]
["11.04","Buňkový tlumič čtyřhranný  300x200-1000mm , 1xbuňka 200/300/2000,\nvč. hlukové Izolace z minerální vlny tl.60mm s Al fóliou (součinitel útlmu 0,81) ","ks",1,null,null,210]
["11.05","Buňkový tlumič čtyřhranný  300x200-1000mm , , 1xbuňka 200/300/2000, \nvč. hlukové Izolace z minerální vlny tl.60mm s Al fóliou (součinitel útlmu 0,81) ","ks",1,null,null,210]
["11.07","Pružná manžeta DN315 , DN315","ks",4,null,null,210]
["11.08","Vířívý anemostat s čtvercovou čelní deskou přívodní  600x600-40 , s plenum boxem s horizontálním připojením DN200-s regulací, RAL bude vyvzorkováno při realizaci stavby, vč. montáže","ks",2,null,null,310]
["11.09","Vířívý anemostat s čtvercovou čelní deskou odvodní 600x600-40 , s plenum boxem s horizontálním připojením DN200- s regulací, RAL bude vyvzorkováno při realizaci stavby, vč. montáže","ks",2,null,null,310]
["11.10","Vířívý anemostat s čtvercovou čelní deskou přívodní  400x400-16 , s plenum boxem s horizontálním připojením DN160-s regulací, RAL bude vyvzorkováno při realizaci stavby, vč. montáže","ks",1,null,null,310]
["11.11","Vířívý anemostat s čtvercovou čelní deskou odvodní 400x400-16 , s plenum boxem s horizontálním připojením DN160- s regulací, RAL bude vyvzorkováno při realizaci stavby, vč. montáže","ks",1,null,null,310]
["11.12","Talířový ventil 125 , vč. montážního rámečku DN125, RAL bude vyvzorkováno při realizaci stavby, vč. montáže","ks",1,null,null,310]
["11.13","Talířový ventil 100 , vč. montážního rámečku DN100, RAL bude vyvzorkováno při realizaci stavby, vč. montáže","ks",3,null,null,310]
["11.14","Krycí mřížka KM DN125","ks",1,null,null,310]
["11.15","Krycí mřížka KM DN100","ks",1,null,null,310]
["11.15","Krycí mřížka KM DN100","ks",2,null,null,310]
[null,"Přívodní potrubí",null,null,null,null,400]
[null,"Čtyřhranné potrubí z pozinkovaného plechu SK I., včetně příslušenství, včetně montáže, prořez 20%, třída těsnosti B:",null,null,null,null,409]
[null,"Čtyřhranné potrubí do obv. 650 vč 100 % tvarovek","m2",2,null,null,410]
[null,"Čtyřhranné potrubí do obv. 1050 vč 90 % tvarovek","m2",13,null,null,410]
[null,"Čtyřhranné potrubí do obv. 2630 vč 100 % tvarovek","m2",12,null,null,410]
[null,"Kruhové potrubí SPIRO z oboustraně pozinkovaného plechu, včetně příslušenství, včetně montáže, prořez 20%, třída těsnosti C:",null,null,null,null,419]
[null,"Kruhové potrubí Ø160 vč. 20 % tvarovek","bm",1,null,null,420]
[null,"Kruhové potrubí Ø100 vč. 20 % tvarovek","bm",30,null,null,420]
[null,"Kruhové potrubí Ø125 vč. 30 % tvarovek","bm",8,null,null,420]
[null,"Kruhové potrubí Ø200 vč. 20 % tvarovek","bm",1,null,null,420]
[null,"Kruhové potrubí Ø315 vč. 0 % tvarovek","bm",1,null,null,420]
[null,"Odvodní potrubí",null,null,null,null,500]
[null,"Čtyřhranné potrubí z pozinkovaného plechu SK I., včetně příslušenství, včetně montáže, prořez 20%, třída těsnosti B:",null,null,null,null,509]
[null,"Čtyřhranné potrubí do obv. 650 vč 100 % tvarovek","m2",1,null,null,510]
[null,"Čtyřhranné potrubí do obv. 1050 vč 60 % tvarovek","m2",17,null,null,510]
[null,"Čtyřhranné potrubí do obv. 1500 vč 60 % tvarovek","m2",2,null,null,510]
[null,"Čtyřhranné potrubí do obv. 1890 vč 40 % tvarovek","m2",42,null,null,519]
[null,"Kruhové potrubí Ø200 vč. 20 % tvarovek","bm",1,null,null,520]
[null,"Kruhové potrubí Ø160 vč. 20 % tvarovek","bm",4,null,null,520]
[null,"Kruhové potrubí Ø100 vč. 20 % tvarovek","bm",13,null,null,520]
[null,"Kruhové potrubí Ø125 vč. 20 % tvarovek","bm",9,null,null,520]
[null,"Kruhové potrubí Ø280 vč. 50 % tvarovek","bm",4,null,null,520]
[null,"Kruhové potrubí Ø315 vč. 0 % tvarovek","bm",1,null,null,520]
[null,"Ohybné potrubí:",null,null,null,null,900]
[null,"Ohebná hadice ø100 mm","bm",4,null,null,910]
[null,"Ohebná hadice ø125 mm","bm",1,null,null,910]
[null,"Ohebná hadice ø160 mm","bm",2,null,null,910]
[null,"Ohebná hadice izolovaná ø100 mm, tl. izolace 25mm (skelná vata)","bm",2,null,null,910]
[null,"Ohebná hadice izolovaná ø125 mm, tl. izolace 25mm (skelná vata)","bm",2,null,null,910]
[null,"Ohebná hadice izolovaná ø200 mm, tl. izolace 25mm (skelná vata)","bm",2,null,null,910]
[null,"Izolace potrubí:",null,null,null,null,1000]
[null,"Tepelná izolace 40 mm z čedičové vlny na vyztuženou Al fólii; role, samolepící, přelepení spojů Al páskou; vč. montáže","m2",64,null,null,1010]
[null,"Ostatní",null,null,null,null,5000]
[null,"Upevňovací, těsnicí, montážní, závěsné a pomocné materiály ","kg",118,null,null,5010]
[null,"\"Kompletní montáž včetně lešení, vyrovnání, regulace systému \nvčetně regulačního protokolu, zaškolení obsluhy a předání systému ","hod",261,null,null,5010]
["ZAŘ.11","Celkem za ZAŘ.11",null,null,null,null,1]
["ZAŘ.12","Větrání školící místnosti",null,null,null,null,1]
["12.01","VZT podstropní jednotka, vč. el. ohřívače a ovladače. Povrchová úprava plechu panelu vnějšího a vnitřního pláště VZT jednotek ocelový pozinkovaný plech, izolace panelů nehořlavá minerální vlna tloušťky 30 mm, SFP 1,68 kW/m³/s, Třída filtrace přívod  ePM1 60%, odvod ePM10 60%, rotační regenererační výměník ZZT, směšovací uzel, plynulá napěťová regulace ventilátoru, zařízení splňuje nařízení o ecodesignu platné od 1.1.2018. VZT jednotka je kompletně vybavena systémem MaR s vestavěným řídícím systémem, včetně všech čidel a uzavíracích klapek se servopohony  a externího ovladače s 3m kabelem. S možností připojení na centrální monitoring.Přesné parametry dle tabulky výkonů.  Umístění 1.PP","ks",1,null,null,110]
["12.02","Buňkový tlumič čtyřhranný  400x300-1000mm , 1xbuňka 400/300/1000, \nvč. hlukové Izolace z minerální vlny tl.60mm s Al fóliou (součinitel útlmu 0,81) ","ks",1,null,null,210]
["12.03","Buňkový tlumič čtyřhranný  400x300-1000mm, 1xbuňka 400/300/1000, \nvč. hlukové Izolace z minerální vlny tl.60mm s Al fóliou (součinitel útlmu 0,81) ","ks",1,null,null,210]
["12.04","Buňkový tlumič čtyřhranný  400x300-1000mm , 1xbuňka 400/300/1000,\nvč. hlukové Izolace z minerální vlny tl.60mm s Al fóliou (součinitel útlmu 0,81) ","ks",1,null,null,210]
["12.05","Buňkový tlumič čtyřhranný  400x300-1000mm , 1xbuňka 400/300/1000, \nvč. hlukové Izolace z minerální vlny tl.60mm s Al fóliou (součinitel útlmu 0,81) ","ks",1,null,null,210]
["12.06","Pružná manžeta DS , 40-20 ","ks",4,null,null,210]
["12.06","Buňkový tlumič čtyřhranný  300x200-1000mm , 1xbuňka 200/300/1000,\nvč. hlukové Izolace z minerální vlny tl.60mm s Al fólií (součinitel útlumu 0,81) ","ks",1,null,null,210]
["12.07","Buňkový tlumič čtyřhranný  300x200-1000mm , 1xbuňka 200/300/1000,\nvč. hlukové Izolace z minerální vlny tl.60mm s Al fólií (součinitel útlumu 0,81) ","ks",1,null,null,210]
["12.08","Vířívý anemostat s čtvercovou čelní deskou přívodní  400x400-16 , s plenum boxem s horizontálním připojením DN160-s regulací, RAL bude vyvzorkováno při realizaci stavby, vč. montáže","ks",4,null,null,310]
["12.09","Vířívý anemostat s čtvercovou čelní deskou odvodní 400x400-16 , s plenum boxem s horizontálním připojením DN200- s regulací, RAL bude vyvzorkováno při realizaci stavby, vč. montáže","ks",4,null,null,310]
[null,"Přívodní potrubí",null,null,null,null,400]
[null,"Čtyřhranné potrubí z pozinkovaného plechu SK I., včetně příslušenství, včetně montáže, prořez 20%, třída těsnosti B:",null,null,null,null,409]
[null,"Čtyřhranné potrubí do obv. 1050 vč 40 % tvarovek","m2",44,null,null,410]
[null,"Čtyřhranné potrubí do obv. 1500 vč 90 % tvarovek","m2",8,null,null,410]
[null,"Čtyřhranné potrubí do obv. 1890 vč 80 % tvarovek","m2",15,null,null,410]
[null,"Kruhové potrubí SPIRO z oboustraně pozinkovaného plechu, včetně příslušenství, včetně montáže, prořez 20%, třída těsnosti C:",null,null,null,null,419]
[null,"Kruhové potrubí Ø200 vč. 20 % tvarovek","bm",3,null,null,420]
[null,"Kruhové potrubí Ø160 vč. 20 % tvarovek","bm",5,null,null,420]
[null,"Kruhové potrubí Ø250 vč. 30 % tvarovek","bm",4,null,null,420]
[null,"Odvodní potrubí",null,null,null,null,500]
[null,"Čtyřhranné potrubí z pozinkovaného plechu SK I., včetně příslušenství, včetně montáže, prořez 20%, třída těsnosti B:",null,null,null,null,509]
[null,"Čtyřhranné potrubí do obv. 1050 vč 50 % tvarovek","m2",27,null,null,510]
[null,"Čtyřhranné potrubí do obv. 1500 vč 80 % tvarovek","m2",18,null,null,510]
[null,"Kruhové potrubí SPIRO z oboustraně pozinkovaného plechu, včetně příslušenství, včetně montáže, prořez 20%, třída těsnosti C:",null,null,null,null,519]
[null,"Kruhové potrubí Ø200 vč. 20 % tvarovek","bm",3,null,null,520]
[null,"Kruhové potrubí Ø160 vč. 20 % tvarovek","bm",5,null,null,520]
[null,"Kruhové potrubí Ø250 vč. 30 % tvarovek","bm",6,null,null,520]
[null,"Ohybné potrubí:",null,null,null,null,900]
[null,"Ohebná hadice ø160 mm","bm",3,null,null,910]
[null,"Ohebná hadice izolovaná ø160 mm, tl. izolace 25mm (skelná vata)","bm",5,null,null,910]
[null,"Izolace potrubí:",null,null,null,null,1000]
[null,"Tepelná izolace 40 mm z čedičové vlny na vyztuženou Al fólii; role, samolepící, přelepení spojů Al páskou; vč. montáže","m2",101,null,null,1010]
[null,"Ostatní",null,null,null,null,5000]
[null,"Upevňovací, těsnicí, montážní, závěsné a pomocné materiály ","kg",95,null,null,5010]
[null,"\"Kompletní montáž včetně lešení, vyrovnání, regulace systému \nvčetně regulačního protokolu, zaškolení obsluhy a předání systému ","hod",375,null,null,5010]
["ZAŘ.12","Celkem za ZAŘ.12",null,null,null,null,1]
["ZAŘ.13","Větrání bytu",null,null,null,null,1]
["13.01","VZT podstropní jednotka, vč. el. ohřívače a ovladače. Povrchová úprava plechu panelu vnějšího a vnitřního pláště VZT jednotek ocelový pozinkovaný plech, izolace panelů nehořlavá minerální vlna tloušťky 30 mm, SFP 1,706 kW/m³/s, Třída filtrace přívod  ePM1 60%, odvod ePM10 60%, protiproudý výměník tepla, plynulá napěťová regulace ventilátoru, zařízení splňuje nařízení o ecodesignu platné od 1.1.2018. VZT jednotka je kompletně vybavena systémem MaR s vestavěným řídícím systémem, včetně všech čidel a uzavíracích klapek se servopohony a externího ovladače s 6m kabelem. S možností připojení na centrální monitoring.Přesné parametry dle tabulky výkonů.\n Umístění 1.PP","ks",1,null,null,110]
["13.03","Talířový ventil 160 , vč. montážního rámečku DN160, RAL bude vyvzorkováno při realizaci stavby, vč. montáže","ks",1,null,null,310]
["13.04","Talířový ventil 125 , vč. montážního rámečku DN125, RAL bude vyvzorkováno při realizaci stavby, vč. montáže","ks",1,null,null,310]
["13.05","Talířový ventil 100 , vč. montážního rámečku DN100, RAL bude vyvzorkováno při realizaci stavby, vč. montáže","ks",3,null,null,310]
[null,"Přívodní potrubí",null,null,null,null,400]
[null,"Čtyřhranné potrubí z pozinkovaného plechu SK I., včetně příslušenství, včetně montáže, prořez 20%, třída těsnosti B:",null,null,null,null,409]
[null,"Čtyřhranné potrubí do obv. 1050 vč 100 % tvarovek","m2",3,null,null,410]
[null,"Kruhové potrubí SPIRO z oboustraně pozinkovaného plechu, včetně příslušenství, včetně montáže, prořez 20%, třída těsnosti C:",null,null,null,null,419]
[null,"Kruhové potrubí Ø160 vč. 20 % tvarovek","bm",1,null,null,420]
[null,"Kruhové potrubí Ø125 vč. 20 % tvarovek","bm",12,null,null,420]
[null,"Kruhové potrubí Ø100 vč. 20 % tvarovek","bm",2,null,null,420]
[null,"Odvodní potrubí",null,null,null,null,500]
[null,"Čtyřhranné potrubí z pozinkovaného plechu SK I., včetně příslušenství, včetně montáže, prořez 20%, třída těsnosti B:",null,null,null,null,509]
[null,"Čtyřhranné potrubí do obv. 1050 vč 100 % tvarovek","m2",1,null,null,510]
[null,"Kruhové potrubí SPIRO z oboustraně pozinkovaného plechu, včetně příslušenství, včetně montáže, prořez 20%, třída těsnosti C:",null,null,null,null,519]
[null,"Kruhové potrubí Ø125 vč. 30 % tvarovek","bm",3,null,null,520]
[null,"Kruhové potrubí Ø100 vč. 20 % tvarovek","bm",16,null,null,520]
[null,"Ohybné potrubí:",null,null,null,null,900]
[null,"Ohebná hadice izolovaná ø100 mm, tl. izolace 25mm (skelná vata)","bm",6,null,null,910]
[null,"Ohebná hadice izolovaná ø125 mm, tl. izolace 25mm (skelná vata)","bm",6,null,null,910]
[null,"Ohebná hadice izolovaná ø160 mm, tl. izolace 25mm (skelná vata)","bm",2,null,null,910]
[null,"Izolace potrubí:",null,null,null,null,1000]
[null,"Tepelná izolace 40 mm z čedičové vlny na vyztuženou Al fólii; role, samolepící, přelepení spojů Al páskou; vč. montáže","m2",11,null,null,1010]
[null,"Ostatní",null,null,null,null,5000]
[null,"Upevňovací, těsnicí, montážní, závěsné a pomocné materiály ","kg",15,null,null,5010]
[null,"\"Kompletní montáž včetně lešení, vyrovnání, regulace systému \nvčetně regulačního protokolu, zaškolení obsluhy a předání systému ","hod",18,null,null,5010]
["ZAŘ.13","Celkem za ZAŘ.13",null,null,null,null,1]
["ZAŘ.14","volné",null,null,null,null,1]
["ZAŘ.15","Větrání odpadků",null,null,null,null,1]
["15.01","Potrubní radiální odvodní ventilátor s AC motorem do kruhového potrubí, vnitřní provedení, motor s vestavěnými tepelnými kontakty, včetně montáže, zařízení splňuje nařízení o ecodesignu platné od 1.1.2018\nvč. 2 ks rychloupínacích spon.Přesné parametry dle tabulky výkonů. Umístění 1.NP","ks",1,null,null,110]
["15.02","Tlumič kruhový DN100 -600mm , vč. hlukové izolace z minerální vlny tl. 60mm s Al fólií (součinitel útlumu 0,81) , DN100","ks",1,null,null,210]
["15.03","Regulačná klapka kruhová s ručným ovládaním DN100","ks",1,null,null,210]
["15.04","Talířový ventil 100 , vč. montážního rámečku DN100, RAL bude vyvzorkováno při realizaci stavby, vč. montáže","ks",1,null,null,310]
["15.06","Krycí mřížka KM DN100","ks",1,null,null,310]
[null,"Odvodní potrubí",null,null,null,null,500]
[null,"Kruhové potrubí SPIRO z oboustraně pozinkovaného plechu, včetně příslušenství, včetně montáže, prořez 20%, třída těsnosti C:",null,null,null,null,519]
[null,"Kruhové potrubí Ø100 vč. 20 % tvarovek","bm",22,null,null,520]
[null,"Kruhové potrubí Ø125 vč. 30 % tvarovek","bm",1,null,null,520]
[null,"Ohybné potrubí:",null,null,null,null,900]
[null,"Izolace potrubí:",null,null,null,null,1000]
[null,"Tepelná izolace 40 mm z čedičové vlny na vyztuženou Al fólii; role, samolepící, přelepení spojů Al páskou; vč. montáže","m2",10,null,null,1010]
[null,"Tepelná izolace 80 mm z čedičové vlny na vyztuženou Al fólii; role, samolepící, přelepení spojů Al páskou; vč. montáže","m2",2,null,null,1010]
[null,"Ostatní",null,null,null,null,5000]
[null,"Upevňovací, těsnicí, montážní, závěsné a pomocné materiály ","kg",5,null,null,5010]
[null,"\"Kompletní montáž včetně lešení, vyrovnání, regulace systému \nvčetně regulačního protokolu, zaškolení obsluhy a předání systému ","hod",5,null,null,5010]
["ZAŘ.15","Celkem za ZAŘ.15",null,null,null,null,1]
["ZAŘ.16","SO 02 Větrání hygienického zázemí",null,null,null,null,1]
["16.01","Potrubní radiální odvodní ventilátor dvouotáčkový do kruhového potrubí, vč. pouzdra na omítku, vnitřní provedení, motor s vestavěnými tepelnými kontakty, včetně montáže, zařízení splňuje nařízení o ecodesignu platné od 1.1.2018\nPřesné parametry dle tabulky výkonů. Umístění 1.NP - SO02","ks",1,null,null,110]
[null,"Odvodní potrubí",null,null,null,null,500]
[null,"Kruhové potrubí SPIRO z oboustraně pozinkovaného plechu, včetně příslušenství, včetně montáže, prořez 20%, třída těsnosti C:",null,null,null,null,519]
[null,"Kruhové potrubí Ø80 vč. 0 % tvarovek","bm",12,null,null,520]
[null,"Ostatní",null,null,null,null,5000]
[null,"Upevňovací, těsnicí, montážní, závěsné a pomocné materiály ","kg",3,null,null,5010]
[null,"\"Kompletní montáž včetně lešení, vyrovnání, regulace systému \nvčetně regulačního protokolu, zaškolení obsluhy a předání systému ","hod",4,null,null,5010]
["ZAŘ.16","Celkem za ZAŘ.16",null,null,null,null,1]
["ZAŘ.17","SO 02 Větrání kotelny",null,null,null,null,1]
["17.01","Potrubní radiální odvodní ventilátor s EC motorem do kruhového potrubí, vnitřní provedení, motor s vestavěnými tepelnými kontakty, včetně montáže, zařízení splňuje nařízení o ecodesignu platné od 1.1.2018\nvč. 2 ks rychloupínacích spon. Přesné parametry dle tabulky výkonů. Umístění 1.NP","ks",1,null,null,110]
["17.02","Krycí mřížka KM DN200","ks",1,null,null,310]
[null,"Odvodní potrubí",null,null,null,null,500]
[null,"Kruhové potrubí SPIRO z oboustraně pozinkovaného plechu, včetně příslušenství, včetně montáže, prořez 20%, třída těsnosti C:",null,null,null,null,519]
[null,"Kruhové potrubí Ø200 vč. 50 % tvarovek","bm",11,null,null,520]
[null,"Ostatní",null,null,null,null,5000]
[null,"Upevňovací, těsnicí, montážní, závěsné a pomocné materiály ","kg",5,null,null,5010]
[null,"\"Kompletní montáž včetně lešení, vyrovnání, regulace systému \nvčetně regulačního protokolu, zaškolení obsluhy a předání systému ","hod",5,null,null,5010]
["ZAŘ.17","Celkem za ZAŘ.17",null,null,null,null,1]
["ZAŘ.18","Větrání půdního prostoru",null,null,null,null,1]
["18.01","Krycí mřížka KM DN200","ks",8,null,null,310]
["18.02","Výfuková hlavice kulatá DN200","ks",8,null,null,310]
[null,"Odvodní potrubí",null,null,null,null,500]
[null,"Kruhové potrubí SPIRO z oboustraně pozinkovaného plechu, včetně příslušenství, včetně montáže, prořez 20%, třída těsnosti C:",null,null,null,null,519]
[null,"Kruhové potrubí Ø200 vč. 50 % tvarovek","bm",11,null,null,520]
[null,"Ostatní",null,null,null,null,5000]
[null,"Upevňovací, těsnicí, montážní, závěsné a pomocné materiály ","kg",8,null,null,5010]
[null,"\"Kompletní montáž včetně lešení, vyrovnání, regulace systému \nvčetně regulačního protokolu, zaškolení obsluhy a předání systému ","hod",9,null,null,5010]
["ZAŘ.18","Celkem za ZAŘ.18",null,null,null,null,1]
["ZAŘ.20"," Větrání chráněné únikové cesty B - hlavní schodište",null,null,null,null,1]
["20.01","Potrubní radiální odvodní ventilátor s AC motorem do čtyřhranného potrubí, vnitřní provedení, motor s vestavěnými tepelnými kontakty, včetně montáže, zařízení splňuje nařízení o ecodesignu platné od 1.1.2018\nPřesné parametry dle tabulky výkonů. Umístění 1.PP","ks",1,null,null,110]
["20.02","Servopohon s havarijní funkcí LF230, Umístění 1.PP","ks",1,null,null,110]
["20.03","Regulační klapka čtyřhranná s přípravou pro servopohon -S  800x500","ks",1,null,null,210]
["20.04","Pružná manžeta DS , 062/678-678 ","ks",2,null,null,210]
["20.05","Krycí mřížka KM 800x500","ks",1,null,null,310]
[null,"Přívodní potrubí",null,null,null,null,400]
[null,"Čtyřhranné potrubí z pozinkovaného plechu SK I., včetně příslušenství, včetně montáže, prořez 20%, třída těsnosti B:",null,null,null,null,409]
[null,"Čtyřhranné potrubí do obv. 2630 vč 30 % tvarovek","m2",33,null,null,410]
[null,"Čtyřhranné potrubí do obv. 3500 vč 100 % tvarovek","m2",4,null,null,410]
[null,"Čtyřhranné potrubí do obv. 4460 vč 70 % tvarovek","m2",4,null,null,410]
[null,"Izolace potrubí:",null,null,null,null,1000]
[null,"Požární izolace z čedičové vlny,  EI 90 min, působení ohně typu B","m2",19,null,null,1010]
[null,"Ostatní",null,null,null,null,5000]
[null,"Upevňovací, těsnicí, montážní, závěsné a pomocné materiály ","kg",155,null,null,5010]
[null,"\"Kompletní montáž včetně lešení, vyrovnání, regulace systému \nvčetně regulačního protokolu, zaškolení obsluhy a předání systému ","hod",224,null,null,5010]
["ZAŘ.20","Celkem za ZAŘ.20",null,null,null,null,1]
["ZAŘ.21","Větrání chráněné únikové cesty B - předsíň",null,null,null,null,1]
["21.01","Potrubní radiální odvodní ventilátor s AC motorem do čtyřhranného potrubí, vnitřní provedení, motor s vestavěnými tepelnými kontakty, včetně montáže, zařízení splňuje nařízení o ecodesignu platné od 1.1.2018\nPřesné parametry dle tabulky výkonů.  Umístění 6.NP","ks",1,null,null,110]
["21.02","Servopohon s havarijní funkcí LF230, Umístění 6.NP","ks",1,null,null,110]
["21.03","Potrubní radiální odvodní ventilátor s AC motorem do čtyřhranného potrubí, vnitřní provedení, motor s vestavěnými tepelnými kontakty, včetně montáže, zařízení splňuje nařízení o ecodesignu platné od 1.1.2018\nPřesné parametry dle tabulky výkonů.  Umístění 6.NP","ks",1,null,null,110]
["21.04","Servopohon s havarijní funkcí LF230, Umístění 6.NP","ks",1,null,null,110]
["21.05","Regulační klapka čtyřhranná s přípravou pro servopohon -S  560x355","ks",1,null,null,210]
["21.06","Regulační klapka čtyřhranná s přípravou pro servopohon -S  500x400","ks",1,null,null,210]
["21.07","Pružná manžeta DS , 062/678-678 ","ks",2,null,null,210]
["21.08","Pružná manžeta DS , 062/678-678 ","ks",2,null,null,210]
["21.09","Mřížka odvodní jednořadá 500x300 , RAL bude vyvzorkováno při realizaci stavby, vč. montáže","ks",1,null,null,310]
["21.10","Mřížka přívodní dvouřadá  s nast. lamelami 500x200 , RAL bude vyvzorkováno při realizaci stavby, vč. montáže","ks",4,null,null,310]
["21.11","Mřížka přívodní dvouřadá  s nast. lamelami 400x1000 , RAL bude vyvzorkováno při realizaci stavby, vč. montáže","ks",1,null,null,310]
["21.12","Mřížka přívodní dvouřadá  s nast. lamelami 400x400 , RAL bude vyvzorkováno při realizaci stavby, vč. montáže","ks",1,null,null,310]
["21.13","Mřížka odvodní jednořadá 400x200 , RAL bude vyvzorkováno při realizaci stavby, vč. montáže","ks",4,null,null,310]
["21.14","Mřížka odvodní jednořadá 400x150 , RAL bude vyvzorkováno při realizaci stavby, vč. montáže","ks",1,null,null,310]
["21.15","Vyústka do kruhového potrubí přívodní dvouřadá  s nast. lamelami 300x100, RAL bude vyvzorkováno při realizaci stavby, vč. montáže","ks",1,null,null,310]
["21.16","Vyústka do kruhového potrubí odvodní jednořadá 225x75 , RAL bude vyvzorkováno při realizaci stavby, vč. montáže","ks",1,null,null,310]
["21.17","Výfuková hlavice hranatá 678x678","ks",1,null,null,310]
["21.18","Výfuková hlavice hranatá 678x678","ks",1,null,null,310]
[null,"Přívodní potrubí",null,null,null,null,400]
[null,"Čtyřhranné potrubí z pozinkovaného plechu SK I., včetně příslušenství, včetně montáže, prořez 20%, třída těsnosti B:",null,null,null,null,409]
[null,"Čtyřhranné potrubí do obv. 650 vč 100 % tvarovek","m2",1,null,null,410]
[null,"Čtyřhranné potrubí do obv. 1500 vč 20 % tvarovek","m2",7,null,null,410]
[null,"Čtyřhranné potrubí do obv. 1890 vč 20 % tvarovek","m2",40,null,null,410]
[null,"Čtyřhranné potrubí do obv. 3500 vč 50 % tvarovek","m2",2,null,null,410]
[null,"Kruhové potrubí SPIRO z oboustraně pozinkovaného plechu, včetně příslušenství, včetně montáže, prořez 20%, třída těsnosti C:",null,null,null,null,419]
[null,"Kruhové potrubí Ø100 vč. 20 % tvarovek","bm",19,null,null,420]
[null,"Kruhové potrubí Ø160 vč. 20 % tvarovek","bm",1,null,null,420]
[null,"Odvodní potrubí",null,null,null,null,500]
[null,"Čtyřhranné potrubí z pozinkovaného plechu SK I., včetně příslušenství, včetně montáže, prořez 20%, třída těsnosti B:",null,null,null,null,509]
[null,"Čtyřhranné potrubí do obv. 650 vč 90 % tvarovek","m2",2,null,null,510]
[null,"Čtyřhranné potrubí do obv. 1050 vč 40 % tvarovek","m2",37,null,null,510]
[null,"Čtyřhranné potrubí do obv. 1500 vč 20 % tvarovek","m2",20,null,null,510]
[null,"Čtyřhranné potrubí do obv. 1890 vč 20 % tvarovek","m2",30,null,null,510]
[null,"Čtyřhranné potrubí do obv. 3500 vč 50 % tvarovek","m2",2,null,null,510]
[null,"Kruhové potrubí SPIRO z oboustraně pozinkovaného plechu, včetně příslušenství, včetně montáže, prořez 20%, třída těsnosti C:",null,null,null,null,519]
[null,"Kruhové potrubí Ø100 vč. 20 % tvarovek","bm",6,null,null,520]
[null,"Kruhové potrubí Ø125 vč. 30 % tvarovek","bm",1,null,null,520]
[null,"Izolace potrubí:",null,null,null,null,1000]
[null,"Požární izolace z čedičové vlny,  EI 90 min, působení ohně typu B","m2",19,null,null,1010]
[null,"Ostatní",null,null,null,null,5000]
[null,"Upevňovací, těsnicí, montážní, závěsné a pomocné materiály ","kg",145,null,null,5010]
[null,"\"Kompletní montáž včetně lešení, vyrovnání, regulace systému \nvčetně regulačního protokolu, zaškolení obsluhy a předání systému ","hod",227,null,null,5010]
["ZAŘ.21","Celkem za ZAŘ.21",null,null,null,null,1]
["ZAŘ.22","Větrání chráněné únikové cesty B - schodište",null,null,null,null,1]
["22.01","Potrubní radiální odvodní ventilátor s AC motorem do čtyřhranného potrubí, vnitřní provedení, motor s vestavěnými tepelnými kontakty, včetně montáže, zařízení splňuje nařízení o ecodesignu platné od 1.1.2018\nPřesné parametry dle tabulky výkonů. Umístění 1.PP","ks",1,null,null,110]
["22.02","Servopohon s havarijní funkcí LF230, Umístění 1.PP","ks",1,null,null,110]
["22.03","Regulační klapka čtyřhranná s přípravou pro servopohon -S  678x678","ks",1,null,null,210]
["22.04","Pružná manžeta DS , 062/678-678 ","ks",2,null,null,210]
["22.05","Krycí mřížka KM 700x1100","ks",1,null,null,310]
[null,"Přívodní potrubí",null,null,null,null,400]
[null,"Čtyřhranné potrubí z pozinkovaného plechu SK I., včetně příslušenství, včetně montáže, prořez 20%, třída těsnosti B:",null,null,null,null,409]
[null,"Čtyřhranné potrubí do obv. 2630 vč 90 % tvarovek","m2",4,null,null,410]
[null,"Čtyřhranné potrubí do obv. 3500 vč 30 % tvarovek","m2",3,null,null,410]
[null,"Čtyřhranné potrubí do obv. 4000 vč 60 % tvarovek","m2",6,null,null,410]
[null,"Ostatní",null,null,null,null,5000]
[null,"Upevňovací, těsnicí, montážní, závěsné a pomocné materiály ","kg",125,null,null,5010]
[null,"\"Kompletní montáž včetně lešení, vyrovnání, regulace systému \nvčetně regulačního protokolu, zaškolení obsluhy a předání systému ","hod",193,null,null,5010]
["ZAŘ.22","Celkem za ZAŘ.22",null,null,null,null,1]
["ZAŘ.23","Větrání chráněné únikové cesty B - schodište",null,null,null,null,1]
["23.01","Potrubní radiální odvodní ventilátor s AC motorem do čtyřhranného potrubí, vnitřní provedení, motor s vestavěnými tepelnými kontakty, včetně montáže, zařízení splňuje nařízení o ecodesignu platné od 1.1.2018\nPřesné parametry dle tabulky výkonů. Umístění 1.NP","ks",1,null,null,110]
["23.02","Servopohon s havarijní funkcí LF230, Umístění 1.NP","ks",1,null,null,110]
["23.03","Regulační klapka čtyřhranná s přípravou pro servopohon -S  450x450","ks",1,null,null,210]
["23.04","Pružná manžeta 548-548 ","ks",2,null,null,210]
["23.07","Krycí mřížka KM 450x1200","ks",1,null,null,310]
[null,"Přívodní potrubí",null,null,null,null,400]
[null,"Čtyřhranné potrubí z pozinkovaného plechu SK I., včetně příslušenství, včetně montáže, prořez 20%, třída těsnosti B:",null,null,null,null,409]
[null,"Čtyřhranné potrubí do obv. 1890 vč 60 % tvarovek","m2",5,null,null,410]
[null,"Čtyřhranné potrubí do obv. 2630 vč 90 % tvarovek","m2",3,null,null,410]
[null,"Čtyřhranné potrubí do obv. 3500 vč 60 % tvarovek","m2",6,null,null,410]
[null,"Ostatní",null,null,null,null,5000]
[null,"Upevňovací, těsnicí, montážní, závěsné a pomocné materiály ","kg",120,null,null,5010]
[null,"\"Kompletní montáž včetně lešení, vyrovnání, regulace systému \nvčetně regulačního protokolu, zaškolení obsluhy a předání systému ","hod",189,null,null,5010]
["ZAŘ.23","Celkem za ZAŘ.23",null,null,null,null,1]
["ZAŘ.24","Větrání chráněné únikové cesty B - předsíň",null,null,null,null,1]
["24.01","Potrubní axiální středotlaký ventilátor AC motorem do čtyřhranného potrubí, vnitřní provedení, motor s vestavěnými tepelnými kontakty, včetně montáže, zařízení splňuje nařízení o ecodesignu platné od 1.1.2018\nPřesné parametry dle tabulky výkonů. Umístění 6.NP","ks",1,null,null,110]
["24.02","Servopohon s havarijní funkcí LF230, Umístění 6.NP","ks",1,null,null,110]
["24.03","Potrubní axiální středotlaký ventilátor AC motorem do čtyřhranného potrubí, vnitřní provedení, motor s vestavěnými tepelnými kontakty, včetně montáže, zařízení splňuje nařízení o ecodesignu platné od 1.1.2018\nPřesné parametry dle tabulky výkonů. Umístění 6.NP","ks",1,null,null,110]
["24.04","Servopohon s havarijní funkcí LF230, Umístění 6.NP","ks",1,null,null,110]
["24.05","Regulační klapka čtyřhranná s přípravou pro servopohon -S  800x710","ks",1,null,null,210]
["24.06","Regulační klapka čtyřhranná s přípravou pro servopohon -S  800x560","ks",1,null,null,210]
["24.08","Pružná manžeta DN630 ","ks",4,null,null,210]
["24.09","Mřížka odvodní jednořadá 600x200 , RAL bude vyvzorkováno při realizaci stavby, vč. montáže","ks",8,null,null,310]
["24.10","Mřížka přívodní dvouřadá  s nast. lamelami 500x800 , RAL bude vyvzorkováno při realizaci stavby, vč. montáže","ks",3,null,null,310]
["24.11","Mřížka přívodní dvouřadá  s nast. lamelami 500x500 , RAL bude vyvzorkováno při realizaci stavby, vč. montáže","ks",2,null,null,310]
["24.12","Mřížka odvodní jednořadá 500x200 , RAL bude vyvzorkováno při realizaci stavby, vč. montáže","ks",2,null,null,310]
["24.13","Mřížka přívodní dvouřadá  s nast. lamelami 500x300 , RAL bude vyvzorkováno při realizaci stavby, vč. montáže","ks",1,null,null,310]
["24.14","Mřížka přívodní dvouřadá  s nast. lamelami 400x200 , RAL bude vyvzorkováno při realizaci stavby, vč. montáže","ks",1,null,null,310]
["24.15","Mřížka odvodní jednořadá 325x225 , RAL bude vyvzorkováno při realizaci stavby, vč. montáže","ks",1,null,null,310]
["24.16","Mřížka odvodní jednořadá 300x200 , RAL bude vyvzorkováno při realizaci stavby, vč. montáže","ks",1,null,null,310]
["24.17","Výfuková hlavice hranatá 800x710","ks",1,null,null,310]
["24.18","Výfuková hlavice hranatá 1000x800","ks",1,null,null,310]
[null,"Přívodní potrubí",null,null,null,null,400]
[null,"Čtyřhranné potrubí z pozinkovaného plechu SK I., včetně příslušenství, včetně montáže, prořez 20%, třída těsnosti B:",null,null,null,null,409]
[null,"Čtyřhranné potrubí do obv. 650 vč 80 % tvarovek","m2",6,null,null,410]
[null,"Čtyřhranné potrubí do obv. 1050 vč 50 % tvarovek","m2",19,null,null,410]
[null,"Čtyřhranné potrubí do obv. 1890 vč 20 % tvarovek","m2",8,null,null,410]
[null,"Čtyřhranné potrubí do obv. 2630 vč 40 % tvarovek","m2",18,null,null,410]
[null,"Čtyřhranné potrubí do obv. 3500 vč 30 % tvarovek","m2",105,null,null,410]
[null,"Kruhové potrubí SPIRO z oboustraně pozinkovaného plechu, včetně příslušenství, včetně montáže, prořez 20%, třída těsnosti C:",null,null,null,null,419]
[null,"Kruhové potrubí Ø160 vč. 20 % tvarovek","bm",1,null,null,420]
[null,"Odvodní potrubí",null,null,null,null,500]
[null,"Čtyřhranné potrubí z pozinkovaného plechu SK I., včetně příslušenství, včetně montáže, prořez 20%, třída těsnosti B:",null,null,null,null,509]
[null,"Čtyřhranné potrubí do obv. 650 vč 90 % tvarovek","m2",6,null,null,510]
[null,"Čtyřhranné potrubí do obv. 1050 vč 30 % tvarovek","m2",65,null,null,510]
[null,"Čtyřhranné potrubí do obv. 1500 vč 40 % tvarovek","m2",144,null,null,510]
[null,"Čtyřhranné potrubí do obv. 1890 vč 60 % tvarovek","m2",33,null,null,510]
[null,"Čtyřhranné potrubí do obv. 2630 vč 30 % tvarovek","m2",69,null,null,510]
[null,"Čtyřhranné potrubí do obv. 3500 vč 70 % tvarovek","m2",20,null,null,510]
[null,"Čtyřhranné potrubí do obv. 4000 vč 100 % tvarovek","m2",2,null,null,510]
[null,"Kruhové potrubí SPIRO z oboustraně pozinkovaného plechu, včetně příslušenství, včetně montáže, prořez 20%, třída těsnosti C:",null,null,null,null,519]
[null,"Kruhové potrubí Ø160 vč. 20 % tvarovek","bm",11,null,null,520]
[null,"Izolace potrubí:",null,null,null,null,1000]
[null,"Požární izolace z čedičové vlny,  EI 90 min, působení ohně typu B","m2",182,null,null,1010]
[null,"Ostatní",null,null,null,null,5000]
[null,"Upevňovací, těsnicí, montážní, závěsné a pomocné materiály ","kg",125,null,null,5010]
[null,"\"Kompletní montáž včetně lešení, vyrovnání, regulace systému \nvčetně regulačního protokolu, zaškolení obsluhy a předání systému ","hod",256,null,null,5010]
["ZAŘ.24","Celkem za ZAŘ.24",null,null,null,null,1]
["ZAŘ.25","Větrání evakuačních výtahů",null,null,null,null,1]
["25.01","Potrubní radiální odvodní ventilátor s AC motorem do čtyřhranného potrubí, vnitřní provedení, motor s vestavěnými tepelnými kontakty, včetně montáže, zařízení splňuje nařízení o ecodesignu platné od 1.1.2018\nPřesné parametry dle tabulky výkonů. Umístění 1.NP","ks",1,null,null,110]
["25.02","Servopohon s havarijní funkcí LF230, Umístění 6.NP","ks",1,null,null,110]
["25.03","Regulační klapka čtyřhranná s přípravou pro servopohon -S  355x710","ks",1,null,null,210]
["25.04","Pružná manžeta 678-678 ","ks",2,null,null,210]
["25.05","Krycí mřížka KM 1000x800","ks",1,null,null,310]
["25.06","Výfuková hlavice hranatá 355x710","ks",1,null,null,310]
[null,"Přívodní potrubí",null,null,null,null,400]
[null,"Čtyřhranné potrubí z pozinkovaného plechu SK I., včetně příslušenství, včetně montáže, prořez 20%, třída těsnosti B:",null,null,null,null,409]
[null,"Čtyřhranné potrubí do obv. 1890 vč 30 % tvarovek","m2",37,null,null,410]
[null,"Čtyřhranné potrubí do obv. 2630 vč 20 % tvarovek","m2",67,null,null,410]
[null,"Čtyřhranné potrubí do obv. 3500 vč 90 % tvarovek","m2",5,null,null,410]
[null,"Čtyřhranné potrubí do obv. 4000 vč 80 % tvarovek","m2",2,null,null,410]
[null,"Izolace potrubí:",null,null,null,null,1000]
[null,"Požární izolace z čedičové vlny,  EI 90 min, působení ohně typu B","m2",61,null,null,1010]
[null,"Ostatní",null,null,null,null,5000]
[null,"Upevňovací, těsnicí, montážní, závěsné a pomocné materiály ","kg",90,null,null,5010]
[null,"\"Kompletní montáž včetně lešení, vyrovnání, regulace systému \nvčetně regulačního protokolu, zaškolení obsluhy a předání systému ","hod",198,null,null,5010]
["ZAŘ.25","Celkem za ZAŘ.26",null,null,null,null,1]
["ZAŘ.26","Větrání evakuačního výtahu",null,null,null,null,1]
["26.01","Potrubní radiální odvodní ventilátor s AC motorem do čtyřhranného potrubí, vnitřní provedení, motor s vestavěnými tepelnými kontakty, včetně montáže, zařízení splňuje nařízení o ecodesignu platné od 1.1.2018\nPřesné parametry dle tabulky výkonů. Umístění 1.PP","ks",1,null,null,110]
["26.02","Servopohon s havarijní funkcí LF230, Umístění 1.PP","ks",1,null,null,110]
["26.03","Regulační klapka čtyřhranná s přípravou pro servopohon -S  548x548","ks",1,null,null,210]
["26.04","Pružná manžeta 548-548 ","ks",2,null,null,210]
["26.06","Krycí mřížka KM 400x400","ks",1,null,null,310]
[null,"Přívodní potrubí",null,null,null,null,400]
[null,"Čtyřhranné potrubí z pozinkovaného plechu SK I., včetně příslušenství, včetně montáže, prořez 20%, třída těsnosti B:",null,null,null,null,409]
[null,"Čtyřhranné potrubí do obv. 1500 vč 40 % tvarovek","m2",20,null,null,410]
[null,"Čtyřhranné potrubí do obv. 2630 vč 80 % tvarovek","m2",8,null,null,410]
[null,"Izolace potrubí:",null,null,null,null,1000]
[null,"Požární izolace z čedičové vlny,  EI 90 min, působení ohně typu B","m2",15,null,null,1010]
[null,"Ostatní",null,null,null,null,5000]
[null,"Upevňovací, těsnicí, montážní, závěsné a pomocné materiály ","kg",82,null,null,5010]
[null,"\"Kompletní montáž včetně lešení, vyrovnání, regulace systému \nvčetně regulačního protokolu, zaškolení obsluhy a předání systému ","hod",163,null,null,5010]
["ZAŘ.26","Celkem za ZAŘ.26",null,null,null,null,1]
["ZAŘ.27","Větrání filtru",null,null,null,null,1]
["27.01","Potrubní axiální středotlaký ventilátor AC motorem do čtyřhranného potrubí, vnitřní provedení, motor s vestavěnými tepelnými kontakty, včetně montáže, zařízení splňuje nařízení o ecodesignu platné od 1.1.2018\nPřesné parametry dle tabulky výkonů. Umístění 6.NP","ks",1,null,null,110]
["27.02","Servopohon s havarijní funkcí LF230, Umístění 6.NP","ks",1,null,null,110]
["27.03","Potrubní axiální středotlaký ventilátor AC motorem do čtyřhranného potrubí, vnitřní provedení, motor s vestavěnými tepelnými kontakty, včetně montáže, zařízení splňuje nařízení o ecodesignu platné od 1.1.2018\nPřesné parametry dle tabulky výkonů. Umístění 6.NP","ks",1,null,null,110]
["27.04","Servopohon s havarijní funkcí LF230, Umístění 6.NP","ks",1,null,null,110]
["27.05","Servopohon s havarijní funkcí NF230A, Umístění 2-6.NP","ks",4,null,null,110]
["27.06","Regulační klapka čtyřhranná s přípravou pro servopohon -S  900x560","ks",1,null,null,210]
["27.07","Regulační klapka čtyřhranná s přípravou pro servopohon -S  1120x400","ks",1,null,null,210]
["27.08","Regulační klapka čtyřhranná s přípravou pro servopohon -S  600x500","ks",4,null,null,210]
["27.09","Pružná manžeta DN560","ks",4,null,null,210]
["27.10","Mřížka přívodní dvouřadá s nast. lamelami  1000x500 , RAL bude vyvzorkováno při realizaci stavby, vč. montáže","ks",4,null,null,310]
["27.11","Mřížka odvodní jednořadá 600x500 , RAL bude vyvzorkováno při realizaci stavby, vč. montáže","ks",4,null,null,310]
["27.12","Výfuková hlavice hranatá 1000x1000","ks",1,null,null,310]
["27.13","Výfuková hlavice hranatá 1000x800","ks",1,null,null,310]
[null,"Přívodní potrubí",null,null,null,null,400]
[null,"Čtyřhranné potrubí z pozinkovaného plechu SK I., včetně příslušenství, včetně montáže, prořez 20%, třída těsnosti B:",null,null,null,null,409]
[null,"Čtyřhranné potrubí do obv. 2630 vč 30 % tvarovek","m2",30,null,null,410]
[null,"Čtyřhranné potrubí do obv. 3500 vč 40 % tvarovek","m2",42,null,null,410]
[null,"Čtyřhranné potrubí do obv. 4000 vč 100 % tvarovek","m2",9,null,null,410]
[null,"Kruhové potrubí SPIRO z oboustraně pozinkovaného plechu, včetně příslušenství, včetně montáže, prořez 20%, třída těsnosti C:",null,null,null,null,419]
[null,"Odvodní potrubí",null,null,null,null,500]
[null,"Čtyřhranné potrubí z pozinkovaného plechu SK I., včetně příslušenství, včetně montáže, prořez 20%, třída těsnosti B:",null,null,null,null,509]
[null,"Čtyřhranné potrubí do obv. 3500 vč 90 % tvarovek","m2",3,null,null,510]
[null,"Čtyřhranné potrubí do obv. 4000 vč 100 % tvarovek","m2",2,null,null,510]
[null,"Kruhové potrubí SPIRO z oboustraně pozinkovaného plechu, včetně příslušenství, včetně montáže, prořez 20%, třída těsnosti C:",null,null,null,null,519]
[null,"Izolace potrubí:",null,null,null,null,1000]
[null,"Požární izolace z čedičové vlny,  EI 90 min, působení ohně typu B","m2",49,null,null,1010]
[null,"Ostatní",null,null,null,null,5000]
[null,"Upevňovací, těsnicí, montážní, závěsné a pomocné materiály ","kg",105,null,null,5010]
[null,"\"Kompletní montáž včetně lešení, vyrovnání, regulace systému \nvčetně regulačního protokolu, zaškolení obsluhy a předání systému ","hod",256,null,null,5010]
["ZAŘ.27","Celkem za ZAŘ.27",null,null,null,null,1]
["ZAŘ.28","Větrání filtru",null,null,null,null,1]
["28.01","Potrubní axiální středotlaký ventilátor AC motorem do čtyřhranného potrubí, vnitřní provedení, motor s vestavěnými tepelnými kontakty, včetně montáže, zařízení splňuje nařízení o ecodesignu platné od 1.1.2018\nPřesné parametry dle tabulky výkonů. Umístění 6.NP","ks",1,null,null,110]
["28.02","Servopohon s havarijní funkcí LF230, Umístění 6.NP","ks",1,null,null,110]
["28.03","Potrubní axiální středotlaký ventilátor AC motorem do čtyřhranného potrubí, vnitřní provedení, motor s vestavěnými tepelnými kontakty, včetně montáže, zařízení splňuje nařízení o ecodesignu platné od 1.1.2018\nPřesné parametry dle tabulky výkonů. Umístění 6.NP","ks",1,null,null,110]
["28.04","Servopohon s havarijní funkcí LF230, Umístění 6.NP","ks",1,null,null,110]
["28.05","Servopohon s havarijní funkcí LF230, Umístění 2-6.NP","ks",4,null,null,110]
["28.05","Regulační klapka čtyřhranná s přípravou pro servopohon -S  900x560","ks",1,null,null,210]
["28.06","Regulační klapka čtyřhranná s přípravou pro servopohon -S  400x400","ks",1,null,null,210]
["28.07","Regulační klapka čtyřhranná s přípravou pro servopohon -S  315x200","ks",6,null,null,210]
["28.08","Pružná manžeta DN560","ks",4,null,null,210]
["28.09","Mřížka přívodní dvouřadá  s nast. lamelami 600x300 , RAL bude vyvzorkováno při realizaci stavby, vč. montáže","ks",6,null,null,310]
["28.10","Mřížka odvodní jednořadá 400x300 , RAL bude vyvzorkováno při realizaci stavby, vč. montáže","ks",4,null,null,310]
["28.11","Výfuková hlavice hranatá 1000x560","ks",1,null,null,310]
["28.12","Výfuková hlavice hranatá 630x630","ks",1,null,null,310]
[null,"Přívodní potrubí",null,null,null,null,400]
[null,"Čtyřhranné potrubí z pozinkovaného plechu SK I., včetně příslušenství, včetně montáže, prořez 20%, třída těsnosti B:",null,null,null,null,409]
[null,"Čtyřhranné potrubí do obv. 1500 vč 60 % tvarovek","m2",25,null,null,410]
[null,"Čtyřhranné potrubí do obv. 2630 vč 90 % tvarovek","m2",2,null,null,410]
[null,"Čtyřhranné potrubí do obv. 3500 vč 40 % tvarovek","m2",16,null,null,410]
[null,"Kruhové potrubí SPIRO z oboustraně pozinkovaného plechu, včetně příslušenství, včetně montáže, prořez 20%, třída těsnosti C:",null,null,null,null,419]
[null,"Kruhové potrubí SPIRO z oboustraně pozinkovaného plechu, včetně příslušenství, včetně montáže, prořez 20%, třída těsnosti C:",null,null,null,null,419]
[null,"Odvodní potrubí",null,null,null,null,500]
[null,"Čtyřhranné potrubí z pozinkovaného plechu SK I., včetně příslušenství, včetně montáže, prořez 20%, třída těsnosti B:",null,null,null,null,509]
[null,"Čtyřhranné potrubí do obv. 1500 vč 50 % tvarovek","m2",15,null,null,510]
[null,"Čtyřhranné potrubí do obv. 1890 vč 30 % tvarovek","m2",23,null,null,510]
[null,"Čtyřhranné potrubí do obv. 2630 vč 90 % tvarovek","m2",2,null,null,510]
[null,"Kruhové potrubí SPIRO z oboustraně pozinkovaného plechu, včetně příslušenství, včetně montáže, prořez 20%, třída těsnosti C:",null,null,null,null,519]
[null,"Kruhové potrubí SPIRO z oboustraně pozinkovaného plechu, včetně příslušenství, včetně montáže, prořez 20%, třída těsnosti C:",null,null,null,null,519]
[null,"Izolace potrubí:",null,null,null,null,1000]
[null,"Tepelná izolace 40 mm z čedičové vlny na vyztuženou Al fólii; role, samolepící, přelepení spojů Al páskou; vč. montáže","m2",1,null,null,1010]
[null,"Požární izolace z čedičové vlny,  EI 90 min, působení ohně typu B","m2",19,null,null,1010]
[null,"Požární izolace z čedičové vlny,  EI 60 min, působení ohně typu B","m2",29,null,null,1010]
[null,"Požární izolace z čedičové vlny,  EI 60 min, působení ohně typu B","m2",2,null,null,1010]
[null,"Ostatní",null,null,null,null,5000]
[null,"Upevňovací, těsnicí, montážní, závěsné a pomocné materiály ","kg",110,null,null,5010]
[null,"\"Kompletní montáž včetně lešení, vyrovnání, regulace systému \nvčetně regulačního protokolu, zaškolení obsluhy a předání systému ","hod",258,null,null,5010]
["ZAŘ.28","Celkem za ZAŘ.28",null,null,null,null,1]
["ZAŘ.30","Chlazení kanceláří",null,null,null,null,1]
["30.01","Vnitřní kazetová fancoilová jednotka, vč. 3-cestného reg.ventilu, ON/OFF, 230V, \n4 stupně otáček ventilátoru, rozměr 600 x 600, 2- trubkové provedení, čerpadlo kondenzátu; dekorační panel pro připojení jednotky k VMF systému, nástěnný ovladač, vč. montáže, Umístění 1.NP, přesné parametry dle tabulky zařízení","ks",2,null,null,110]
["30.02","Vnitřní kazetová fancoilová jednotka, vč. 3-cestného reg.ventilu, ON/OFF, 230V, \n4 stupně otáček ventilátoru, rozměr 840 x 840, 2- trubkové provedení, čerpadlo kondenzátu; dekorační panel pro připojení jednotky k VMF systému, nástěnný ovladač, vč. montáže, Umístění 1.NP, přesné parametry dle tabulky zařízení","ks",3,null,null,110]
["30.03","Vnitřní kazetová fancoilová jednotka, vč. 3-cestného reg.ventilu, ON/OFF, 230V, \n4 stupně otáček ventilátoru, rozměr 840 x 840, 2- trubkové provedení, čerpadlo kondenzátu; dekorační panel pro připojení jednotky k VMF systému, nástěnný ovladač, vč. montáže, Umístění 1.NP, přesné parametry dle tabulky zařízení","ks",1,null,null,110]
[null,"Čtyřhranné potrubí do obv. 3500 vč. 40 % tvarovek","m2",2,null,null,410]
[null,"Tepelná izolace 40 mm z čedičové vlny na vyztuženou Al fólii; role, samolepící, přelepení spojů Al páskou; vč. montáže","m2",1,null,null,1010]
[null,"Ostatní",null,null,null,null,5000]
[null,"Hlavní montáž, připojení a uvedení do provozu, pomocný materiál","sada",1,null,null,5010]
["ZAŘ.30","Celkem za ZAŘ.30",null,null,null,null,1]
["ZAŘ.31","Chlazení chodby",null,null,null,null,1]
["31.01","Vnitřní kanálová fancoilová jednotka, levé připojení, regulace výkonu, 4 stupně otáček ventilátoru, 4- trubkové provedení se standardním výměníkem pro vytápění; nástěnný ovladač, regulátor pro připojení FCU k VMF systému regulace nebo pro\npřipojení k nadřazenému systému Modbus, RS485, vč. montáže,  Umístění 1.NP\npřesné parametry dle tabulky zařízení","ks",12,null,null,110]
["31.02","Nástavec ke kanálovému fancoilu DN200 , 2 vývody  1122x216, zvenku tepelně izolovaný - izoláce tl. 19mm  , DN200","ks",12,null,null,210]
["30.03","Mřížka přívodní dvouřadá  s nast. lamelami 500x200 , RAL bude vyvzorkováno při realizaci stavby, vč. montáže","ks",18,null,null,310]
["31.03","Mřížka přívodní dvouřadá  s nast. lamelami 500x200 , RAL bude vyvzorkováno při realizaci stavby, vč. montáže","ks",6,null,null,310]
[null,"Čtyřhranné potrubí do obv. 3500 vč. 40 % tvarovek","m2",5,null,null,410]
[null,"Kruhové potrubí Ø200 vč. 30 % tvarovek","bm",73,null,null,420]
[null,"Tepelná izolace 40 mm z čedičové vlny na vyztuženou Al fólii; role, samolepící, přelepení spojů Al páskou; vč. montáže","m2",112,null,null,1010]
[null,"Ostatní",null,null,null,null,5000]
[null,"Hlavní montáž, připojení a uvedení do provozu, pomocný materiál","sada",1,null,null,5010]
["ZAŘ.31","Celkem za ZAŘ.31",null,null,null,null,1]
["ZAŘ.32","Chlazení prádelny",null,null,null,null,1]
["32.01","Kondenzační jednotka (tepelné čerpadlo) s horizontálním výstupem vzduchu s axiálními ventilátory (chladivo R410A), s invertorovým komresorem, jednotka je vybavena integrovanými kontakty pro beznapěťové řízení provozních režimů ze systému Měření a Regulace. Doplnění chladiva.  Pomocná ocelová k-ce pod kondenzační jednotku + antivibrační podložky. Umístění 1.NP, přesné parametry dle tabulky zařízení","ks",1,null,null,110]
["32.02","Vnitřní podstropní chladící jednotka, komunikační modul pro sběrnici RS 484, Refnet - potrubní rozbočovač, Nástěnný kabelový ovladač s dotykovým LCD, Umístění strop 1.PP, přesné paramtery dle tabulky zařízení","ks",3,null,null,110]
[null,"Cu potrubí:",null,null,null,null,1009]
[null,"Meď potrubí ø6 mm, vč. izolace s parozábranou odolné UV záření","bm",15,null,null,1110]
[null,"Meď potrubí ø10 mm, vč. izolace s parozábranou odolné UV záření","bm",25,null,null,1110]
[null,"Meď potrubí ø12 mm, vč. izolace s parozábranou odolné UV záření","bm",15,null,null,1110]
[null,"Meď potrubí ø15 mm, vč. izolace s parozábranou odolné UV záření","bm",25,null,null,1110]
[null,"Ostatní",null,null,null,null,5000]
[null,"Montážní konstrukce pro venkovní kondenzační jednotku, pomocný materál","sada",1,null,null,5010]
[null,"Elektrická kabeláž (komunikační kabeláž mezi vnitřní a venkovní jednotkou, napájení vnitřní jednotky z venkovní jednotky, řídicí jednotka s vnitřní jednotkou)","sada",1,null,null,5010]
["ZAŘ.32","Celkem za ZAŘ.32",null,null,null,null,1]
["ZAŘ.33","Chlazení školící místnosti",null,null,null,null,1]
["33.01","Vnitřní kanálová fancoilová jednotka, levé připojení, regulace výkonu, 4 stupně otáček ventilátoru, 4- trubkové provedení se standardním výměníkem pro vytápění; nástěnný ovladač, regulátor pro připojení FCU k VMF systému regulace nebo pro\npřipojení k nadřazenému systému Modbus, RS485, vč. montáže. Pomocná ocelová k-ce pod kondenzační jednotku + antivibrační podložky.  Umístění 1.PP,\npřesné parametry dle tabulky zařízení","ks",2,null,null,110]
["33.02","Nástavec ke kanálovému fancoilu DN200 , 2 vývody  1122x216, zvenku tepelně izolovaný - izoláce tl. 19mm  , DN200","ks",2,null,null,210]
["33.03","Vířívý anemostat s čtvercovou čelní deskou přívodní  400x400-16 , s plenum boxem s horizontálním připojením DN160-s regulací, RAL bude vyvzorkováno při realizaci stavby, vč. montáže","ks",4,null,null,310]
[null,"Kruhové potrubí Ø200 vč. 20 % tvarovek","bm",1,null,null,420]
[null,"Kruhové potrubí Ø160 vč. 20 % tvarovek","bm",3,null,null,420]
[null,"Ohebná hadice izolovaná ø240 mm, tl. izolace 25mm (skelná vata)","bm",4,null,null,910]
[null,"Tepelná izolace 40 mm z čedičové vlny na vyztuženou Al fólii; role, samolepící, přelepení spojů Al páskou; vč. montáže","m2",8,null,null,1010]
[null,"Ostatní",null,null,null,null,5000]
[null,"Hlavní montáž, připojení a uvedení do provozu, pomocný materiál","sada",1,null,null,5010]
["ZAŘ.33","Celkem za ZAŘ.33",null,null,null,null,1]
["ZAŘ.34","Chlazení ESIL - požární",null,null,null,null,1]
["34.01","Venkovní split jednotka (tepelné čerpadlo) s horizontálním výstupem vzduchu s axiálními ventilátory (chladivo R32), s invertorovým komresorem, jednotka je vybavena integrovanými kontakty pro beznapěťové řízení provozních režimů ze systému Měření a Regulace. Doplnění chladiva. Umístění 1.NP, přesné parametry dle tabulky zařízení","ks",1,null,null,110]
["34.02","Vnitřní nástěnná split jednotka s maskou, s nasáváním vzduchu shora a odfukem, vč. nástěnného kabelového ovladače, vč. konektoru pro připojení kabelového ovladače, Umístění 1.PP","ks",1,null,null,110]
[null,"Meď potrubí ø6 mm, vč. izolace s parozábranou odolné UV záření","bm",44,null,null,1110]
[null,"Meď potrubí ø10 mm, vč. izolace s parozábranou odolné UV záření","bm",44,null,null,1110]
["ZAŘ.34","Celkem za ZAŘ.34",null,null,null,null,1]
[null,"Vedlejsí rozpočtové náklady",null,null,null,null,1]
[null,"Montážní lešení a plošiny","sada",1,null,null,110]
[null,"Popisovací štítky zařízení + šipky proudění media (provedení odolné UV záření a povětrnostním vlivům)","sada",1,null,null,110]
[null,"Požární utěsnění VZT prostupů v požárně dělících předělech s odolností dle PD PBŘ","ks",98,null,null,1110]
[null,"Stavební přípomoce, jádrové vrtání otvorů do DN 150","ks",128,null,null,1110]
[null,"Certifikované měření hluku VZT zařízení","sada",1,null,null,110]
[null,"Vyhotovení realizační a výrobní dokumentace","sada",1,null,null,110]
[null,"Revize a potřebné zkoušky","sada",1,null,null,1110]
[null,"Zaregulování VZT zařízení a distribučních prvků vč. vystavení protokolů o zaregulování všech zařízení","sada",1,null,null,1110]
[null,"Zkušební provoz zařízení","sada",1,null,null,110]
[null,"Vnitrostaveništní doprava a přesuny","sada",1,null,null,110]
[null,"Zdvihací mechanizmy a jeřáby","sada",1,null,null,1110]
[null,"Doprava","sada",1,null,null,1110]
[null,"Demontáž stávajícího potrubí ; včetně veškerého příslušenství a kotvícího systému","hod",350,null,null,110]
[null,"Demontáž stávajících distribučních elementů","hod",120,null,null,110]
[null,"Demontáž stávajíc VZT jednotek a ekologická likvidace","hod",95,null,null,1110]
[null,"Celkem vedeljší rozpočtové náklady",null,null,null,null,1]

{"sheet":"Stvorhranne_tvarovky_kusy2","index":3,"n_rows":198,"n_cols":6,"rows_kept":198,"cut":false,"hidden":true,"merged":[]}
["Zkratka systému","Popis","Počet","Popis do specifikace","Obvod do specifikace","Plocha do specifikace"]
[1,"Oblouk,160x125-160x125,",1,"",650,"0.39"]
[1,"Prechod tvaru_ovladanie pozicie,160x125-ø125,",1,"",650,"0.16"]
[1,"Prechod tvaru_ovladanie pozicie,160x160-ø160,",1,"",650,"0.18"]
[1,"Prechod rozmeru,225x125-160x125,",1,"",1050,"0.16"]
[1,"Prechod rozmeru,250x140-225x125,",1,"",1050,"0.18"]
[1,"Prechod rozmeru,250x200-250x140,",1,"",1050,"0.21"]
[1,"Prechod rozmeru,280x125-160x160,",1,"",1050,"0.19"]
[1,"ATYP_A1_002-prumer,400x150-ø125,",12,"",1500,"2.85"]
[1,"Prechod rozmeru,400x160-280x125,",1,"",1500,"0.26"]
[1,"Oblouk,400x160-400x160,",1,"",1500,"1.06"]
[1,"Prechod rozmeru,400x200-400x160,",1,"",1500,"0.28"]
[1,"ATYP_A1_002-prumer,500x150-ø140,",1,"",1500,"0.28"]
[1,"Prechod rozmeru,560x200-400x200,",1,"",1890,"0.35"]
[1,"Rozbočka T,710x200-560x200-250x200,",1,"",1890,"1.23"]
[1,"Prechod rozmeru,710x250-710x200,",1,"",2630,"0.44"]
[1,"Prechod tvaru_ovladanie pozicie,180x160-ø160,",1,"",1050,"0.19"]
[1,"Odskok,200x225-200x225,",2,"",1050,"0.59"]
[1,"Prechod rozmeru,225x200-180x160,",1,"",1050,"0.20"]
[1,"Oblouk,355x160-355x160,",1,"",1050,"0.92"]
[1,"Prechod tvaru_ovladanie pozicie,355x160-ø160,",1,"",1050,"0.28"]
[1,"Prechod rozmeru,400x180-355x160,",1,"",1500,"0.27"]
[1,"Prechod rozmeru,500x200-400x180,",1,"",1500,"0.32"]
[1,"Rozbočka T,710x200-500x200-225x200,",1,"",1890,"1.15"]
[1,"Oblouk,710x200-710x200,",1,"",1890,"2.88"]
[1,"Prechod rozmeru,710x250-710x200,",1,"",2630,"0.44"]
[2,"Oblouk,100x355-100x355,",8,"",1050,"4.02"]
[2,"Prechod rozmeru,200x200-355x100,",1,"",1050,"0.21"]
[2,"Prechod tvaru_ovladanie pozicie,200x200-ø200,",1,"",1050,"0.22"]
[2,"Oblouk,200x800-200x800,",2,"",2630,"2.58"]
[2,"Oblouk,355x100-355x100,",1,"",1050,"0.82"]
[2,"M_Hranaté odbočení,355x125-355x125,",1,"",1050,"0.06"]
[2,"Prechod tvaru_ovladanie pozicie,355x125-ø125,",1,"",1050,"0.26"]
[2,"ATYP_A1_002-prumer,400x150-ø125,",9,"",1500,"2.09"]
[2,"ATYP_A1_002-prumer,500x150-ø140,",2,"",1500,"0.56"]
[2,"Prechod rozmeru,560x200-355x100,",1,"",1890,"0.35"]
[2,"Prechod rozmeru,710x200-560x200,",1,"",1890,"0.42"]
[2,"Prechod rozmeru,710x200-630x200,",1,"",1890,"0.42"]
[2,"Prechod rozmeru,800x200-710x200,",1,"",2630,"0.46"]
[2,"Oblouk,800x200-800x200,",1,"",2630,"3.40"]
[2,"Prechod rozmeru,900x200-800x200,",1,"",2630,"0.76"]
[2,"Oblouk,900x200-900x200,",1,"",2630,"4.02"]
[2,"125x315-125x315,",4,"",1050,"1.34"]
[2,"Odskok,140x400-140x400,",1,"",1500,"0.37"]
[2,"Oblouk,160x160-160x160,",1,"",650,"0.43"]
[2,"Prechod tvaru_ovladanie pozicie,160x160-ø160,",1,"",650,"0.18"]
[2,"Prechod rozmeru,160x200-160x160,",1,"",1050,"0.17"]
[2,"Prechod rozmeru,200x200-315x125,",2,"",1050,"0.40"]
[2,"Oblouk,200x630-200x630,",2,"",1890,"2.17"]
[2,"315x125-315x125,",6,"",1050,"3.81"]
[2,"Prechod rozmeru,400x140-315x125,",1,"",1500,"0.25"]
[2,"Prechod rozmeru,560x160-400x140,",1,"",1500,"0.33"]
[2,"Prechod rozmeru,560x200-560x160,",1,"",1890,"0.35"]
[2,"Prechod rozmeru,710x180-560x200,",1,"",1890,"0.41"]
[2,"Prechod rozmeru,710x180-630x200,",1,"",1890,"0.41"]
[2,"Rozbočka T,800x200-630x200-160x200,",1,"",2630,"1.45"]
[2,"Prechod rozmeru,900x200-800x200,",1,"",2630,"0.51"]
[3,"Prechod tvaru_ovladanie pozicie,200x200-ø200,",1,"",1050,"0.22"]
[3,"Oblouk,200x280-200x280,",2,"",1050,"1.32"]
[3,"Prechod rozmeru,250x200-200x200,",1,"",1050,"0.21"]
[3,"Oblouk,250x710-250x710,",2,"",2630,"2.74"]
[3,"Prechod tvaru_ovladanie pozicie,280x200-ø200,",1,"",1050,"0.26"]
[3,"Prechod rozmeru,355x200-280x200,",1,"",1500,"0.26"]
[3,"Prechod rozmeru,355x250-250x200,",1,"",1500,"0.28"]
[3,"ATYP_A1_002-prumer,400x150-ø125,",13,"",1500,"3.02"]
[3,"Prechod rozmeru,400x200-355x200,",1,"",1500,"0.28"]
[3,"Prechod rozmeru,450x200-400x200,",1,"",1500,"0.30"]
[3,"Prechod rozmeru,500x200-450x200,",1,"",1500,"0.32"]
[3,"Prechod rozmeru,550x200-500x200,",1,"",1500,"0.38"]
[3,"Prechod rozmeru,630x200-550x200,",1,"",1890,"0.38"]
[3,"Prechod rozmeru,630x250-630x200,",1,"",1890,"0.40"]
[3,"Rozbočka T,710x250-630x250-355x250,",1,"",2630,"1.34"]
[3,"Prechod rozmeru,710x250-710x250,",1,"",2630,"0.44"]
[3,"Oblouk prechodovy,1120x250-710x250,90.00°,",1,"",3500,"5.51"]
[3,"Prechod tvaru_ovladanie pozicie,160x160-ø160,",1,"",650,"0.18"]
[3,"Prechod tvaru_ovladanie pozicie,160x450-ø180,",1,"",1500,"0.76"]
[3,"Oblouk,225x500-225x500,",2,"",1500,"2.01"]
[3,"Prechod rozmeru,250x160-160x160,",1,"",1050,"0.19"]
[3,"Prechod rozmeru,250x250-250x160,",1,"",1050,"0.23"]
[3,"Oblouk,250x250-250x250,",2,"",1050,"1.51"]
[3,"Oblouk,250x710-250x710,",2,"",2630,"2.74"]
[3,"Prechod rozmeru,450x200-450x160,",1,"",1500,"0.30"]
[3,"Prechod rozmeru,500x225-450x200,",1,"",1500,"0.33"]
[3,"Prechod rozmeru,500x250-500x225,",1,"",1500,"0.35"]
[3,"Rozbočka T,710x250-500x250-250x250,",1,"",2630,"1.25"]
[3,"Oblouk,710x250-710x250,",4,"",2630,"10.79"]
[3,"Prechod rozmeru,1120x250-710x250,",1,"",3500,"1.26"]
[4,"Prechod tvaru_ovladanie pozicie,200x200-ø200,",2,"",1050,"0.44"]
[4,"Prechod rozmeru,250x200-200x200,",2,"",1050,"0.41"]
[4,"Oblouk,250x900-250x900,",2,"",2630,"3.26"]
[4,"Prechod rozmeru,315x200-250x200,",1,"",1050,"0.24"]
[4,"Oblouk,315x200-315x200,",1,"",1050,"0.87"]
[4,"Rozbočka T,315x200-315x200-200x200,",1,"",1050,"0.48"]
[4,"Prechod tvaru_ovladanie pozicie,315x200-ø200,",1,"",1050,"0.28"]
[4,"Prechod rozmeru,355x200-315x200,",2,"",1500,"0.51"]
[4,"ATYP_A1_002-prumer,400x150-ø125,",16,"",1500,"3.71"]
[4,"Prechod rozmeru,450x200-355x200,",1,"",1500,"0.30"]
[4,"ATYP_A1_002-prumer,500x150-ø160,",1,"",1500,"0.27"]
[4,"Prechod rozmeru,500x200-355x200,",1,"",1500,"0.18"]
[4,"Prechod rozmeru,500x200-450x200,",1,"",1500,"0.32"]
[4,"Prechod rozmeru,560x200-500x200,",1,"",1890,"0.35"]
[4,"Prechod rozmeru,560x250-500x200,",1,"",1890,"0.37"]
[4,"Prechod rozmeru,560x250-560x200,",1,"",1890,"0.37"]
[4,"Rozbočka T,900x250-560x250-560x250,",1,"",2630,"1.46"]
[4,"Odskok,900x250-900x250,",1,"",2630,"0.79"]
[4,"Oblouk prechodovy,1000x250-900x250,90.00°,",1,"",2630,"4.27"]
[4,"Prechod tvaru_ovladanie pozicie,200x200-ø200,",1,"",1050,"0.22"]
[4,"Oblouk,200x250-200x250,",4,"",1050,"2.49"]
[4,"Oblouk,200x400-200x400,",2,"",1500,"1.61"]
[4,"Prechod tvaru univerzalni,250x200-ø160,",1,"",1050,"0.56"]
[4,"Oblouk,250x900-250x900,",2,"",2630,"3.26"]
[4,"Prechod rozmeru,315x200-200x200,",1,"",1050,"0.24"]
[4,"Prechod rozmeru,315x200-250x200,",1,"",1050,"0.24"]
[4,"Oblouk,315x200-315x200,",1,"",1050,"0.87"]
[4,"Prechod rozmeru,355x200-315x200,",1,"",1500,"0.26"]
[4,"Prechod rozmeru,400x200-315x200,",1,"",1500,"0.28"]
[4,"Prechod rozmeru,400x200-355x200,",1,"",1500,"0.28"]
[4,"Prechod rozmeru,500x200-400x200,",1,"",1500,"0.32"]
[4,"Prechod rozmeru,500x250-500x200,",1,"",1500,"0.35"]
[4,"Prechod rozmeru,580x200-400x200,",1,"",1890,"0.36"]
[4,"Odskok,580x200-580x200,",2,"",1890,"0.81"]
[4,"Prechod rozmeru,630x200-580x200,",1,"",1890,"0.38"]
[4,"Prechod rozmeru,630x250-630x200,",1,"",1890,"0.40"]
[4,"Rozbočka T,900x250-630x250-500x250,",1,"",2630,"1.60"]
[4,"Oblouk,900x250-900x250,",1,"",2630,"4.31"]
[4,"Prechod rozmeru,1000x250-900x250,",1,"",2630,"0.86"]
[5,"Prechod tvaru_ovladanie pozicie,200x200-ø200,",2,"",1050,"0.44"]
[5,"Prechod tvaru_ovladanie pozicie,250x200-ø200,",1,"",1050,"0.25"]
[5,"Prechod rozmeru,315x200-250x200,",1,"",1050,"0.24"]
[5,"Prechod rozmeru,355x200-250x200,",1,"",1500,"0.26"]
[5,"ATYP_A1_002-prumer,400x150-ø125,",16,"",1500,"3.71"]
[5,"Prechod rozmeru,400x200-315x200,",1,"",1500,"0.28"]
[5,"Prechod rozmeru,400x250-400x200,",1,"",1500,"0.30"]
[5,"ATYP_A1_002-prumer,500x150-ø125,",1,"",1500,"0.28"]
[5,"Prechod rozmeru,630x200-355x200,",1,"",1890,"0.38"]
[5,"Rozbočka T,630x200-630x200-200x200,",1,"",1890,"0.68"]
[5,"Prechod rozmeru,710x225-710x200,",1,"",1890,"0.43"]
[5,"Prechod rozmeru,710x250-710x225,",1,"",2630,"0.44"]
[5,"Rozbočka T,1000x250-710x250-400x250,",1,"",2630,"1.80"]
[5,"Prechod rozmeru,1120x250-1000x250,",1,"",3500,"0.63"]
[5,"Prechod tvaru_ovladanie pozicie,160x160-ø160,",1,"",650,"0.18"]
[5,"Oblouk,160x400-160x400,",4,"",1500,"2.78"]
[5,"Oblouk,200x710-200x710,",4,"",1890,"4.73"]
[5,"Prechod tvaru univerzalni,225x160-ø160,",1,"",1050,"0.21"]
[5,"Prechod rozmeru,355x160-225x160,",1,"",1050,"0.24"]
[5,"Prechod rozmeru,400x160-160x160,",1,"",1500,"0.26"]
[5,"Prechod rozmeru,400x200-400x160,",1,"",1500,"0.28"]
[5,"Prechod rozmeru,400x250-400x200,",1,"",1500,"0.30"]
[5,"Prechod rozmeru,630x200-355x160,",1,"",1890,"0.38"]
[5,"Prechod rozmeru,710x200-630x200,",1,"",1890,"0.42"]
[5,"Prechod rozmeru,710x250-710x200,",1,"",2630,"0.44"]
[5,"Rozbočka T,1000x250-710x250-400x250,",1,"",2630,"1.80"]
[5,"Oblouk,1000x250-1000x250,",2,"",2630,"10.02"]
[5,"Prechod rozmeru,1120x250-1000x250,",1,"",3500,"0.95"]
[6,"Prechod tvaru_ovladanie pozicie,200x160-ø200,",1,"",1050,"0.20"]
[6,"Oblouk,225x900-225x900,",2,"",2630,"3.04"]
[6,"Prechod rozmeru,250x160-200x160,",1,"",1050,"0.19"]
[6,"Prechod tvaru_ovladanie pozicie,250x200-ø160,",1,"",1050,"0.25"]
[6,"Prechod rozmeru,280x180-250x200,",1,"",1050,"0.21"]
[6,"Prechod rozmeru,315x180-250x160,",1,"",1050,"0.23"]
[6,"ATYP_A1_002-prumer,400x150-ø125,",16,"",1500,"3.71"]
[6,"Prechod rozmeru,400x180-315x180,",1,"",1500,"0.27"]
[6,"Prechod rozmeru,400x200-280x180,",1,"",1500,"0.28"]
[6,"Prechod rozmeru,400x200-400x180,",1,"",1500,"0.28"]
[6,"Oblouk,400x200-400x200,",2,"",1500,"2.27"]
[6,"Prechod rozmeru,400x225-400x200,",1,"",1500,"0.29"]
[6,"Prechod rozmeru,500x200-400x200,",1,"",1500,"0.32"]
[6,"Oblouk,500x200-500x200,",2,"",1500,"3.00"]
[6,"Prechod rozmeru,560x200-500x200,",1,"",1890,"0.35"]
[6,"Prechod rozmeru,630x200-560x200,",1,"",1890,"0.38"]
[6,"Prechod rozmeru,630x225-630x200,",1,"",1890,"0.39"]
[6,"Rozbočka T,900x225-630x225-400x225,",1,"",2630,"1.51"]
[6,"Prechod rozmeru,1200x250-900x225,",1,"",3500,"1.00"]
[6,"Prechod tvaru_ovladanie pozicie,125x125-ø125,",1,"",650,"0.14"]
[6,"Odskok,180x315-180x315,",1,"",1050,"0.34"]
[6,"Odskok,180x500-180x500,",1,"",1500,"0.47"]
[6,"Prechod rozmeru,200x160-125x125,",1,"",1050,"0.17"]
[6,"Oblouk,200x160-200x160,",2,"",1050,"1.03"]
[6,"Prechod tvaru_ovladanie pozicie,225x180-ø125,",1,"",1050,"0.22"]
[6,"Oblouk,225x900-225x900,",2,"",2630,"3.04"]
[6,"Prechod rozmeru,280x160-200x160,",1,"",1050,"0.20"]
[6,"Prechod rozmeru,315x180-225x180,",1,"",1050,"0.23"]
[6,"Prechod rozmeru,400x200-315x180,",1,"",1500,"0.28"]
[6,"Oblouk,400x200-400x200,",2,"",1500,"2.27"]
[6,"Prechod rozmeru,400x225-400x200,",1,"",1500,"0.29"]
[6,"Prechod rozmeru,450x160-280x160,",1,"",1500,"0.28"]
[6,"Prechod rozmeru,500x180-450x160,",1,"",1500,"0.31"]
[6,"Prechod rozmeru,560x180-500x180,",1,"",1500,"0.34"]
[6,"Oblouk,560x180-560x180,",2,"",1500,"3.40"]
[6,"Prechod rozmeru,630x200-560x180,",1,"",1890,"0.38"]
[6,"Prechod rozmeru,630x225-630x200,",1,"",1890,"0.39"]
[6,"Rozbočka T,900x225-630x225-400x225,",1,"",2630,"1.51"]
[6,"Prechod rozmeru,1200x250-900x225,",1,"",3500,"0.67"]
[22,"Oblouk,200x200-200x200,",1,"",1050,"0.56"]
[22,"Prechod tvaru_ovladanie pozicie,200x200-ø160,",1,"",1050,"0.22"]
[25,"Oblouk,200x250-200x250,",2,"",1050,"1.25"]
[25,"Oblouk,250x200-250x200,",1,"",1050,"0.69"]
[25,"Prechod tvaru_ovladanie pozicie,250x200-ø200,",1,"",1050,"0.25"]

{"sheet":"Stvorhranne_tvarovky_kusy","index":4,"n_rows":198,"n_cols":6,"rows_kept":198,"cut":false,"hidden":true,"merged":[]}
["Zkratka systému","Popis","Počet","Popis do specifikace","Obvod do specifikace","Plocha do specifikace"]
[1,"Oblouk,160x125-160x125,",1,"",650,"0.39"]
[1,"Prechod tvaru_ovladanie pozicie,160x125-ø125,",1,"",650,"0.16"]
[1,"Prechod tvaru_ovladanie pozicie,160x160-ø160,",1,"",650,"0.18"]
[1,"Prechod rozmeru,225x125-160x125,",1,"",1050,"0.16"]
[1,"Prechod rozmeru,250x140-225x125,",1,"",1050,"0.18"]
[1,"Prechod rozmeru,250x200-250x140,",1,"",1050,"0.21"]
[1,"Prechod rozmeru,280x125-160x160,",1,"",1050,"0.19"]
[1,"ATYP_A1_002-prumer,400x150-ø125,",12,"",1500,"2.85"]
[1,"Prechod rozmeru,400x160-280x125,",1,"",1500,"0.26"]
[1,"Oblouk,400x160-400x160,",1,"",1500,"1.06"]
[1,"Prechod rozmeru,400x200-400x160,",1,"",1500,"0.28"]
[1,"ATYP_A1_002-prumer,500x150-ø140,",1,"",1500,"0.28"]
[1,"Prechod rozmeru,560x200-400x200,",1,"",1890,"0.35"]
[1,"Rozbočka T,710x200-560x200-250x200,",1,"",1890,"1.23"]
[1,"Prechod rozmeru,710x250-710x200,",1,"",2630,"0.44"]
[1,"Prechod tvaru_ovladanie pozicie,180x160-ø160,",1,"",1050,"0.19"]
[1,"Odskok,200x225-200x225,",2,"",1050,"0.59"]
[1,"Prechod rozmeru,225x200-180x160,",1,"",1050,"0.20"]
[1,"Oblouk,355x160-355x160,",1,"",1050,"0.92"]
[1,"Prechod tvaru_ovladanie pozicie,355x160-ø160,",1,"",1050,"0.28"]
[1,"Prechod rozmeru,400x180-355x160,",1,"",1500,"0.27"]
[1,"Prechod rozmeru,500x200-400x180,",1,"",1500,"0.32"]
[1,"Rozbočka T,710x200-500x200-225x200,",1,"",1890,"1.15"]
[1,"Oblouk,710x200-710x200,",1,"",1890,"2.88"]
[1,"Prechod rozmeru,710x250-710x200,",1,"",2630,"0.44"]
[2,"Oblouk,100x355-100x355,",8,"",1050,"4.02"]
[2,"Prechod rozmeru,200x200-355x100,",1,"",1050,"0.21"]
[2,"Prechod tvaru_ovladanie pozicie,200x200-ø200,",1,"",1050,"0.22"]
[2,"Oblouk,200x800-200x800,",2,"",2630,"2.58"]
[2,"Oblouk,355x100-355x100,",1,"",1050,"0.82"]
[2,"M_Hranaté odbočení,355x125-355x125,",1,"",1050,"0.06"]
[2,"Prechod tvaru_ovladanie pozicie,355x125-ø125,",1,"",1050,"0.26"]
[2,"ATYP_A1_002-prumer,400x150-ø125,",9,"",1500,"2.09"]
[2,"ATYP_A1_002-prumer,500x150-ø140,",2,"",1500,"0.56"]
[2,"Prechod rozmeru,560x200-355x100,",1,"",1890,"0.35"]
[2,"Prechod rozmeru,710x200-560x200,",1,"",1890,"0.42"]
[2,"Prechod rozmeru,710x200-630x200,",1,"",1890,"0.42"]
[2,"Prechod rozmeru,800x200-710x200,",1,"",2630,"0.46"]
[2,"Oblouk,800x200-800x200,",1,"",2630,"3.40"]
[2,"Prechod rozmeru,900x200-800x200,",1,"",2630,"0.76"]
[2,"Oblouk,900x200-900x200,",1,"",2630,"4.02"]
[2,"125x315-125x315,",4,"",1050,"1.34"]
[2,"Odskok,140x400-140x400,",1,"",1500,"0.37"]
[2,"Oblouk,160x160-160x160,",1,"",650,"0.43"]
[2,"Prechod tvaru_ovladanie pozicie,160x160-ø160,",1,"",650,"0.18"]
[2,"Prechod rozmeru,160x200-160x160,",1,"",1050,"0.17"]
[2,"Prechod rozmeru,200x200-315x125,",2,"",1050,"0.40"]
[2,"Oblouk,200x630-200x630,",2,"",1890,"2.17"]
[2,"315x125-315x125,",6,"",1050,"3.81"]
[2,"Prechod rozmeru,400x140-315x125,",1,"",1500,"0.25"]
[2,"Prechod rozmeru,560x160-400x140,",1,"",1500,"0.33"]
[2,"Prechod rozmeru,560x200-560x160,",1,"",1890,"0.35"]
[2,"Prechod rozmeru,710x180-560x200,",1,"",1890,"0.41"]
[2,"Prechod rozmeru,710x180-630x200,",1,"",1890,"0.41"]
[2,"Rozbočka T,800x200-630x200-160x200,",1,"",2630,"1.45"]
[2,"Prechod rozmeru,900x200-800x200,",1,"",2630,"0.51"]
[3,"Prechod tvaru_ovladanie pozicie,200x200-ø200,",1,"",1050,"0.22"]
[3,"Oblouk,200x280-200x280,",2,"",1050,"1.32"]
[3,"Prechod rozmeru,250x200-200x200,",1,"",1050,"0.21"]
[3,"Oblouk,250x710-250x710,",2,"",2630,"2.74"]
[3,"Prechod tvaru_ovladanie pozicie,280x200-ø200,",1,"",1050,"0.26"]
[3,"Prechod rozmeru,355x200-280x200,",1,"",1500,"0.26"]
[3,"Prechod rozmeru,355x250-250x200,",1,"",1500,"0.28"]
[3,"ATYP_A1_002-prumer,400x150-ø125,",13,"",1500,"3.02"]
[3,"Prechod rozmeru,400x200-355x200,",1,"",1500,"0.28"]
[3,"Prechod rozmeru,450x200-400x200,",1,"",1500,"0.30"]
[3,"Prechod rozmeru,500x200-450x200,",1,"",1500,"0.32"]
[3,"Prechod rozmeru,550x200-500x200,",1,"",1500,"0.38"]
[3,"Prechod rozmeru,630x200-550x200,",1,"",1890,"0.38"]
[3,"Prechod rozmeru,630x250-630x200,",1,"",1890,"0.40"]
[3,"Rozbočka T,710x250-630x250-355x250,",1,"",2630,"1.34"]
[3,"Prechod rozmeru,710x250-710x250,",1,"",2630,"0.44"]
[3,"Oblouk prechodovy,1120x250-710x250,90.00°,",1,"",3500,"5.51"]
[3,"Prechod tvaru_ovladanie pozicie,160x160-ø160,",1,"",650,"0.18"]
[3,"Prechod tvaru_ovladanie pozicie,160x450-ø180,",1,"",1500,"0.76"]
[3,"Oblouk,225x500-225x500,",2,"",1500,"2.01"]
[3,"Prechod rozmeru,250x160-160x160,",1,"",1050,"0.19"]
[3,"Prechod rozmeru,250x250-250x160,",1,"",1050,"0.23"]
[3,"Oblouk,250x250-250x250,",2,"",1050,"1.51"]
[3,"Oblouk,250x710-250x710,",2,"",2630,"2.74"]
[3,"Prechod rozmeru,450x200-450x160,",1,"",1500,"0.30"]
[3,"Prechod rozmeru,500x225-450x200,",1,"",1500,"0.33"]
[3,"Prechod rozmeru,500x250-500x225,",1,"",1500,"0.35"]
[3,"Rozbočka T,710x250-500x250-250x250,",1,"",2630,"1.25"]
[3,"Oblouk,710x250-710x250,",4,"",2630,"10.79"]
[3,"Prechod rozmeru,1120x250-710x250,",1,"",3500,"1.26"]
[4,"Prechod tvaru_ovladanie pozicie,200x200-ø200,",2,"",1050,"0.44"]
[4,"Prechod rozmeru,250x200-200x200,",2,"",1050,"0.41"]
[4,"Oblouk,250x900-250x900,",2,"",2630,"3.26"]
[4,"Prechod rozmeru,315x200-250x200,",1,"",1050,"0.24"]
[4,"Oblouk,315x200-315x200,",1,"",1050,"0.87"]
[4,"Rozbočka T,315x200-315x200-200x200,",1,"",1050,"0.48"]
[4,"Prechod tvaru_ovladanie pozicie,315x200-ø200,",1,"",1050,"0.28"]
[4,"Prechod rozmeru,355x200-315x200,",2,"",1500,"0.51"]
[4,"ATYP_A1_002-prumer,400x150-ø125,",16,"",1500,"3.71"]
[4,"Prechod rozmeru,450x200-355x200,",1,"",1500,"0.30"]
[4,"ATYP_A1_002-prumer,500x150-ø160,",1,"",1500,"0.27"]
[4,"Prechod rozmeru,500x200-355x200,",1,"",1500,"0.18"]
[4,"Prechod rozmeru,500x200-450x200,",1,"",1500,"0.32"]
[4,"Prechod rozmeru,560x200-500x200,",1,"",1890,"0.35"]
[4,"Prechod rozmeru,560x250-500x200,",1,"",1890,"0.37"]
[4,"Prechod rozmeru,560x250-560x200,",1,"",1890,"0.37"]
[4,"Rozbočka T,900x250-560x250-560x250,",1,"",2630,"1.46"]
[4,"Odskok,900x250-900x250,",1,"",2630,"0.79"]
[4,"Oblouk prechodovy,1000x250-900x250,90.00°,",1,"",2630,"4.27"]
[4,"Prechod tvaru_ovladanie pozicie,200x200-ø200,",1,"",1050,"0.22"]
[4,"Oblouk,200x250-200x250,",4,"",1050,"2.49"]
[4,"Oblouk,200x400-200x400,",2,"",1500,"1.61"]
[4,"Prechod tvaru univerzalni,250x200-ø160,",1,"",1050,"0.56"]
[4,"Oblouk,250x900-250x900,",2,"",2630,"3.26"]
[4,"Prechod rozmeru,315x200-200x200,",1,"",1050,"0.24"]
[4,"Prechod rozmeru,315x200-250x200,",1,"",1050,"0.24"]
[4,"Oblouk,315x200-315x200,",1,"",1050,"0.87"]
[4,"Prechod rozmeru,355x200-315x200,",1,"",1500,"0.26"]
[4,"Prechod rozmeru,400x200-315x200,",1,"",1500,"0.28"]
[4,"Prechod rozmeru,400x200-355x200,",1,"",1500,"0.28"]
[4,"Prechod rozmeru,500x200-400x200,",1,"",1500,"0.32"]
[4,"Prechod rozmeru,500x250-500x200,",1,"",1500,"0.35"]
[4,"Prechod rozmeru,580x200-400x200,",1,"",1890,"0.36"]
[4,"Odskok,580x200-580x200,",2,"",1890,"0.81"]
[4,"Prechod rozmeru,630x200-580x200,",1,"",1890,"0.38"]
[4,"Prechod rozmeru,630x250-630x200,",1,"",1890,"0.40"]
[4,"Rozbočka T,900x250-630x250-500x250,",1,"",2630,"1.60"]
[4,"Oblouk,900x250-900x250,",1,"",2630,"4.31"]
[4,"Prechod rozmeru,1000x250-900x250,",1,"",2630,"0.86"]
[5,"Prechod tvaru_ovladanie pozicie,200x200-ø200,",2,"",1050,"0.44"]
[5,"Prechod tvaru_ovladanie pozicie,250x200-ø200,",1,"",1050,"0.25"]
[5,"Prechod rozmeru,315x200-250x200,",1,"",1050,"0.24"]
[5,"Prechod rozmeru,355x200-250x200,",1,"",1500,"0.26"]
[5,"ATYP_A1_002-prumer,400x150-ø125,",16,"",1500,"3.71"]
[5,"Prechod rozmeru,400x200-315x200,",1,"",1500,"0.28"]
[5,"Prechod rozmeru,400x250-400x200,",1,"",1500,"0.30"]
[5,"ATYP_A1_002-prumer,500x150-ø125,",1,"",1500,"0.28"]
[5,"Prechod rozmeru,630x200-355x200,",1,"",1890,"0.38"]
[5,"Rozbočka T,630x200-630x200-200x200,",1,"",1890,"0.68"]
[5,"Prechod rozmeru,710x225-710x200,",1,"",1890,"0.43"]
[5,"Prechod rozmeru,710x250-710x225,",1,"",2630,"0.44"]
[5,"Rozbočka T,1000x250-710x250-400x250,",1,"",2630,"1.80"]
[5,"Prechod rozmeru,1120x250-1000x250,",1,"",3500,"0.63"]
[5,"Prechod tvaru_ovladanie pozicie,160x160-ø160,",1,"",650,"0.18"]
[5,"Oblouk,160x400-160x400,",4,"",1500,"2.78"]
[5,"Oblouk,200x710-200x710,",4,"",1890,"4.73"]
[5,"Prechod tvaru univerzalni,225x160-ø160,",1,"",1050,"0.21"]
[5,"Prechod rozmeru,355x160-225x160,",1,"",1050,"0.24"]
[5,"Prechod rozmeru,400x160-160x160,",1,"",1500,"0.26"]
[5,"Prechod rozmeru,400x200-400x160,",1,"",1500,"0.28"]
[5,"Prechod rozmeru,400x250-400x200,",1,"",1500,"0.30"]
[5,"Prechod rozmeru,630x200-355x160,",1,"",1890,"0.38"]
[5,"Prechod rozmeru,710x200-630x200,",1,"",1890,"0.42"]
[5,"Prechod rozmeru,710x250-710x200,",1,"",2630,"0.44"]
[5,"Rozbočka T,1000x250-710x250-400x250,",1,"",2630,"1.80"]
[5,"Oblouk,1000x250-1000x250,",2,"",2630,"10.02"]
[5,"Prechod rozmeru,1120x250-1000x250,",1,"",3500,"0.95"]
[6,"Prechod tvaru_ovladanie pozicie,200x160-ø200,",1,"",1050,"0.20"]
[6,"Oblouk,225x900-225x900,",2,"",2630,"3.04"]
[6,"Prechod rozmeru,250x160-200x160,",1,"",1050,"0.19"]
[6,"Prechod tvaru_ovladanie pozicie,250x200-ø160,",1,"",1050,"0.25"]
[6,"Prechod rozmeru,280x180-250x200,",1,"",1050,"0.21"]
[6,"Prechod rozmeru,315x180-250x160,",1,"",1050,"0.23"]
[6,"ATYP_A1_002-prumer,400x150-ø125,",16,"",1500,"3.71"]
[6,"Prechod rozmeru,400x180-315x180,",1,"",1500,"0.27"]
[6,"Prechod rozmeru,400x200-280x180,",1,"",1500,"0.28"]
[6,"Prechod rozmeru,400x200-400x180,",1,"",1500,"0.28"]
[6,"Oblouk,400x200-400x200,",2,"",1500,"2.27"]
[6,"Prechod rozmeru,400x225-400x200,",1,"",1500,"0.29"]
[6,"Prechod rozmeru,500x200-400x200,",1,"",1500,"0.32"]
[6,"Oblouk,500x200-500x200,",2,"",1500,"3.00"]
[6,"Prechod rozmeru,560x200-500x200,",1,"",1890,"0.35"]
[6,"Prechod rozmeru,630x200-560x200,",1,"",1890,"0.38"]
[6,"Prechod rozmeru,630x225-630x200,",1,"",1890,"0.39"]
[6,"Rozbočka T,900x225-630x225-400x225,",1,"",2630,"1.51"]
[6,"Prechod rozmeru,1200x250-900x225,",1,"",3500,"1.00"]
[6,"Prechod tvaru_ovladanie pozicie,125x125-ø125,",1,"",650,"0.14"]
[6,"Odskok,180x315-180x315,",1,"",1050,"0.34"]
[6,"Odskok,180x500-180x500,",1,"",1500,"0.47"]
[6,"Prechod rozmeru,200x160-125x125,",1,"",1050,"0.17"]
[6,"Oblouk,200x160-200x160,",2,"",1050,"1.03"]
[6,"Prechod tvaru_ovladanie pozicie,225x180-ø125,",1,"",1050,"0.22"]
[6,"Oblouk,225x900-225x900,",2,"",2630,"3.04"]
[6,"Prechod rozmeru,280x160-200x160,",1,"",1050,"0.20"]
[6,"Prechod rozmeru,315x180-225x180,",1,"",1050,"0.23"]
[6,"Prechod rozmeru,400x200-315x180,",1,"",1500,"0.28"]
[6,"Oblouk,400x200-400x200,",2,"",1500,"2.27"]
[6,"Prechod rozmeru,400x225-400x200,",1,"",1500,"0.29"]
[6,"Prechod rozmeru,450x160-280x160,",1,"",1500,"0.28"]
[6,"Prechod rozmeru,500x180-450x160,",1,"",1500,"0.31"]
[6,"Prechod rozmeru,560x180-500x180,",1,"",1500,"0.34"]
[6,"Oblouk,560x180-560x180,",2,"",1500,"3.40"]
[6,"Prechod rozmeru,630x200-560x180,",1,"",1890,"0.38"]
[6,"Prechod rozmeru,630x225-630x200,",1,"",1890,"0.39"]
[6,"Rozbočka T,900x225-630x225-400x225,",1,"",2630,"1.51"]
[6,"Prechod rozmeru,1200x250-900x225,",1,"",3500,"0.67"]
[22,"Oblouk,200x200-200x200,",1,"",1050,"0.56"]
[22,"Prechod tvaru_ovladanie pozicie,200x200-ø160,",1,"",1050,"0.22"]
[25,"Oblouk,200x250-200x250,",2,"",1050,"1.25"]
[25,"Oblouk,250x200-250x200,",1,"",1050,"0.69"]
[25,"Prechod tvaru_ovladanie pozicie,250x200-ø200,",1,"",1050,"0.25"]